{"text_format":"1","workbook":"xlsx","n_sheets":14,"sheets":["Liste","1.Dön-1.Sınav","1.Dön-2.Sınav","1.Dön-3.Sınav","1.Dön-1.Per","1.Dön-1.Söz","2.Dön-1.Sınav","2.Dön-2.Sınav","2.Dön-3.Sınav","2.Dön-1.Per","2.Dön-1.Söz","ogrenciliste","ogretmenliste","dersliste"],"not_rendered":{"charts":12,"images":49,"macros":1,"external_links":0,"defined_names":13,"comments":0,"pivot_tables":0},"unopened":[],"bounds":{"document_bytes":16777216,"sheet_cells":100000,"rows_first":2000,"rows_last":500,"rows_between":2000,"halvings":0,"cell_chars":16384,"cell_head_chars":4096},"cells_cut":0,"cells_raw":0,"read":"whole","date_system":"1900"}

{"sheet":"Liste","index":0,"n_rows":33,"n_cols":19,"rows_kept":33,"cut":false,"hidden":false,"merged":[[2,15,2,18],[1,15,1,18],[0,0,0,7],[12,6,12,7],[13,6,13,7],[2,5,2,7],[1,1,1,3],[2,0,2,3]]}
[1]
[null,{"$f":"H6&\"  SINIFI ÖĞRENCİ LİSTESİ\"","v":"9/A  SINIFI ÖĞRENCİ LİSTESİ"},null,null,null,null,null,null,null,null,null,null,null,null,null,{"$f":"H6&\"  SINIFI ÖĞRENCİ LİSTESİ\"","v":"9/A  SINIFI ÖĞRENCİ LİSTESİ"}]
["ÖĞRENCİNİN",null,null,null,null,"Bilgileri \" Veri Girişi ve Sınıf Seçimi\" Düğmesi ile Doldurunuz.",null,null,null,null,null,null,null,null,null,{"$f":"A3","v":"ÖĞRENCİNİN"}]
["SINIF","SIRA","OKUL NO","ADI SOYADI",null,"Okul",":","OLTU NENEHATUN MESLEKİ  VE TEKNİK ANADOLU LİSESİ",null,null,null,null,null,null,null,{"$f":"A4","v":"SINIF"},{"$f":"B4","v":"SIRA"},{"$f":"C4","v":"OKUL NO"},"ADI SOYADI"]
[null,null,null,null,null,"Öğretim Yılı",":","2023-2024",null,null,null,null,null,null,null,{"$f":"IF(A5=\"\",\"\",A5)","v":""},{"$f":"IF(B5=\"\",\"\",B5)","v":""},{"$f":"IF(C5=\"\",\"\",C5)","v":""},""]
[null,null,null,null,null,"Sınıfı",":","9/A",null,null,null,null,null,null,null,{"$f":"IF(A6=\"\",\"\",A6)","v":""},{"$f":"IF(B6=\"\",\"\",B6)","v":""},"",""]
[null,null,null,null,null,"Ders",":",null,null,null,null,null,null,null,null,"","","",""]
[null,null,null,null,null,"Öğretmen",":","YUNUS EFİLOĞLU",null,null,null,null,null,null,null,"","","",""]
[null,null,null,null,null,"Branşı",":",{"$f":"IFERROR(VLOOKUP(H8,ogretmenliste!A:B,2,0),\"\")","v":"Yiyecek İçecek Hizmetleri"},null,null,null,null,null,null,null,"","","",""]
[null,null,null,null,null,"Okul Müdürü",":","YUNUS EFİLOĞLU",null,null,null,null,null,null,null,"","","",""]
[null,null,null,null,null,null,null,null,null,null,null,null,null,null,null,"","","",""]
[null,null,null,null,null,null,null,null,null,null,null,null,null,null,null,"","","",""]
[null,null,null,null,null,null,null,null,null,null,null,null,null,null,null,"","","",""]
[null,null,null,null,null,null,null,null,null,null,null,null,null,null,null,"","","",""]
[null,null,null,null,null,null,null,null,null,null,null,null,null,null,null,"","","",""]
[null,null,null,null,null,null,null,null,null,null,null,null,null,null,null,"","","",""]
[null,null,null,null,null,null,null,null,null,null,null,null,null,null,null,"","","",""]
[null,null,null,null,null,null,null,null,null,null,null,null,null,null,null,"","","",""]
[null,null,null,null,null,null,null,null,null,null,null,null,null,null,null,"","","",""]
[null,null,null,null,null,null,null,null,null,null,null,null,null,null,null,"","","",""]
[null,null,null,null,null,null,null,null,null,null,null,null,null,null,null,"","",{"$f":"IF(C21=\"\",\"\",C21)","v":""},{"$f":"IF(D21=\"\",\"\",D21)","v":""}]
[null,null,null,null,null,null,null,null,null,null,null,null,null,null,null,"","","",""]
[null,null,null,null,null,null,null,null,null,null,null,null,null,null,null,"","","",""]
[null,null,null,null,null,null,null,null,null,null,null,null,null,null,null,"","","",""]
[null,null,null,null,null,null,null,null,null,null,null,null,null,null,null,"","","",""]
[null,null,null,null,null,null,null,null,null,null,null,null,null,null,null,"","","",""]
[null,null,null,null,null,null,null,null,null,null,null,null,null,null,null,"","","",""]
[null,null,null,null,null,null,null,null,null,null,null,null,null,null,null,"","","",""]
[null,null,null,null,null,null,null,null,null,null,null,null,null,null,null,"","","",""]
[null,null,null,null,null,null,null,null,null,null,null,null,null,null,null,"","","",""]
[null,null,null,null,null,null,null,null,null,null,null,null,null,null,null,"","","",""]
[null,null,null,null,null,null,null,null,null,null,null,null,null,null,null,"","","",""]
[null,null,null,null,null,null,null,null,null,null,null,null,null,null,null,"","","",""]

{"sheet":"1.Dön-1.Sınav","index":1,"n_rows":78,"n_cols":36,"rows_kept":78,"cut":false,"hidden":false,"merged":[[77,27,77,31],[14,28,14,31],[15,28,15,31],[76,27,76,31],[17,7,17,31],[15,14,15,15],[75,27,75,31],[35,30,36,30],[35,31,36,31],[35,5,35,29],[14,14,14,15],[20,3,20,4],[5,10,5,15],[11,7,11,13],[12,7,12,13],[12,14,12,15],[13,7,13,15],[10,3,10,4],[14,7,14,13],[14,3,14,4],[8,3,8,4],[5,2,5,3],[10,7,10,13],[9,7,9,13],[9,14,9,15],[10,14,10,15],[11,14,11,15],[18,3,18,4],[19,3,19,4],[15,7,15,13],[17,3,17,4],[15,3,15,4],[16,3,16,4],[32,3,32,4],[72,2,72,4],[35,2,35,4],[21,3,21,4],[22,3,22,4],[27,3,27,4],[24,3,24,4],[33,2,33,4],[25,3,25,4],[30,3,30,4],[28,3,28,4],[29,3,29,4],[31,3,31,4],[26,3,26,4],[23,3,23,4],[10,17,13,31],[1,33,1,35],[2,33,2,35],[1,2,1,31],[3,6,3,9],[4,6,4,9],[11,3,11,4],[9,3,9,4],[5,6,5,9],[2,6,2,9],[3,2,3,3],[3,4,3,5],[12,3,12,4],[13,3,13,4],[4,17,4,28],[4,10,4,15],[2,10,2,15],[3,10,3,15],[4,33,6,35],[6,17,9,31],[2,2,2,3],[2,17,3,31],[2,4,2,5],[4,29,4,30],[4,2,4,3],[4,4,4,5],[5,17,5,31],[8,7,8,13],[8,14,8,15],[7,7,7,15],[5,4,5,5],[7,2,7,4]]}
[]
[null,null,"SORU ANALİZİ VE SINAV BAŞARI DEĞERLENDİRMESİ",null,null,null,null,null,null,null,null,null,null,null,null,null,null,null,null,null,null,null,null,null,null,null,null,null,null,null,null,null,null,"Orhan Zeki KOCAMAN"]
[null,null,"Okul ",null,{"$f":"Liste!G4&Liste!H4","v":":OLTU NENEHATUN MESLEKİ  VE TEKNİK ANADOLU LİSESİ"},null,"Sınıf ",null,null,null,{"$f":"Liste!G6&\" \"&Liste!H6","v":": 9/A"},null,null,null,null,null,null,"SINAVIN DEĞERLENDİRİLMESİ",null,null,null,null,null,null,null,null,null,null,null,null,null,null,null,"www.ahgal.meb.k12.tr"]
[null,null,"Öğretim Yılı ",null,{"$f":"Liste!G5&Liste!H5","v":":2023-2024"},null,"Sınav No",null,null,null,": 1.Sınav"]
[null,null,"Dönem ",null,": 1.Dönem",null,"Ders",null,null,null,{"$f":"Liste!G8&\" \"&Liste!H7","v":": "},null,null,null,null,null,null,"Yapılan sınavda sınıfın genel başarı yüzdesi",null,null,null,null,null,null,null,null,null,null,null,{"$f":"O16","v":{"$error":"#DIV/0!"}},null,"olmuştur.",null,"Buraya dokunmayınız. Yazıcıda bu kısım çıkmaz.Formüller için gereklidir. Sakın Silmeyin…"]
[null,null,"Öğretmen",null,{"$f":"Liste!G7&Liste!H8","v":":YUNUS EFİLOĞLU"},null,null,null,null,null,null,null,null,null,null,null,null,"Aşağıda belirtilen konularda başarı oranı %50 nin altında kalmıştır."]
[null,null,null,null,null,null,null,null,null,null,null,null,null,null,null,null,null,{"$f":"CONCATENATE(AJ9,AJ10,AJ11,AJ12,AJ13,AJ14,AJ15,AJ16,AJ17,AJ18,AJ19,AJ20,AJ21,AJ23,AJ24,AJ25,AJ26,AJ27,AJ28,AJ29,AJ30,AJ31,AJ32,AJ33)","v":""}]
[null,null,"Soruların ilgili olduğu konular",null,null,"Puan",null,"SINAV ANALİZİ"]
[null,null,1,null,null,null,null,"GEÇMEZ alan öğrenci sayısı",null,null,null,null,null,null,{"$f":"COUNTIF(AF38:AF72,\"GEÇMEZ\")","v":0},null,null,null,null,null,null,null,null,null,null,null,null,null,null,null,null,null,null,{"$f":"IF(D9=0,\"\",D9)","v":""},{"$f":"F73","v":" "},{"$f":"IF(AI9<50,\"    * \"&AH9,\"\")","v":""}]
[null,null,2,null,null,null,null,"GEÇER alan öğrenci sayısı",null,null,null,null,null,null,{"$f":"COUNTIF(AF38:AF72,\"GEÇER\")","v":0},null,null,null,null,null,null,null,null,null,null,null,null,null,null,null,null,null,null,"",{"$f":"G73","v":" "},{"$f":"IF(AI10<50,\"    * \"&AH10,\"\")","v":""}]
[null,null,3,null,null,null,null,"ORTA alan öğrenci sayısı",null,null,null,null,null,null,{"$f":"COUNTIF(AF38:AF72,\"ORTA\")","v":0},null,null,"Başarının düşük olduğu bu konular sınıfta ilan edildi. Sınav soruları  sınıfta çözüldü. Özellikle bu konular üzerinde ayrıntılı olarak açıklama yapıldı. Yapılan hatalar vurgulandı.",null,null,null,null,null,null,null,null,null,null,null,null,null,null,null,"",{"$f":"H73","v":" "},""]
[null,null,4,null,null,null,null,"İYİ alan öğrenci sayısı",null,null,null,null,null,null,{"$f":"COUNTIF(AF38:AF72,\"İYİ\")","v":0},null,null,null,null,null,null,null,null,null,null,null,null,null,null,null,null,null,null,"",{"$f":"I73","v":" "},""]
[null,null,5,null,null,null,null,"PEKİYİ alan öğrenci sayısı",null,null,null,null,null,null,{"$f":"COUNTIF(AF38:AF72,\"PEKİYİ\")","v":0},null,null,null,null,null,null,null,null,null,null,null,null,null,null,null,null,null,null,"",{"$f":"J73","v":" "},""]
[null,null,6,null,null,null,null,null,null,null,null,null,null,null,null,null,null,null,null,null,null,null,null,null,null,null,null,null,null,null,null,null,null,"",{"$f":"K73","v":" "},""]
[null,null,7,null,null,null,null,"Alınan puanların ortalaması",null,null,null,null,null,null,{"$f":"IF(COUNT(AE38:AE72)=0,\" \",SUM(AE38:AE72)/COUNT(AE38:AE72))","v":" "},null,null,null,null,null,null,null,null,null,null,null,null,null,{"$f":"Liste!H8","v":"YUNUS EFİLOĞLU"},null,null,null,null,"",{"$f":"L73","v":" "},""]
[null,null,8,null,null,null,null,"Sınıfın Başarı Yüzdesi",null,null,null,null,null,null,{"$f":"SUM(O10:O13)/SUM(O9:O14)","v":{"$error":"#DIV/0!"}},null,null,null,null,null,null,null,null,null,null,null,null,null,{"$f":"Liste!H9","v":"Yiyecek İçecek Hizmetleri"},null,null,null,null,"",{"$f":"M73","v":" "},""]
[null,null,9,null,null,null,null,null,null,null,null,null,null,null,null,null,null,null,null,null,null,null,null,null,null,null,null,null,null,null,null,null,null,"",{"$f":"N73","v":" "},""]
[null,null,10,null,null,null,null,"GRAFİK ANALİZ",null,null,null,null,null,null,null,null,null,null,null,null,null,null,null,null,null,null,null,null,null,null,null,null,null,"",{"$f":"O73","v":" "},""]
[null,null,11,null,null,null,null,null,null,null,null,null,null,null,null,null,null,null,null,null,null,null,null,null,null,null,null,null,null,null,null,null,null,"",{"$f":"P73","v":" "},""]
[null,null,12,null,null,null,null,null,null,null,null,null,null,null,null,null,null,null,null,null,null,null,null,null,null,null,null,null,null,null,null,null,null,"",{"$f":"Q73","v":" "},""]
[null,null,13,null,null,null,null,null,null,null,null,null,null,null,null,null,null,null,null,null,null,null,null,null,null,null,null,null,null,null,null,null,null,"",{"$f":"R73","v":" "},""]
[null,null,14,null,null,null,null,null,null,null,null,null,null,null,null,null,null,null,null,null,null,null,null,null,null,null,null,null,null,null,null,null,null,"",{"$f":"S73","v":" "},""]
[null,null,15,null,null,null,null,null,null,null,null,null,null,null,null,null,null,null,null,null,null,null,null,null,null,null,null,null,null,null,null,null,null,"",{"$f":"T73","v":" "},""]
[null,null,16,null,null,null,null,null,null,null,null,null,null,null,null,null,null,null,null,null,null,null,null,null,null,null,null,null,null,null,null,null,null,"",{"$f":"U73","v":" "},""]
[null,null,17,null,null,null,null,null,null,null,null,null,null,null,null,null,null,null,null,null,null,null,null,null,null,null,null,null,null,null,null,null,null,"",{"$f":"V73","v":" "},""]
[null,null,18,null,null,null,null,null,null,null,null,null,null,null,null,null,null,null,null,null,null,null,null,null,null,null,null,null,null,null,null,null,null,"",{"$f":"W73","v":" "},""]
[null,null,19,null,null,null,null,null,null,null,null,null,null,null,null,null,null,null,null,null,null,null,null,null,null,null,null,null,null,null,null,null,null,"",{"$f":"X73","v":" "},""]
[null,null,20,null,null,null,null,null,null,null,null,null,null,null,null,null,null,null,null,null,null,null,null,null,null,null,null,null,null,null,null,null,null,"",{"$f":"Y73","v":" "},{"$f":"IF(AI28<50,\"    * \"&AH28,\"\")","v":""}]
[null,null,21,null,null,null,null,null,null,null,null,null,null,null,null,null,null,null,null,null,null,null,null,null,null,null,null,null,null,null,null,null,null,"",{"$f":"Z73","v":" "},""]
[null,null,22,null,null,null,null,null,null,null,null,null,null,null,null,null,null,null,null,null,null,null,null,null,null,null,null,null,null,null,null,null,null,"",{"$f":"AA73","v":" "},""]
[null,null,23,null,null,null,null,null,null,null,null,null,null,null,null,null,null,null,null,null,null,null,null,null,null,null,null,null,null,null,null,null,null,"",{"$f":"AB73","v":" "},""]
[null,null,24,null,null,null,null,null,null,null,null,null,null,null,null,null,null,null,null,null,null,null,null,null,null,null,null,null,null,null,null,null,null,"",{"$f":"AC73","v":" "},""]
[null,null,25,null,null,null,null,null,null,null,null,null,null,null,null,null,null,null,null,null,null,null,null,null,null,null,null,null,null,null,null,null,null,"",{"$f":"AD73","v":" "},""]
[null,null,"TOPLAM",null,null,{"$f":"SUM(F9:F33)","v":0}]
[]
[null,null,"ÖĞRENCİNİN",null,null,"SORULAR",null,null,null,null,null,null,null,null,null,null,null,null,null,null,null,null,null,null,null,null,null,null,null,null,"PUAN","SONUÇ"]
[null,null,"SIRA\nNO","OKUL\n NO","ADI VE SOYADI",1,2,3,4,5,6,7,8,9,10,11,12,13,14,15,16,17,18,19,20,21,22,23,24,25]
[null,null,1,{"$f":"IF(Liste!$C5=0,\" \",Liste!C5)","v":" "},{"$f":"IF(Liste!$D5=0,\" \",Liste!$D5)","v":" "},null,null,null,null,null,null,null,null,null,null,null,null,null,null,null,null,null,null,null,null,null,null,null,null,null,{"$f":"IF(COUNTBLANK(F38:AD38)=COLUMNS(F38:AD38),\" \",IF(SUM(F38:AD38)=0,0,SUM(F38:AD38)))","v":" "},{"$f":"IF(AE38=\" \",\" \",IF(AE38>=85,\"PEKİYİ\",IF(AE38>=70,\"İYİ\",IF(AE38>=60,\"ORTA\",IF(AE38>=50,\"GEÇER\",IF(AE38<50,\"GEÇMEZ\"))))))","v":" "}]
[null,null,2,{"$f":"IF(Liste!C6=0,\" \",Liste!C6)","v":" "},{"$f":"IF(Liste!D6=0,\" \",Liste!D6)","v":" "},null,null,null,null,null,null,null,null,null,null,null,null,null,null,null,null,null,null,null,null,null,null,null,null,null," ",{"$f":"IF(AE39=\" \",\" \",IF(AE39>=85,\"PEKİYİ\",IF(AE39>=70,\"İYİ\",IF(AE39>=60,\"ORTA\",IF(AE39>=50,\"GEÇER\",IF(AE39<50,\"GEÇMEZ\",0))))))","v":" "}]
[null,null,3,{"$f":"IF(Liste!C7=0,\" \",Liste!C7)","v":" "},{"$f":"IF(Liste!D7=0,\" \",Liste!D7)","v":" "},null,null,null,null,null,null,null,null,null,null,null,null,null,null,null,null,null,null,null,null,null,null,null,null,null," "," "]
[null,null,4,{"$f":"IF(Liste!C8=0,\" \",Liste!C8)","v":" "},{"$f":"IF(Liste!D8=0,\" \",Liste!D8)","v":" "},null,null,null,null,null,null,null,null,null,null,null,null,null,null,null,null,null,null,null,null,null,null,null,null,null," "," "]
[null,null,5,{"$f":"IF(Liste!C9=0,\" \",Liste!C9)","v":" "},{"$f":"IF(Liste!D9=0,\" \",Liste!D9)","v":" "},null,null,null,null,null,null,null,null,null,null,null,null,null,null,null,null,null,null,null,null,null,null,null,null,null," "," "]
[null,null,6,{"$f":"IF(Liste!C10=0,\" \",Liste!C10)","v":" "},{"$f":"IF(Liste!D10=0,\" \",Liste!D10)","v":" "},null,null,null,null,null,null,null,null,null,null,null,null,null,null,null,null,null,null,null,null,null,null,null,null,null," "," "]
[null,null,7,{"$f":"IF(Liste!C11=0,\" \",Liste!C11)","v":" "},{"$f":"IF(Liste!D11=0,\" \",Liste!D11)","v":" "},null,null,null,null,null,null,null,null,null,null,null,null,null,null,null,null,null,null,null,null,null,null,null,null,null," "," "]
[null,null,8,{"$f":"IF(Liste!C12=0,\" \",Liste!C12)","v":" "},{"$f":"IF(Liste!D12=0,\" \",Liste!D12)","v":" "},null,null,null,null,null,null,null,null,null,null,null,null,null,null,null,null,null,null,null,null,null,null,null,null,null," "," "]
[null,null,9,{"$f":"IF(Liste!C13=0,\" \",Liste!C13)","v":" "},{"$f":"IF(Liste!D13=0,\" \",Liste!D13)","v":" "},null,null,null,null,null,null,null,null,null,null,null,null,null,null,null,null,null,null,null,null,null,null,null,null,null," "," "]
[null,null,10,{"$f":"IF(Liste!C14=0,\" \",Liste!C14)","v":" "},{"$f":"IF(Liste!D14=0,\" \",Liste!D14)","v":" "},null,null,null,null,null,null,null,null,null,null,null,null,null,null,null,null,null,null,null,null,null,null,null,null,null," "," "]
[null,null,11,{"$f":"IF(Liste!C15=0,\" \",Liste!C15)","v":" "},{"$f":"IF(Liste!D15=0,\" \",Liste!D15)","v":" "},null,null,null,null,null,null,null,null,null,null,null,null,null,null,null,null,null,null,null,null,null,null,null,null,null," "," "]
[null,null,12,{"$f":"IF(Liste!C16=0,\" \",Liste!C16)","v":" "},{"$f":"IF(Liste!D16=0,\" \",Liste!D16)","v":" "},null,null,null,null,null,null,null,null,null,null,null,null,null,null,null,null,null,null,null,null,null,null,null,null,null," "," "]
[null,null,13,{"$f":"IF(Liste!C17=0,\" \",Liste!C17)","v":" "},{"$f":"IF(Liste!D17=0,\" \",Liste!D17)","v":" "},null,null,null,null,null,null,null,null,null,null,null,null,null,null,null,null,null,null,null,null,null,null,null,null,null," "," "]
[null,null,14,{"$f":"IF(Liste!C18=0,\" \",Liste!C18)","v":" "},{"$f":"IF(Liste!D18=0,\" \",Liste!D18)","v":" "},null,null,null,null,null,null,null,null,null,null,null,null,null,null,null,null,null,null,null,null,null,null,null,null,null," "," "]
[null,null,15,{"$f":"IF(Liste!C19=0,\" \",Liste!C19)","v":" "},{"$f":"IF(Liste!D19=0,\" \",Liste!D19)","v":" "},null,null,null,null,null,null,null,null,null,null,null,null,null,null,null,null,null,null,null,null,null,null,null,null,null," "," "]
[null,null,16,{"$f":"IF(Liste!C20=0,\" \",Liste!C20)","v":" "},{"$f":"IF(Liste!D20=0,\" \",Liste!D20)","v":" "},null,null,null,null,null,null,null,null,null,null,null,null,null,null,null,null,null,null,null,null,null,null,null,null,null," "," "]
[null,null,17,{"$f":"IF(Liste!C21=0,\" \",Liste!C21)","v":" "},{"$f":"IF(Liste!D21=0,\" \",Liste!D21)","v":" "},null,null,null,null,null,null,null,null,null,null,null,null,null,null,null,null,null,null,null,null,null,null,null,null,null," "," "]
[null,null,18,{"$f":"IF(Liste!C22=0,\" \",Liste!C22)","v":" "},{"$f":"IF(Liste!D22=0,\" \",Liste!D22)","v":" "},null,null,null,null,null,null,null,null,null,null,null,null,null,null,null,null,null,null,null,null,null,null,null,null,null," "," "]
[null,null,19,{"$f":"IF(Liste!C23=0,\" \",Liste!C23)","v":" "},{"$f":"IF(Liste!D23=0,\" \",Liste!D23)","v":" "},null,null,null,null,null,null,null,null,null,null,null,null,null,null,null,null,null,null,null,null,null,null,null,null,null," "," "]
[null,null,20,{"$f":"IF(Liste!C24=0,\" \",Liste!C24)","v":" "},{"$f":"IF(Liste!D24=0,\" \",Liste!D24)","v":" "},null,null,null,null,null,null,null,null,null,null,null,null,null,null,null,null,null,null,null,null,null,null,null,null,null," "," "]
[null,null,21,{"$f":"IF(Liste!C25=0,\" \",Liste!C25)","v":" "},{"$f":"IF(Liste!D25=0,\" \",Liste!D25)","v":" "},null,null,null,null,null,null,null,null,null,null,null,null,null,null,null,null,null,null,null,null,null,null,null,null,null," "," "]
[null,null,22,{"$f":"IF(Liste!C26=0,\" \",Liste!C26)","v":" "},{"$f":"IF(Liste!D26=0,\" \",Liste!D26)","v":" "},null,null,null,null,null,null,null,null,null,null,null,null,null,null,null,null,null,null,null,null,null,null,null,null,null," "," "]
[null,null,23,{"$f":"IF(Liste!C27=0,\" \",Liste!C27)","v":" "},{"$f":"IF(Liste!D27=0,\" \",Liste!D27)","v":" "},null,null,null,null,null,null,null,null,null,null,null,null,null,null,null,null,null,null,null,null,null,null,null,null,null," "," "]
[null,null,24,{"$f":"IF(Liste!C28=0,\" \",Liste!C28)","v":" "},{"$f":"IF(Liste!D28=0,\" \",Liste!D28)","v":" "},null,null,null,null,null,null,null,null,null,null,null,null,null,null,null,null,null,null,null,null,null,null,null,null,null," "," "]
[null,null,25,{"$f":"IF(Liste!C29=0,\" \",Liste!C29)","v":" "},{"$f":"IF(Liste!D29=0,\" \",Liste!D29)","v":" "},null,null,null,null,null,null,null,null,null,null,null,null,null,null,null,null,null,null,null,null,null,null,null,null,null," "," "]
[null,null,26,{"$f":"IF(Liste!C30=0,\" \",Liste!C30)","v":" "},{"$f":"IF(Liste!D30=0,\" \",Liste!D30)","v":" "},null,null,null,null,null,null,null,null,null,null,null,null,null,null,null,null,null,null,null,null,null,null,null,null,null," "," "]
[null,null,27,{"$f":"IF(Liste!C31=0,\" \",Liste!C31)","v":" "},{"$f":"IF(Liste!D31=0,\" \",Liste!D31)","v":" "},null,null,null,null,null,null,null,null,null,null,null,null,null,null,null,null,null,null,null,null,null,null,null,null,null," "," "]
[null,null,28,{"$f":"IF(Liste!C32=0,\" \",Liste!C32)","v":" "},{"$f":"IF(Liste!D32=0,\" \",Liste!D32)","v":" "},null,null,null,null,null,null,null,null,null,null,null,null,null,null,null,null,null,null,null,null,null,null,null,null,null," "," "]
[null,null,29,{"$f":"IF(Liste!C33=0,\" \",Liste!C33)","v":" "},{"$f":"IF(Liste!D33=0,\" \",Liste!D33)","v":" "},null,null,null,null,null,null,null,null,null,null,null,null,null,null,null,null,null,null,null,null,null,null,null,null,null," "," "]
[null,null,30,{"$f":"IF(Liste!C34=0,\" \",Liste!C34)","v":" "},{"$f":"IF(Liste!D34=0,\" \",Liste!D34)","v":" "},null,null,null,null,null,null,null,null,null,null,null,null,null,null,null,null,null,null,null,null,null,null,null,null,null," "," "]
[null,null,31,{"$f":"IF(Liste!C35=0,\" \",Liste!C35)","v":" "},{"$f":"IF(Liste!D35=0,\" \",Liste!D35)","v":" "},null,null,null,null,null,null,null,null,null,null,null,null,null,null,null,null,null,null,null,null,null,null,null,null,null," "," "]
[null,null,32,{"$f":"IF(Liste!C36=0,\" \",Liste!C36)","v":" "},{"$f":"IF(Liste!D36=0,\" \",Liste!D36)","v":" "},null,null,null,null,null,null,null,null,null,null,null,null,null,null,null,null,null,null,null,null,null,null,null,null,null," "," "]
[null,null,33,{"$f":"IF(Liste!C37=0,\" \",Liste!C37)","v":" "},{"$f":"IF(Liste!D37=0,\" \",Liste!D37)","v":" "},null,null,null,null,null,null,null,null,null,null,null,null,null,null,null,null,null,null,null,null,null,null,null,null,null," "," "]
[null,null,34,{"$f":"IF(Liste!C38=0,\" \",Liste!C38)","v":" "},{"$f":"IF(Liste!D38=0,\" \",Liste!D38)","v":" "},null,null,null,null,null,null,null,null,null,null,null,null,null,null,null,null,null,null,null,null,null,null,null,null,null," "," "]
[null,null,35,{"$f":"IF(Liste!C39=0,\" \",Liste!C39)","v":" "},{"$f":"IF(Liste!D39=0,\" \",Liste!D39)","v":" "},null,null,null,null,null,null,null,null,null,null,null,null,null,null,null,null,null,null,null,null,null,null,null,null,null," "," "]
[null,null,"SORULARA GÖRE BAŞARI (%)",null,null,{"$f":"IF(F9=0,\" \",((SUM(F38:F72)/COUNT(F38:F72))*100)/F9)","v":" "},{"$f":"IF(F10=0,\" \",((SUM(G38:G72)/COUNT(G38:G72))*100)/F10)","v":" "},{"$f":"IF(F11=0,\" \",((SUM(H38:H72)/COUNT(H38:H72))*100)/F11)","v":" "},{"$f":"IF(F12=0,\" \",((SUM(I38:I72)/COUNT(I38:I72))*100)/F12)","v":" "},{"$f":"IF(F13=0,\" \",((SUM(J38:J72)/COUNT(J38:J72))*100)/F13)","v":" "},{"$f":"IF(F14=0,\" \",((SUM(K38:K72)/COUNT(K38:K72))*100)/F14)","v":" "},{"$f":"IF(F15=0,\" \",((SUM(L38:L72)/COUNT(L38:L72))*100)/F15)","v":" "},{"$f":"IF(F16=0,\" \",((SUM(M38:M72)/COUNT(M38:M72))*100)/F16)","v":" "},{"$f":"IF(F17=0,\" \",((SUM(N38:N72)/COUNT(N38:N72))*100)/F17)","v":" "},{"$f":"IF(F18=0,\" \",((SUM(O38:O72)/COUNT(O38:O72))*100)/F18)","v":" "},{"$f":"IF(F19=0,\" \",((SUM(P38:P72)/COUNT(P38:P72))*100)/F19)","v":" "},{"$f":"IF(F20=0,\" \",((SUM(Q38:Q72)/COUNT(Q38:Q72))*100)/F20)","v":" "},{"$f":"IF(F21=0,\" \",((SUM(R38:R72)/COUNT(R38:R72))*100)/F21)","v":" "},{"$f":"IF(F22=0,\" \",((SUM(S38:S72)/COUNT(S38:S72))*100)/F22)","v":" "},{"$f":"IF(F23=0,\" \",((SUM(T38:T72)/COUNT(T38:T72))*100)/F23)","v":" "},{"$f":"IF(F24=0,\" \",((SUM(U38:U72)/COUNT(U38:U72))*100)/F24)","v":" "},{"$f":"IF(F25=0,\" \",((SUM(V38:V72)/COUNT(V38:V72))*100)/F25)","v":" "},{"$f":"IF(F26=0,\" \",((SUM(W38:W72)/COUNT(W38:W72))*100)/F26)","v":" "},{"$f":"IF(F27=0,\" \",((SUM(X38:X72)/COUNT(X38:X72))*100)/F27)","v":" "},{"$f":"IF(F28=0,\" \",((SUM(Y38:Y72)/COUNT(Y38:Y72))*100)/F28)","v":" "},{"$f":"IF(F29=0,\" \",((SUM(Z38:Z72)/COUNT(Z38:Z72))*100)/F29)","v":" "},{"$f":"IF(F30=0,\" \",((SUM(AA38:AA72)/COUNT(AA38:AA72))*100)/F30)","v":" "},{"$f":"IF(F31=0,\" \",((SUM(AB38:AB72)/COUNT(AB38:AB72))*100)/F31)","v":" "},{"$f":"IF(F32=0,\" \",((SUM(AC38:AC72)/COUNT(AC38:AC72))*100)/F32)","v":" "},{"$f":"IF(F33=0,\" \",((SUM(AD38:AD72)/COUNT(AD38:AD72))*100)/F33)","v":" "}]
[]
[]
[null,null,null,null,null,null,null,null,null,null,null,null,null,null,null,null,null,null,null,null,null,null,null,null,null,null,null,{"$f":"TODAY()","v":"2024-01-08"}]
[null,null,null,null,null,null,null,null,null,null,null,null,null,null,null,null,null,null,null,null,null,null,null,null,null,null,null,{"$f":"Liste!H10","v":"YUNUS EFİLOĞLU"}]
[null,null,null,null,null,null,null,null,null,null,null,null,null,null,null,null,null,null,null,null,null,null,null,null,null,null,null,"Okul Müdürü"]

{"sheet":"1.Dön-2.Sınav","index":2,"n_rows":78,"n_cols":36,"rows_kept":78,"cut":false,"hidden":false,"merged":[[1,2,1,31],[1,33,1,35],[2,2,2,3],[2,4,2,5],[2,6,2,9],[2,10,2,15],[2,17,3,31],[2,33,2,35],[3,2,3,3],[3,4,3,5],[3,6,3,9],[3,10,3,15],[4,2,4,3],[4,4,4,5],[4,6,4,9],[4,10,4,15],[4,17,4,28],[4,29,4,30],[4,33,6,35],[5,2,5,3],[5,4,5,5],[5,6,5,9],[5,10,5,15],[5,17,5,31],[6,17,9,31],[7,2,7,4],[7,7,7,15],[8,3,8,4],[8,7,8,13],[8,14,8,15],[9,3,9,4],[9,7,9,13],[9,14,9,15],[10,3,10,4],[10,7,10,13],[10,14,10,15],[10,17,13,31],[11,3,11,4],[11,7,11,13],[11,14,11,15],[12,3,12,4],[12,7,12,13],[12,14,12,15],[17,3,17,4],[17,7,17,31],[13,3,13,4],[13,7,13,15],[14,3,14,4],[14,7,14,13],[14,14,14,15],[14,28,14,31],[15,3,15,4],[15,7,15,13],[15,14,15,15],[15,28,15,31],[16,3,16,4],[29,3,29,4],[18,3,18,4],[19,3,19,4],[20,3,20,4],[21,3,21,4],[22,3,22,4],[23,3,23,4],[24,3,24,4],[25,3,25,4],[26,3,26,4],[27,3,27,4],[28,3,28,4],[77,27,77,31],[30,3,30,4],[31,3,31,4],[32,3,32,4],[33,2,33,4],[35,2,35,4],[35,5,35,29],[35,30,36,30],[35,31,36,31],[72,2,72,4],[75,27,75,31],[76,27,76,31]]}
[]
[null,null,"SORU ANALİZİ VE SINAV BAŞARI DEĞERLENDİRMESİ",null,null,null,null,null,null,null,null,null,null,null,null,null,null,null,null,null,null,null,null,null,null,null,null,null,null,null,null,null,null,"Orhan Zeki KOCAMAN"]
[null,null,"Okul ",null,{"$f":"Liste!G4&Liste!H4","v":":OLTU NENEHATUN MESLEKİ  VE TEKNİK ANADOLU LİSESİ"},null,"Sınıf ",null,null,null,{"$f":"Liste!G6&\" \"&Liste!H6","v":": 9/A"},null,null,null,null,null,null,"SINAVIN DEĞERLENDİRİLMESİ",null,null,null,null,null,null,null,null,null,null,null,null,null,null,null,"www.ahgal.meb.k12.tr"]
[null,null,"Öğretim Yılı ",null,{"$f":"Liste!G5&Liste!H5","v":":2023-2024"},null,"Sınav No",null,null,null,": 2.Sınav"]
[null,null,"Dönem ",null,": 1.Dönem",null,"Ders",null,null,null,{"$f":"Liste!G8&\" \"&Liste!H7","v":": "},null,null,null,null,null,null,"Yapılan sınavda sınıfın genel başarı yüzdesi",null,null,null,null,null,null,null,null,null,null,null,{"$f":"O16","v":0.3},null,"olmuştur.",null,"Buraya dokunmayınız. Yazıcıda bu kısım çıkmaz.Formüller için gereklidir. Sakın Silmeyin…"]
[null,null,"Öğretmen",null,{"$f":"Liste!G7&Liste!H8","v":":YUNUS EFİLOĞLU"},null,null,null,null,null,null,null,null,null,null,null,null,"Aşağıda belirtilen konularda başarı oranı %50 nin altında kalmıştır."]
[null,null,null,null,null,null,null,null,null,null,null,null,null,null,null,null,null,{"$f":"CONCATENATE(AJ9,AJ10,AJ11,AJ12,AJ13,AJ14,AJ15,AJ16,AJ17,AJ18,AJ19,AJ20,AJ21,AJ23,AJ24,AJ25,AJ26,AJ27,AJ28,AJ29,AJ30,AJ31,AJ32,AJ33)","v":"    * İş Yerinde Sağlık Güvenlikle İlgilil Risk Durumları    * İş Sağlığı ve Güvenliği Uzmanının Görevleri    * Prototip ve Geliştirme Süreci    * Teknoloji ve Gelişmeler    * Enerji Kaynakları    * Enerji Kaynakları    * Otonom Teknolojiler"}]
[null,null,"Soruların ilgili olduğu konular",null,null,"Puan",null,"SINAV ANALİZİ"]
[null,null,1,"İş Yerinde Sağlık Güvenlikle İlgilil Risk Durumları",null,10,null,"GEÇMEZ alan öğrenci sayısı",null,null,null,null,null,null,{"$f":"COUNTIF(AF38:AF72,\"GEÇMEZ\")","v":7},null,null,null,null,null,null,null,null,null,null,null,null,null,null,null,null,null,null,{"$f":"IF(D9=0,\"\",D9)","v":"İş Yerinde Sağlık Güvenlikle İlgilil Risk Durumları"},{"$f":"F73","v":20},{"$f":"IF(AI9<50,\"    * \"&AH9,\"\")","v":"    * İş Yerinde Sağlık Güvenlikle İlgilil Risk Durumları"}]
[null,null,2,"İş Sağlığı ve Güvenliği Uzmanının Görevleri",null,10,null,"GEÇER alan öğrenci sayısı",null,null,null,null,null,null,{"$f":"COUNTIF(AF38:AF72,\"GEÇER\")","v":2},null,null,null,null,null,null,null,null,null,null,null,null,null,null,null,null,null,null,"İş Sağlığı ve Güvenliği Uzmanının Görevleri",{"$f":"G73","v":27},{"$f":"IF(AI10<50,\"    * \"&AH10,\"\")","v":"    * İş Sağlığı ve Güvenliği Uzmanının Görevleri"}]
[null,null,3,"Prototip ve Geliştirme Süreci",null,10,null,"ORTA alan öğrenci sayısı",null,null,null,null,null,null,{"$f":"COUNTIF(AF38:AF72,\"ORTA\")","v":0},null,null,"Başarının düşük olduğu bu konular sınıfta ilan edildi. Sınav soruları  sınıfta çözüldü. Özellikle bu konular üzerinde ayrıntılı olarak açıklama yapıldı. Yapılan hatalar vurgulandı.",null,null,null,null,null,null,null,null,null,null,null,null,null,null,null,"Prototip ve Geliştirme Süreci",{"$f":"H73","v":25},"    * Prototip ve Geliştirme Süreci"]
[null,null,4,"Teknoloji ve Gelişmeler",null,10,null,"İYİ alan öğrenci sayısı",null,null,null,null,null,null,{"$f":"COUNTIF(AF38:AF72,\"İYİ\")","v":1},null,null,null,null,null,null,null,null,null,null,null,null,null,null,null,null,null,null,"Teknoloji ve Gelişmeler",{"$f":"I73","v":40},"    * Teknoloji ve Gelişmeler"]
[null,null,5,"Giyilebilir Teknoloji",null,10,null,"PEKİYİ alan öğrenci sayısı",null,null,null,null,null,null,{"$f":"COUNTIF(AF38:AF72,\"PEKİYİ\")","v":0},null,null,null,null,null,null,null,null,null,null,null,null,null,null,null,null,null,null,"Giyilebilir Teknoloji",{"$f":"J73","v":53},""]
[null,null,6,"Beş Neden Analizi",null,10,null,null,null,null,null,null,null,null,null,null,null,null,null,null,null,null,null,null,null,null,null,null,null,null,null,null,null,"Beş Neden Analizi",{"$f":"K73","v":66},""]
[null,null,7,"Enerji Kaynakları",null,10,null,"Alınan puanların ortalaması",null,null,null,null,null,null,{"$f":"IF(COUNT(AE38:AE72)=0,\" \",SUM(AE38:AE72)/COUNT(AE38:AE72))","v":39.299999999999997},null,null,null,null,null,null,null,null,null,null,null,null,null,{"$f":"Liste!H8","v":"YUNUS EFİLOĞLU"},null,null,null,null,"Enerji Kaynakları",{"$f":"L73","v":12},"    * Enerji Kaynakları"]
[null,null,8,"Enerji Kaynakları",null,10,null,"Sınıfın Başarı Yüzdesi",null,null,null,null,null,null,{"$f":"SUM(O10:O13)/SUM(O9:O14)","v":0.3},null,null,null,null,null,null,null,null,null,null,null,null,null,{"$f":"Liste!H9","v":"Yiyecek İçecek Hizmetleri"},null,null,null,null,"Enerji Kaynakları",{"$f":"M73","v":20},"    * Enerji Kaynakları"]
[null,null,9,"E Posta Yazarken Dikkat Edilecek Kurallar",null,10,null,null,null,null,null,null,null,null,null,null,null,null,null,null,null,null,null,null,null,null,null,null,null,null,null,null,null,"E Posta Yazarken Dikkat Edilecek Kurallar",{"$f":"N73","v":95},""]
[null,null,10,"Otonom Teknolojiler",null,10,null,"GRAFİK ANALİZ",null,null,null,null,null,null,null,null,null,null,null,null,null,null,null,null,null,null,null,null,null,null,null,null,null,"Otonom Teknolojiler",{"$f":"O73","v":35},"    * Otonom Teknolojiler"]
[null,null,11,null,null,null,null,null,null,null,null,null,null,null,null,null,null,null,null,null,null,null,null,null,null,null,null,null,null,null,null,null,null,"",{"$f":"P73","v":" "},""]
[null,null,12,null,null,null,null,null,null,null,null,null,null,null,null,null,null,null,null,null,null,null,null,null,null,null,null,null,null,null,null,null,null,"",{"$f":"Q73","v":" "},""]
[null,null,13,null,null,null,null,null,null,null,null,null,null,null,null,null,null,null,null,null,null,null,null,null,null,null,null,null,null,null,null,null,null,"",{"$f":"R73","v":" "},""]
[null,null,14,null,null,null,null,null,null,null,null,null,null,null,null,null,null,null,null,null,null,null,null,null,null,null,null,null,null,null,null,null,null,"",{"$f":"S73","v":" "},""]
[null,null,15,null,null,null,null,null,null,null,null,null,null,null,null,null,null,null,null,null,null,null,null,null,null,null,null,null,null,null,null,null,null,"",{"$f":"T73","v":" "},""]
[null,null,16,null,null,null,null,null,null,null,null,null,null,null,null,null,null,null,null,null,null,null,null,null,null,null,null,null,null,null,null,null,null,"",{"$f":"U73","v":" "},""]
[null,null,17,null,null,null,null,null,null,null,null,null,null,null,null,null,null,null,null,null,null,null,null,null,null,null,null,null,null,null,null,null,null,"",{"$f":"V73","v":" "},""]
[null,null,18,null,null,null,null,null,null,null,null,null,null,null,null,null,null,null,null,null,null,null,null,null,null,null,null,null,null,null,null,null,null,"",{"$f":"W73","v":" "},""]
[null,null,19,null,null,null,null,null,null,null,null,null,null,null,null,null,null,null,null,null,null,null,null,null,null,null,null,null,null,null,null,null,null,"",{"$f":"X73","v":" "},""]
[null,null,20,null,null,null,null,null,null,null,null,null,null,null,null,null,null,null,null,null,null,null,null,null,null,null,null,null,null,null,null,null,null,"",{"$f":"Y73","v":" "},""]
[null,null,21,null,null,null,null,null,null,null,null,null,null,null,null,null,null,null,null,null,null,null,null,null,null,null,null,null,null,null,null,null,null,"",{"$f":"Z73","v":" "},""]
[null,null,22,null,null,null,null,null,null,null,null,null,null,null,null,null,null,null,null,null,null,null,null,null,null,null,null,null,null,null,null,null,null,"",{"$f":"AA73","v":" "},""]
[null,null,23,null,null,null,null,null,null,null,null,null,null,null,null,null,null,null,null,null,null,null,null,null,null,null,null,null,null,null,null,null,null,"",{"$f":"AB73","v":" "},""]
[null,null,24,null,null,null,null,null,null,null,null,null,null,null,null,null,null,null,null,null,null,null,null,null,null,null,null,null,null,null,null,null,null,"",{"$f":"AC73","v":" "},""]
[null,null,25,null,null,null,null,null,null,null,null,null,null,null,null,null,null,null,null,null,null,null,null,null,null,null,null,null,null,null,null,null,null,"",{"$f":"AD73","v":" "},""]
[null,null,"TOPLAM",null,null,{"$f":"SUM(F9:F33)","v":100}]
[]
[null,null,"ÖĞRENCİNİN",null,null,"SORULAR",null,null,null,null,null,null,null,null,null,null,null,null,null,null,null,null,null,null,null,null,null,null,null,null,"PUAN","SONUÇ"]
[null,null,"SIRA\nNO","OKUL\n NO","ADI VE SOYADI",1,2,3,4,5,6,7,8,9,10,11,12,13,14,15,16,17,18,19,20,21,22,23,24,25]
[null,null,1,{"$f":"IF(Liste!$C5=0,\" \",Liste!C5)","v":" "},{"$f":"IF(Liste!$D5=0,\" \",Liste!$D5)","v":" "},null,null,null,null,null,null,null,null,null,null,null,null,null,null,null,null,null,null,null,null,null,null,null,null,null,{"$f":"IF(COUNTBLANK(F38:AD38)=COLUMNS(F38:AD38),\" \",IF(SUM(F38:AD38)=0,0,SUM(F38:AD38)))","v":" "},{"$f":"IF(AE38=\" \",\" \",IF(AE38>=85,\"PEKİYİ\",IF(AE38>=70,\"İYİ\",IF(AE38>=60,\"ORTA\",IF(AE38>=50,\"GEÇER\",IF(AE38<50,\"GEÇMEZ\"))))))","v":" "}]
[null,null,2,{"$f":"IF(Liste!C6=0,\" \",Liste!C6)","v":" "},{"$f":"IF(Liste!D6=0,\" \",Liste!D6)","v":" "},null,null,null,null,null,null,null,null,null,null,null,null,null,null,null,null,null,null,null,null,null,null,null,null,null," ",{"$f":"IF(AE39=\" \",\" \",IF(AE39>=85,\"PEKİYİ\",IF(AE39>=70,\"İYİ\",IF(AE39>=60,\"ORTA\",IF(AE39>=50,\"GEÇER\",IF(AE39<50,\"GEÇMEZ\",0))))))","v":" "}]
[null,null,3,{"$f":"IF(Liste!C7=0,\" \",Liste!C7)","v":" "},{"$f":"IF(Liste!D7=0,\" \",Liste!D7)","v":" "},0,0,0,10,5,10,0,0,5,0,null,null,null,null,null,null,null,null,null,null,null,null,null,null,null,30,"GEÇMEZ"]
[null,null,4,{"$f":"IF(Liste!C8=0,\" \",Liste!C8)","v":" "},{"$f":"IF(Liste!D8=0,\" \",Liste!D8)","v":" "},0,0,0,0,0,0,0,0,10,0,null,null,null,null,null,null,null,null,null,null,null,null,null,null,null,10,"GEÇMEZ"]
[null,null,5,{"$f":"IF(Liste!C9=0,\" \",Liste!C9)","v":" "},{"$f":"IF(Liste!D9=0,\" \",Liste!D9)","v":" "},10,2,0,0,5,0,0,0,10,0,null,null,null,null,null,null,null,null,null,null,null,null,null,null,null,27,"GEÇMEZ"]
[null,null,6,{"$f":"IF(Liste!C10=0,\" \",Liste!C10)","v":" "},{"$f":"IF(Liste!D10=0,\" \",Liste!D10)","v":" "},5,3,10,10,10,10,3,10,10,10,null,null,null,null,null,null,null,null,null,null,null,null,null,null,null,81,"İYİ"]
[null,null,7,{"$f":"IF(Liste!C11=0,\" \",Liste!C11)","v":" "},{"$f":"IF(Liste!D11=0,\" \",Liste!D11)","v":" "},0,5,5,0,3,10,0,10,10,0,null,null,null,null,null,null,null,null,null,null,null,null,null,null,null,43,"GEÇMEZ"]
[null,null,8,{"$f":"IF(Liste!C12=0,\" \",Liste!C12)","v":" "},{"$f":"IF(Liste!D12=0,\" \",Liste!D12)","v":" "},null,null,null,null,null,null,null,null,null,null,null,null,null,null,null,null,null,null,null,null,null,null,null,null,null," "," "]
[null,null,9,{"$f":"IF(Liste!C13=0,\" \",Liste!C13)","v":" "},{"$f":"IF(Liste!D13=0,\" \",Liste!D13)","v":" "},null,null,null,null,null,null,null,null,null,null,null,null,null,null,null,null,null,null,null,null,null,null,null,null,null," "," "]
[null,null,10,{"$f":"IF(Liste!C14=0,\" \",Liste!C14)","v":" "},{"$f":"IF(Liste!D14=0,\" \",Liste!D14)","v":" "},0,2,10,0,5,10,2,0,10,0,null,null,null,null,null,null,null,null,null,null,null,null,null,null,null,39,"GEÇMEZ"]
[null,null,11,{"$f":"IF(Liste!C15=0,\" \",Liste!C15)","v":" "},{"$f":"IF(Liste!D15=0,\" \",Liste!D15)","v":" "},5,0,0,0,5,6,0,0,10,0,null,null,null,null,null,null,null,null,null,null,null,null,null,null,null,26,"GEÇMEZ"]
[null,null,12,{"$f":"IF(Liste!C16=0,\" \",Liste!C16)","v":" "},{"$f":"IF(Liste!D16=0,\" \",Liste!D16)","v":" "},0,10,0,10,10,0,2,0,10,10,null,null,null,null,null,null,null,null,null,null,null,null,null,null,null,52,"GEÇER"]
[null,null,13,{"$f":"IF(Liste!C17=0,\" \",Liste!C17)","v":" "},{"$f":"IF(Liste!D17=0,\" \",Liste!D17)","v":" "},0,0,0,0,5,10,0,0,10,5,null,null,null,null,null,null,null,null,null,null,null,null,null,null,null,30,"GEÇMEZ"]
[null,null,14,{"$f":"IF(Liste!C18=0,\" \",Liste!C18)","v":" "},{"$f":"IF(Liste!D18=0,\" \",Liste!D18)","v":" "},0,5,0,10,5,10,5,0,10,10,null,null,null,null,null,null,null,null,null,null,null,null,null,null,null,55,"GEÇER"]
[null,null,15,{"$f":"IF(Liste!C19=0,\" \",Liste!C19)","v":" "},{"$f":"IF(Liste!D19=0,\" \",Liste!D19)","v":" "},null,null,null,null,null,null,null,null,null,null,null,null,null,null,null,null,null,null,null,null,null,null,null,null,null," "," "]
[null,null,16,{"$f":"IF(Liste!C20=0,\" \",Liste!C20)","v":" "},{"$f":"IF(Liste!D20=0,\" \",Liste!D20)","v":" "},null,null,null,null,null,null,null,null,null,null,null,null,null,null,null,null,null,null,null,null,null,null,null,null,null," "," "]
[null,null,17,{"$f":"IF(Liste!C21=0,\" \",Liste!C21)","v":" "},{"$f":"IF(Liste!D21=0,\" \",Liste!D21)","v":" "},null,null,null,null,null,null,null,null,null,null,null,null,null,null,null,null,null,null,null,null,null,null,null,null,null," "," "]
[null,null,18,{"$f":"IF(Liste!C22=0,\" \",Liste!C22)","v":" "},{"$f":"IF(Liste!D22=0,\" \",Liste!D22)","v":" "},null,null,null,null,null,null,null,null,null,null,null,null,null,null,null,null,null,null,null,null,null,null,null,null,null," "," "]
[null,null,19,{"$f":"IF(Liste!C23=0,\" \",Liste!C23)","v":" "},{"$f":"IF(Liste!D23=0,\" \",Liste!D23)","v":" "},null,null,null,null,null,null,null,null,null,null,null,null,null,null,null,null,null,null,null,null,null,null,null,null,null," "," "]
[null,null,20,{"$f":"IF(Liste!C24=0,\" \",Liste!C24)","v":" "},{"$f":"IF(Liste!D24=0,\" \",Liste!D24)","v":" "},null,null,null,null,null,null,null,null,null,null,null,null,null,null,null,null,null,null,null,null,null,null,null,null,null," "," "]
[null,null,21,{"$f":"IF(Liste!C25=0,\" \",Liste!C25)","v":" "},{"$f":"IF(Liste!D25=0,\" \",Liste!D25)","v":" "},null,null,null,null,null,null,null,null,null,null,null,null,null,null,null,null,null,null,null,null,null,null,null,null,null," "," "]
[null,null,22,{"$f":"IF(Liste!C26=0,\" \",Liste!C26)","v":" "},{"$f":"IF(Liste!D26=0,\" \",Liste!D26)","v":" "},null,null,null,null,null,null,null,null,null,null,null,null,null,null,null,null,null,null,null,null,null,null,null,null,null," "," "]
[null,null,23,{"$f":"IF(Liste!C27=0,\" \",Liste!C27)","v":" "},{"$f":"IF(Liste!D27=0,\" \",Liste!D27)","v":" "},null,null,null,null,null,null,null,null,null,null,null,null,null,null,null,null,null,null,null,null,null,null,null,null,null," "," "]
[null,null,24,{"$f":"IF(Liste!C28=0,\" \",Liste!C28)","v":" "},{"$f":"IF(Liste!D28=0,\" \",Liste!D28)","v":" "},null,null,null,null,null,null,null,null,null,null,null,null,null,null,null,null,null,null,null,null,null,null,null,null,null," "," "]
[null,null,25,{"$f":"IF(Liste!C29=0,\" \",Liste!C29)","v":" "},{"$f":"IF(Liste!D29=0,\" \",Liste!D29)","v":" "},null,null,null,null,null,null,null,null,null,null,null,null,null,null,null,null,null,null,null,null,null,null,null,null,null," "," "]
[null,null,26,{"$f":"IF(Liste!C30=0,\" \",Liste!C30)","v":" "},{"$f":"IF(Liste!D30=0,\" \",Liste!D30)","v":" "},null,null,null,null,null,null,null,null,null,null,null,null,null,null,null,null,null,null,null,null,null,null,null,null,null," "," "]
[null,null,27,{"$f":"IF(Liste!C31=0,\" \",Liste!C31)","v":" "},{"$f":"IF(Liste!D31=0,\" \",Liste!D31)","v":" "},null,null,null,null,null,null,null,null,null,null,null,null,null,null,null,null,null,null,null,null,null,null,null,null,null," "," "]
[null,null,28,{"$f":"IF(Liste!C32=0,\" \",Liste!C32)","v":" "},{"$f":"IF(Liste!D32=0,\" \",Liste!D32)","v":" "},null,null,null,null,null,null,null,null,null,null,null,null,null,null,null,null,null,null,null,null,null,null,null,null,null," "," "]
[null,null,29,{"$f":"IF(Liste!C33=0,\" \",Liste!C33)","v":" "},{"$f":"IF(Liste!D33=0,\" \",Liste!D33)","v":" "},null,null,null,null,null,null,null,null,null,null,null,null,null,null,null,null,null,null,null,null,null,null,null,null,null," "," "]
[null,null,30,{"$f":"IF(Liste!C34=0,\" \",Liste!C34)","v":" "},{"$f":"IF(Liste!D34=0,\" \",Liste!D34)","v":" "},null,null,null,null,null,null,null,null,null,null,null,null,null,null,null,null,null,null,null,null,null,null,null,null,null," "," "]
[null,null,31,{"$f":"IF(Liste!C35=0,\" \",Liste!C35)","v":" "},{"$f":"IF(Liste!D35=0,\" \",Liste!D35)","v":" "},null,null,null,null,null,null,null,null,null,null,null,null,null,null,null,null,null,null,null,null,null,null,null,null,null," "," "]
[null,null,32,{"$f":"IF(Liste!C36=0,\" \",Liste!C36)","v":" "},{"$f":"IF(Liste!D36=0,\" \",Liste!D36)","v":" "},null,null,null,null,null,null,null,null,null,null,null,null,null,null,null,null,null,null,null,null,null,null,null,null,null," "," "]
[null,null,33,{"$f":"IF(Liste!C37=0,\" \",Liste!C37)","v":" "},{"$f":"IF(Liste!D37=0,\" \",Liste!D37)","v":" "},null,null,null,null,null,null,null,null,null,null,null,null,null,null,null,null,null,null,null,null,null,null,null,null,null," "," "]
[null,null,34,{"$f":"IF(Liste!C38=0,\" \",Liste!C38)","v":" "},{"$f":"IF(Liste!D38=0,\" \",Liste!D38)","v":" "},null,null,null,null,null,null,null,null,null,null,null,null,null,null,null,null,null,null,null,null,null,null,null,null,null," "," "]
[null,null,35,{"$f":"IF(Liste!C39=0,\" \",Liste!C39)","v":" "},{"$f":"IF(Liste!D39=0,\" \",Liste!D39)","v":" "},null,null,null,null,null,null,null,null,null,null,null,null,null,null,null,null,null,null,null,null,null,null,null,null,null," "," "]
[null,null,"SORULARA GÖRE BAŞARI (%)",null,null,{"$f":"IF(F9=0,\" \",((SUM(F38:F72)/COUNT(F38:F72))*100)/F9)","v":20},{"$f":"IF(F10=0,\" \",((SUM(G38:G72)/COUNT(G38:G72))*100)/F10)","v":27},{"$f":"IF(F11=0,\" \",((SUM(H38:H72)/COUNT(H38:H72))*100)/F11)","v":25},{"$f":"IF(F12=0,\" \",((SUM(I38:I72)/COUNT(I38:I72))*100)/F12)","v":40},{"$f":"IF(F13=0,\" \",((SUM(J38:J72)/COUNT(J38:J72))*100)/F13)","v":53},{"$f":"IF(F14=0,\" \",((SUM(K38:K72)/COUNT(K38:K72))*100)/F14)","v":66},{"$f":"IF(F15=0,\" \",((SUM(L38:L72)/COUNT(L38:L72))*100)/F15)","v":12},{"$f":"IF(F16=0,\" \",((SUM(M38:M72)/COUNT(M38:M72))*100)/F16)","v":20},{"$f":"IF(F17=0,\" \",((SUM(N38:N72)/COUNT(N38:N72))*100)/F17)","v":95},{"$f":"IF(F18=0,\" \",((SUM(O38:O72)/COUNT(O38:O72))*100)/F18)","v":35},{"$f":"IF(F19=0,\" \",((SUM(P38:P72)/COUNT(P38:P72))*100)/F19)","v":" "},{"$f":"IF(F20=0,\" \",((SUM(Q38:Q72)/COUNT(Q38:Q72))*100)/F20)","v":" "},{"$f":"IF(F21=0,\" \",((SUM(R38:R72)/COUNT(R38:R72))*100)/F21)","v":" "},{"$f":"IF(F22=0,\" \",((SUM(S38:S72)/COUNT(S38:S72))*100)/F22)","v":" "},{"$f":"IF(F23=0,\" \",((SUM(T38:T72)/COUNT(T38:T72))*100)/F23)","v":" "},{"$f":"IF(F24=0,\" \",((SUM(U38:U72)/COUNT(U38:U72))*100)/F24)","v":" "},{"$f":"IF(F25=0,\" \",((SUM(V38:V72)/COUNT(V38:V72))*100)/F25)","v":" "},{"$f":"IF(F26=0,\" \",((SUM(W38:W72)/COUNT(W38:W72))*100)/F26)","v":" "},{"$f":"IF(F27=0,\" \",((SUM(X38:X72)/COUNT(X38:X72))*100)/F27)","v":" "},{"$f":"IF(F28=0,\" \",((SUM(Y38:Y72)/COUNT(Y38:Y72))*100)/F28)","v":" "},{"$f":"IF(F29=0,\" \",((SUM(Z38:Z72)/COUNT(Z38:Z72))*100)/F29)","v":" "},{"$f":"IF(F30=0,\" \",((SUM(AA38:AA72)/COUNT(AA38:AA72))*100)/F30)","v":" "},{"$f":"IF(F31=0,\" \",((SUM(AB38:AB72)/COUNT(AB38:AB72))*100)/F31)","v":" "},{"$f":"IF(F32=0,\" \",((SUM(AC38:AC72)/COUNT(AC38:AC72))*100)/F32)","v":" "},{"$f":"IF(F33=0,\" \",((SUM(AD38:AD72)/COUNT(AD38:AD72))*100)/F33)","v":" "}]
[]
[]
[null,null,null,null,null,null,null,null,null,null,null,null,null,null,null,null,null,null,null,null,null,null,null,null,null,null,null,{"$f":"TODAY()","v":"2024-01-08"}]
[null,null,null,null,null,null,null,null,null,null,null,null,null,null,null,null,null,null,null,null,null,null,null,null,null,null,null,{"$f":"Liste!H10","v":"YUNUS EFİLOĞLU"}]
[null,null,null,null,null,null,null,null,null,null,null,null,null,null,null,null,null,null,null,null,null,null,null,null,null,null,null,"Okul Müdürü"]

{"sheet":"1.Dön-3.Sınav","index":3,"n_rows":78,"n_cols":36,"rows_kept":78,"cut":false,"hidden":false,"merged":[[1,2,1,31],[1,33,1,35],[2,2,2,3],[2,4,2,5],[2,6,2,9],[2,10,2,15],[2,17,3,31],[2,33,2,35],[3,2,3,3],[3,4,3,5],[3,6,3,9],[3,10,3,15],[4,2,4,3],[4,4,4,5],[4,6,4,9],[4,10,4,15],[4,17,4,28],[4,29,4,30],[4,33,6,35],[5,2,5,3],[5,4,5,5],[5,6,5,9],[5,10,5,15],[5,17,5,31],[6,17,9,31],[7,2,7,4],[7,7,7,15],[8,3,8,4],[8,7,8,13],[8,14,8,15],[9,3,9,4],[9,7,9,13],[9,14,9,15],[10,3,10,4],[10,7,10,13],[10,14,10,15],[10,17,13,31],[11,3,11,4],[11,7,11,13],[11,14,11,15],[12,3,12,4],[12,7,12,13],[12,14,12,15],[17,3,17,4],[17,7,17,31],[13,3,13,4],[13,7,13,15],[14,3,14,4],[14,7,14,13],[14,14,14,15],[14,28,14,31],[15,3,15,4],[15,7,15,13],[15,14,15,15],[15,28,15,31],[16,3,16,4],[29,3,29,4],[18,3,18,4],[19,3,19,4],[20,3,20,4],[21,3,21,4],[22,3,22,4],[23,3,23,4],[24,3,24,4],[25,3,25,4],[26,3,26,4],[27,3,27,4],[28,3,28,4],[77,27,77,31],[30,3,30,4],[31,3,31,4],[32,3,32,4],[33,2,33,4],[35,2,35,4],[35,5,35,29],[35,30,36,30],[35,31,36,31],[72,2,72,4],[75,27,75,31],[76,27,76,31]]}
[]
[null,null,"SORU ANALİZİ VE SINAV BAŞARI DEĞERLENDİRMESİ",null,null,null,null,null,null,null,null,null,null,null,null,null,null,null,null,null,null,null,null,null,null,null,null,null,null,null,null,null,null,"Orhan Zeki KOCAMAN"]
[null,null,"Okul ",null,{"$f":"Liste!G4&Liste!H4","v":":OLTU NENEHATUN MESLEKİ  VE TEKNİK ANADOLU LİSESİ"},null,"Sınıf ",null,null,null,{"$f":"Liste!G6&\" \"&Liste!H6","v":": 9/A"},null,null,null,null,null,null,"SINAVIN DEĞERLENDİRİLMESİ",null,null,null,null,null,null,null,null,null,null,null,null,null,null,null,"www.ahgal.meb.k12.tr"]
[null,null,"Öğretim Yılı ",null,{"$f":"Liste!G5&Liste!H5","v":":2023-2024"},null,"Sınav No",null,null,null,": 3.Sınav"]
[null,null,"Dönem ",null,": 1.Dönem",null,"Ders",null,null,null,{"$f":"Liste!G8&\" \"&Liste!H7","v":": "},null,null,null,null,null,null,"Yapılan sınavda sınıfın genel başarı yüzdesi",null,null,null,null,null,null,null,null,null,null,null,{"$f":"O16","v":{"$error":"#DIV/0!"}},null,"olmuştur.",null,"Buraya dokunmayınız. Yazıcıda bu kısım çıkmaz.Formüller için gereklidir. Sakın Silmeyin…"]
[null,null,"Öğretmen",null,{"$f":"Liste!G7&Liste!H8","v":":YUNUS EFİLOĞLU"},null,null,null,null,null,null,null,null,null,null,null,null,"Aşağıda belirtilen konularda başarı oranı %50 nin altında kalmıştır."]
[null,null,null,null,null,null,null,null,null,null,null,null,null,null,null,null,null,{"$f":"CONCATENATE(AJ9,AJ10,AJ11,AJ12,AJ13,AJ14,AJ15,AJ16,AJ17,AJ18,AJ19,AJ20,AJ21,AJ23,AJ24,AJ25,AJ26,AJ27,AJ28,AJ29,AJ30,AJ31,AJ32,AJ33)","v":""}]
[null,null,"Soruların ilgili olduğu konular",null,null,"Puan",null,"SINAV ANALİZİ"]
[null,null,1,null,null,null,null,"GEÇMEZ alan öğrenci sayısı",null,null,null,null,null,null,{"$f":"COUNTIF(AF38:AF72,\"GEÇMEZ\")","v":0},null,null,null,null,null,null,null,null,null,null,null,null,null,null,null,null,null,null,{"$f":"IF(D9=0,\"\",D9)","v":""},{"$f":"F73","v":" "},{"$f":"IF(AI9<50,\"    * \"&AH9,\"\")","v":""}]
[null,null,2,null,null,null,null,"GEÇER alan öğrenci sayısı",null,null,null,null,null,null,{"$f":"COUNTIF(AF38:AF72,\"GEÇER\")","v":0},null,null,null,null,null,null,null,null,null,null,null,null,null,null,null,null,null,null,"",{"$f":"G73","v":" "},{"$f":"IF(AI10<50,\"    * \"&AH10,\"\")","v":""}]
[null,null,3,null,null,null,null,"ORTA alan öğrenci sayısı",null,null,null,null,null,null,{"$f":"COUNTIF(AF38:AF72,\"ORTA\")","v":0},null,null,"Başarının düşük olduğu bu konular sınıfta ilan edildi. Sınav soruları  sınıfta çözüldü. Özellikle bu konular üzerinde ayrıntılı olarak açıklama yapıldı. Yapılan hatalar vurgulandı.",null,null,null,null,null,null,null,null,null,null,null,null,null,null,null,"",{"$f":"H73","v":" "},""]
[null,null,4,null,null,null,null,"İYİ alan öğrenci sayısı",null,null,null,null,null,null,{"$f":"COUNTIF(AF38:AF72,\"İYİ\")","v":0},null,null,null,null,null,null,null,null,null,null,null,null,null,null,null,null,null,null,"",{"$f":"I73","v":" "},""]
[null,null,5,null,null,null,null,"PEKİYİ alan öğrenci sayısı",null,null,null,null,null,null,{"$f":"COUNTIF(AF38:AF72,\"PEKİYİ\")","v":0},null,null,null,null,null,null,null,null,null,null,null,null,null,null,null,null,null,null,"",{"$f":"J73","v":" "},""]
[null,null,6,null,null,null,null,null,null,null,null,null,null,null,null,null,null,null,null,null,null,null,null,null,null,null,null,null,null,null,null,null,null,"",{"$f":"K73","v":" "},""]
[null,null,7,null,null,null,null,"Alınan puanların ortalaması",null,null,null,null,null,null,{"$f":"IF(COUNT(AE38:AE72)=0,\" \",SUM(AE38:AE72)/COUNT(AE38:AE72))","v":" "},null,null,null,null,null,null,null,null,null,null,null,null,null,{"$f":"Liste!H8","v":"YUNUS EFİLOĞLU"},null,null,null,null,"",{"$f":"L73","v":" "},""]
[null,null,8,null,null,null,null,"Sınıfın Başarı Yüzdesi",null,null,null,null,null,null,{"$f":"SUM(O10:O13)/SUM(O9:O14)","v":{"$error":"#DIV/0!"}},null,null,null,null,null,null,null,null,null,null,null,null,null,{"$f":"Liste!H9","v":"Yiyecek İçecek Hizmetleri"},null,null,null,null,"",{"$f":"M73","v":" "},""]
[null,null,9,null,null,null,null,null,null,null,null,null,null,null,null,null,null,null,null,null,null,null,null,null,null,null,null,null,null,null,null,null,null,"",{"$f":"N73","v":" "},""]
[null,null,10,null,null,null,null,"GRAFİK ANALİZ",null,null,null,null,null,null,null,null,null,null,null,null,null,null,null,null,null,null,null,null,null,null,null,null,null,"",{"$f":"O73","v":" "},""]
[null,null,11,null,null,null,null,null,null,null,null,null,null,null,null,null,null,null,null,null,null,null,null,null,null,null,null,null,null,null,null,null,null,"",{"$f":"P73","v":" "},""]
[null,null,12,null,null,null,null,null,null,null,null,null,null,null,null,null,null,null,null,null,null,null,null,null,null,null,null,null,null,null,null,null,null,"",{"$f":"Q73","v":" "},""]
[null,null,13,null,null,null,null,null,null,null,null,null,null,null,null,null,null,null,null,null,null,null,null,null,null,null,null,null,null,null,null,null,null,"",{"$f":"R73","v":" "},""]
[null,null,14,null,null,null,null,null,null,null,null,null,null,null,null,null,null,null,null,null,null,null,null,null,null,null,null,null,null,null,null,null,null,"",{"$f":"S73","v":" "},""]
[null,null,15,null,null,null,null,null,null,null,null,null,null,null,null,null,null,null,null,null,null,null,null,null,null,null,null,null,null,null,null,null,null,"",{"$f":"T73","v":" "},""]
[null,null,16,null,null,null,null,null,null,null,null,null,null,null,null,null,null,null,null,null,null,null,null,null,null,null,null,null,null,null,null,null,null,"",{"$f":"U73","v":" "},""]
[null,null,17,null,null,null,null,null,null,null,null,null,null,null,null,null,null,null,null,null,null,null,null,null,null,null,null,null,null,null,null,null,null,"",{"$f":"V73","v":" "},""]
[null,null,18,null,null,null,null,null,null,null,null,null,null,null,null,null,null,null,null,null,null,null,null,null,null,null,null,null,null,null,null,null,null,"",{"$f":"W73","v":" "},""]
[null,null,19,null,null,null,null,null,null,null,null,null,null,null,null,null,null,null,null,null,null,null,null,null,null,null,null,null,null,null,null,null,null,"",{"$f":"X73","v":" "},""]
[null,null,20,null,null,null,null,null,null,null,null,null,null,null,null,null,null,null,null,null,null,null,null,null,null,null,null,null,null,null,null,null,null,"",{"$f":"Y73","v":" "},""]
[null,null,21,null,null,null,null,null,null,null,null,null,null,null,null,null,null,null,null,null,null,null,null,null,null,null,null,null,null,null,null,null,null,"",{"$f":"Z73","v":" "},""]
[null,null,22,null,null,null,null,null,null,null,null,null,null,null,null,null,null,null,null,null,null,null,null,null,null,null,null,null,null,null,null,null,null,"",{"$f":"AA73","v":" "},""]
[null,null,23,null,null,null,null,null,null,null,null,null,null,null,null,null,null,null,null,null,null,null,null,null,null,null,null,null,null,null,null,null,null,"",{"$f":"AB73","v":" "},""]
[null,null,24,null,null,null,null,null,null,null,null,null,null,null,null,null,null,null,null,null,null,null,null,null,null,null,null,null,null,null,null,null,null,"",{"$f":"AC73","v":" "},""]
[null,null,25,null,null,null,null,null,null,null,null,null,null,null,null,null,null,null,null,null,null,null,null,null,null,null,null,null,null,null,null,null,null,"",{"$f":"AD73","v":" "},""]
[null,null,"TOPLAM",null,null,{"$f":"SUM(F9:F33)","v":0}]
[]
[null,null,"ÖĞRENCİNİN",null,null,"SORULAR",null,null,null,null,null,null,null,null,null,null,null,null,null,null,null,null,null,null,null,null,null,null,null,null,"PUAN","SONUÇ"]
[null,null,"SIRA\nNO","OKUL\n NO","ADI VE SOYADI",1,2,3,4,5,6,7,8,9,10,11,12,13,14,15,16,17,18,19,20,21,22,23,24,25]
[null,null,1,{"$f":"IF(Liste!$C5=0,\" \",Liste!C5)","v":" "},{"$f":"IF(Liste!$D5=0,\" \",Liste!$D5)","v":" "},null,null,null,null,null,null,null,null,null,null,null,null,null,null,null,null,null,null,null,null,null,null,null,null,null,{"$f":"IF(COUNTBLANK(F38:AD38)=COLUMNS(F38:AD38),\" \",IF(SUM(F38:AD38)=0,0,SUM(F38:AD38)))","v":" "},{"$f":"IF(AE38=\" \",\" \",IF(AE38>=85,\"PEKİYİ\",IF(AE38>=70,\"İYİ\",IF(AE38>=60,\"ORTA\",IF(AE38>=50,\"GEÇER\",IF(AE38<50,\"GEÇMEZ\"))))))","v":" "}]
[null,null,2,{"$f":"IF(Liste!C6=0,\" \",Liste!C6)","v":" "},{"$f":"IF(Liste!D6=0,\" \",Liste!D6)","v":" "},null,null,null,null,null,null,null,null,null,null,null,null,null,null,null,null,null,null,null,null,null,null,null,null,null," ",{"$f":"IF(AE39=\" \",\" \",IF(AE39>=85,\"PEKİYİ\",IF(AE39>=70,\"İYİ\",IF(AE39>=60,\"ORTA\",IF(AE39>=50,\"GEÇER\",IF(AE39<50,\"GEÇMEZ\",0))))))","v":" "}]
[null,null,3,{"$f":"IF(Liste!C7=0,\" \",Liste!C7)","v":" "},{"$f":"IF(Liste!D7=0,\" \",Liste!D7)","v":" "},null,null,null,null,null,null,null,null,null,null,null,null,null,null,null,null,null,null,null,null,null,null,null,null,null," "," "]
[null,null,4,{"$f":"IF(Liste!C8=0,\" \",Liste!C8)","v":" "},{"$f":"IF(Liste!D8=0,\" \",Liste!D8)","v":" "},null,null,null,null,null,null,null,null,null,null,null,null,null,null,null,null,null,null,null,null,null,null,null,null,null," "," "]
[null,null,5,{"$f":"IF(Liste!C9=0,\" \",Liste!C9)","v":" "},{"$f":"IF(Liste!D9=0,\" \",Liste!D9)","v":" "},null,null,null,null,null,null,null,null,null,null,null,null,null,null,null,null,null,null,null,null,null,null,null,null,null," "," "]
[null,null,6,{"$f":"IF(Liste!C10=0,\" \",Liste!C10)","v":" "},{"$f":"IF(Liste!D10=0,\" \",Liste!D10)","v":" "},null,null,null,null,null,null,null,null,null,null,null,null,null,null,null,null,null,null,null,null,null,null,null,null,null," "," "]
[null,null,7,{"$f":"IF(Liste!C11=0,\" \",Liste!C11)","v":" "},{"$f":"IF(Liste!D11=0,\" \",Liste!D11)","v":" "},null,null,null,null,null,null,null,null,null,null,null,null,null,null,null,null,null,null,null,null,null,null,null,null,null," "," "]
[null,null,8,{"$f":"IF(Liste!C12=0,\" \",Liste!C12)","v":" "},{"$f":"IF(Liste!D12=0,\" \",Liste!D12)","v":" "},null,null,null,null,null,null,null,null,null,null,null,null,null,null,null,null,null,null,null,null,null,null,null,null,null," "," "]
[null,null,9,{"$f":"IF(Liste!C13=0,\" \",Liste!C13)","v":" "},{"$f":"IF(Liste!D13=0,\" \",Liste!D13)","v":" "},null,null,null,null,null,null,null,null,null,null,null,null,null,null,null,null,null,null,null,null,null,null,null,null,null," "," "]
[null,null,10,{"$f":"IF(Liste!C14=0,\" \",Liste!C14)","v":" "},{"$f":"IF(Liste!D14=0,\" \",Liste!D14)","v":" "},null,null,null,null,null,null,null,null,null,null,null,null,null,null,null,null,null,null,null,null,null,null,null,null,null," "," "]
[null,null,11,{"$f":"IF(Liste!C15=0,\" \",Liste!C15)","v":" "},{"$f":"IF(Liste!D15=0,\" \",Liste!D15)","v":" "},null,null,null,null,null,null,null,null,null,null,null,null,null,null,null,null,null,null,null,null,null,null,null,null,null," "," "]
[null,null,12,{"$f":"IF(Liste!C16=0,\" \",Liste!C16)","v":" "},{"$f":"IF(Liste!D16=0,\" \",Liste!D16)","v":" "},null,null,null,null,null,null,null,null,null,null,null,null,null,null,null,null,null,null,null,null,null,null,null,null,null," "," "]
[null,null,13,{"$f":"IF(Liste!C17=0,\" \",Liste!C17)","v":" "},{"$f":"IF(Liste!D17=0,\" \",Liste!D17)","v":" "},null,null,null,null,null,null,null,null,null,null,null,null,null,null,null,null,null,null,null,null,null,null,null,null,null," "," "]
[null,null,14,{"$f":"IF(Liste!C18=0,\" \",Liste!C18)","v":" "},{"$f":"IF(Liste!D18=0,\" \",Liste!D18)","v":" "},null,null,null,null,null,null,null,null,null,null,null,null,null,null,null,null,null,null,null,null,null,null,null,null,null," "," "]
[null,null,15,{"$f":"IF(Liste!C19=0,\" \",Liste!C19)","v":" "},{"$f":"IF(Liste!D19=0,\" \",Liste!D19)","v":" "},null,null,null,null,null,null,null,null,null,null,null,null,null,null,null,null,null,null,null,null,null,null,null,null,null," "," "]
[null,null,16,{"$f":"IF(Liste!C20=0,\" \",Liste!C20)","v":" "},{"$f":"IF(Liste!D20=0,\" \",Liste!D20)","v":" "},null,null,null,null,null,null,null,null,null,null,null,null,null,null,null,null,null,null,null,null,null,null,null,null,null," "," "]
[null,null,17,{"$f":"IF(Liste!C21=0,\" \",Liste!C21)","v":" "},{"$f":"IF(Liste!D21=0,\" \",Liste!D21)","v":" "},null,null,null,null,null,null,null,null,null,null,null,null,null,null,null,null,null,null,null,null,null,null,null,null,null," "," "]
[null,null,18,{"$f":"IF(Liste!C22=0,\" \",Liste!C22)","v":" "},{"$f":"IF(Liste!D22=0,\" \",Liste!D22)","v":" "},null,null,null,null,null,null,null,null,null,null,null,null,null,null,null,null,null,null,null,null,null,null,null,null,null," "," "]
[null,null,19,{"$f":"IF(Liste!C23=0,\" \",Liste!C23)","v":" "},{"$f":"IF(Liste!D23=0,\" \",Liste!D23)","v":" "},null,null,null,null,null,null,null,null,null,null,null,null,null,null,null,null,null,null,null,null,null,null,null,null,null," "," "]
[null,null,20,{"$f":"IF(Liste!C24=0,\" \",Liste!C24)","v":" "},{"$f":"IF(Liste!D24=0,\" \",Liste!D24)","v":" "},null,null,null,null,null,null,null,null,null,null,null,null,null,null,null,null,null,null,null,null,null,null,null,null,null," "," "]
[null,null,21,{"$f":"IF(Liste!C25=0,\" \",Liste!C25)","v":" "},{"$f":"IF(Liste!D25=0,\" \",Liste!D25)","v":" "},null,null,null,null,null,null,null,null,null,null,null,null,null,null,null,null,null,null,null,null,null,null,null,null,null," "," "]
[null,null,22,{"$f":"IF(Liste!C26=0,\" \",Liste!C26)","v":" "},{"$f":"IF(Liste!D26=0,\" \",Liste!D26)","v":" "},null,null,null,null,null,null,null,null,null,null,null,null,null,null,null,null,null,null,null,null,null,null,null,null,null," "," "]
[null,null,23,{"$f":"IF(Liste!C27=0,\" \",Liste!C27)","v":" "},{"$f":"IF(Liste!D27=0,\" \",Liste!D27)","v":" "},null,null,null,null,null,null,null,null,null,null,null,null,null,null,null,null,null,null,null,null,null,null,null,null,null," "," "]
[null,null,24,{"$f":"IF(Liste!C28=0,\" \",Liste!C28)","v":" "},{"$f":"IF(Liste!D28=0,\" \",Liste!D28)","v":" "},null,null,null,null,null,null,null,null,null,null,null,null,null,null,null,null,null,null,null,null,null,null,null,null,null," "," "]
[null,null,25,{"$f":"IF(Liste!C29=0,\" \",Liste!C29)","v":" "},{"$f":"IF(Liste!D29=0,\" \",Liste!D29)","v":" "},null,null,null,null,null,null,null,null,null,null,null,null,null,null,null,null,null,null,null,null,null,null,null,null,null," "," "]
[null,null,26,{"$f":"IF(Liste!C30=0,\" \",Liste!C30)","v":" "},{"$f":"IF(Liste!D30=0,\" \",Liste!D30)","v":" "},null,null,null,null,null,null,null,null,null,null,null,null,null,null,null,null,null,null,null,null,null,null,null,null,null," "," "]
[null,null,27,{"$f":"IF(Liste!C31=0,\" \",Liste!C31)","v":" "},{"$f":"IF(Liste!D31=0,\" \",Liste!D31)","v":" "},null,null,null,null,null,null,null,null,null,null,null,null,null,null,null,null,null,null,null,null,null,null,null,null,null," "," "]
[null,null,28,{"$f":"IF(Liste!C32=0,\" \",Liste!C32)","v":" "},{"$f":"IF(Liste!D32=0,\" \",Liste!D32)","v":" "},null,null,null,null,null,null,null,null,null,null,null,null,null,null,null,null,null,null,null,null,null,null,null,null,null," "," "]
[null,null,29,{"$f":"IF(Liste!C33=0,\" \",Liste!C33)","v":" "},{"$f":"IF(Liste!D33=0,\" \",Liste!D33)","v":" "},null,null,null,null,null,null,null,null,null,null,null,null,null,null,null,null,null,null,null,null,null,null,null,null,null," "," "]
[null,null,30,{"$f":"IF(Liste!C34=0,\" \",Liste!C34)","v":" "},{"$f":"IF(Liste!D34=0,\" \",Liste!D34)","v":" "},null,null,null,null,null,null,null,null,null,null,null,null,null,null,null,null,null,null,null,null,null,null,null,null,null," "," "]
[null,null,31,{"$f":"IF(Liste!C35=0,\" \",Liste!C35)","v":" "},{"$f":"IF(Liste!D35=0,\" \",Liste!D35)","v":" "},null,null,null,null,null,null,null,null,null,null,null,null,null,null,null,null,null,null,null,null,null,null,null,null,null," "," "]
[null,null,32,{"$f":"IF(Liste!C36=0,\" \",Liste!C36)","v":" "},{"$f":"IF(Liste!D36=0,\" \",Liste!D36)","v":" "},null,null,null,null,null,null,null,null,null,null,null,null,null,null,null,null,null,null,null,null,null,null,null,null,null," "," "]
[null,null,33,{"$f":"IF(Liste!C37=0,\" \",Liste!C37)","v":" "},{"$f":"IF(Liste!D37=0,\" \",Liste!D37)","v":" "},null,null,null,null,null,null,null,null,null,null,null,null,null,null,null,null,null,null,null,null,null,null,null,null,null," "," "]
[null,null,34,{"$f":"IF(Liste!C38=0,\" \",Liste!C38)","v":" "},{"$f":"IF(Liste!D38=0,\" \",Liste!D38)","v":" "},null,null,null,null,null,null,null,null,null,null,null,null,null,null,null,null,null,null,null,null,null,null,null,null,null," "," "]
[null,null,35,{"$f":"IF(Liste!C39=0,\" \",Liste!C39)","v":" "},{"$f":"IF(Liste!D39=0,\" \",Liste!D39)","v":" "},null,null,null,null,null,null,null,null,null,null,null,null,null,null,null,null,null,null,null,null,null,null,null,null,null," "," "]
[null,null,"SORULARA GÖRE BAŞARI (%)",null,null,{"$f":"IF(F9=0,\" \",((SUM(F38:F72)/COUNT(F38:F72))*100)/F9)","v":" "},{"$f":"IF(F10=0,\" \",((SUM(G38:G72)/COUNT(G38:G72))*100)/F10)","v":" "},{"$f":"IF(F11=0,\" \",((SUM(H38:H72)/COUNT(H38:H72))*100)/F11)","v":" "},{"$f":"IF(F12=0,\" \",((SUM(I38:I72)/COUNT(I38:I72))*100)/F12)","v":" "},{"$f":"IF(F13=0,\" \",((SUM(J38:J72)/COUNT(J38:J72))*100)/F13)","v":" "},{"$f":"IF(F14=0,\" \",((SUM(K38:K72)/COUNT(K38:K72))*100)/F14)","v":" "},{"$f":"IF(F15=0,\" \",((SUM(L38:L72)/COUNT(L38:L72))*100)/F15)","v":" "},{"$f":"IF(F16=0,\" \",((SUM(M38:M72)/COUNT(M38:M72))*100)/F16)","v":" "},{"$f":"IF(F17=0,\" \",((SUM(N38:N72)/COUNT(N38:N72))*100)/F17)","v":" "},{"$f":"IF(F18=0,\" \",((SUM(O38:O72)/COUNT(O38:O72))*100)/F18)","v":" "},{"$f":"IF(F19=0,\" \",((SUM(P38:P72)/COUNT(P38:P72))*100)/F19)","v":" "},{"$f":"IF(F20=0,\" \",((SUM(Q38:Q72)/COUNT(Q38:Q72))*100)/F20)","v":" "},{"$f":"IF(F21=0,\" \",((SUM(R38:R72)/COUNT(R38:R72))*100)/F21)","v":" "},{"$f":"IF(F22=0,\" \",((SUM(S38:S72)/COUNT(S38:S72))*100)/F22)","v":" "},{"$f":"IF(F23=0,\" \",((SUM(T38:T72)/COUNT(T38:T72))*100)/F23)","v":" "},{"$f":"IF(F24=0,\" \",((SUM(U38:U72)/COUNT(U38:U72))*100)/F24)","v":" "},{"$f":"IF(F25=0,\" \",((SUM(V38:V72)/COUNT(V38:V72))*100)/F25)","v":" "},{"$f":"IF(F26=0,\" \",((SUM(W38:W72)/COUNT(W38:W72))*100)/F26)","v":" "},{"$f":"IF(F27=0,\" \",((SUM(X38:X72)/COUNT(X38:X72))*100)/F27)","v":" "},{"$f":"IF(F28=0,\" \",((SUM(Y38:Y72)/COUNT(Y38:Y72))*100)/F28)","v":" "},{"$f":"IF(F29=0,\" \",((SUM(Z38:Z72)/COUNT(Z38:Z72))*100)/F29)","v":" "},{"$f":"IF(F30=0,\" \",((SUM(AA38:AA72)/COUNT(AA38:AA72))*100)/F30)","v":" "},{"$f":"IF(F31=0,\" \",((SUM(AB38:AB72)/COUNT(AB38:AB72))*100)/F31)","v":" "},{"$f":"IF(F32=0,\" \",((SUM(AC38:AC72)/COUNT(AC38:AC72))*100)/F32)","v":" "},{"$f":"IF(F33=0,\" \",((SUM(AD38:AD72)/COUNT(AD38:AD72))*100)/F33)","v":" "}]
[]
[]
[null,null,null,null,null,null,null,null,null,null,null,null,null,null,null,null,null,null,null,null,null,null,null,null,null,null,null,{"$f":"TODAY()","v":"2024-01-08"}]
[null,null,null,null,null,null,null,null,null,null,null,null,null,null,null,null,null,null,null,null,null,null,null,null,null,null,null,{"$f":"Liste!H10","v":"YUNUS EFİLOĞLU"}]
[null,null,null,null,null,null,null,null,null,null,null,null,null,null,null,null,null,null,null,null,null,null,null,null,null,null,null,"Okul Müdürü"]

{"sheet":"1.Dön-1.Per","index":4,"n_rows":25,"n_cols":80,"rows_kept":25,"cut":false,"hidden":false,"merged":[[1,1,1,37],[3,2,3,13],[4,2,4,13],[5,2,5,13],[7,1,8,1],[7,2,8,2],[3,25,3,28],[3,29,3,34],[4,29,4,34],[4,25,4,28],[23,28,23,36],[5,29,5,34],[5,25,5,28],[24,2,24,10],[24,28,24,36],[19,1,19,37],[21,2,21,10],[21,28,21,36],[22,2,22,10],[22,28,22,36],[23,2,23,10]]}
[]
[null,"PERFORMANS DEĞERLENDİRME ÇİZELGESİ"]
[]
[null,"Okul ",{"$f":"\": \"&Liste!H4","v":": OLTU NENEHATUN MESLEKİ  VE TEKNİK ANADOLU LİSESİ"},null,null,null,null,null,null,null,null,null,null,null,null,null,null,null,null,null,null,null,null,null,null,"Sınıf ",null,null,null,{"$f":"\": \"&Liste!H6","v":": 9/A"}]
[null,"Öğretim Yılı ",{"$f":"\": \"&Liste!H5","v":": 2023-2024"},null,null,null,null,null,null,null,null,null,null,null,null,null,null,null,null,null,null,null,null,null,null,"Ders",null,null,null,{"$f":"\": \"&Liste!H7","v":": "}]
[null,"Dönem ",": 1.Dönem",null,null,null,null,null,null,null,null,null,null,null,null,null,null,null,null,null,null,null,null,null,null,"Öğretmen",null,null,null,{"$f":"\": \"&Liste!H8","v":": YUNUS EFİLOĞLU"}]
[]
[null,"DEĞERLENDİRME ÖLÇEĞİ","ADI SOYADI",1,2,3,4,5,6,7,8,9,10,11,12,13,14,15,16,17,18,19,20,21,22,23,24,25,26,27,28,29,30,31,32,33,34,35]
[null,null,null,{"$f":"IF(Liste!$D5=0,\" \",Liste!$D5)","v":" "},{"$f":"IF(Liste!$D6=0,\" \",Liste!$D6)","v":" "},{"$f":"IF(Liste!$D7=0,\" \",Liste!$D7)","v":" "},{"$f":"IF(Liste!$D8=0,\" \",Liste!$D8)","v":" "},{"$f":"IF(Liste!$D9=0,\" \",Liste!$D9)","v":" "},{"$f":"IF(Liste!$D10=0,\" \",Liste!$D10)","v":" "},{"$f":"IF(Liste!$D11=0,\" \",Liste!$D11)","v":" "},{"$f":"IF(Liste!$D12=0,\" \",Liste!$D12)","v":" "},{"$f":"IF(Liste!$D13=0,\" \",Liste!$D13)","v":" "},{"$f":"IF(Liste!$D14=0,\" \",Liste!$D14)","v":" "},{"$f":"IF(Liste!$D15=0,\" \",Liste!$D15)","v":" "},{"$f":"IF(Liste!$D16=0,\" \",Liste!$D16)","v":" "},{"$f":"IF(Liste!$D17=0,\" \",Liste!$D17)","v":" "},{"$f":"IF(Liste!$D18=0,\" \",Liste!$D18)","v":" "},{"$f":"IF(Liste!$D19=0,\" \",Liste!$D19)","v":" "},{"$f":"IF(Liste!$D20=0,\" \",Liste!$D20)","v":" "},{"$f":"IF(Liste!$D21=0,\" \",Liste!$D21)","v":" "},{"$f":"IF(Liste!$D22=0,\" \",Liste!$D22)","v":" "},{"$f":"IF(Liste!$D23=0,\" \",Liste!$D23)","v":" "},{"$f":"IF(Liste!$D24=0,\" \",Liste!$D24)","v":" "},{"$f":"IF(Liste!$D25=0,\" \",Liste!$D25)","v":" "},{"$f":"IF(Liste!$D26=0,\" \",Liste!$D26)","v":" "},{"$f":"IF(Liste!$D27=0,\" \",Liste!$D27)","v":" "},{"$f":"IF(Liste!$D28=0,\" \",Liste!$D28)","v":" "},{"$f":"IF(Liste!$D29=0,\" \",Liste!$D29)","v":" "},{"$f":"IF(Liste!$D30=0,\" \",Liste!$D30)","v":" "},{"$f":"IF(Liste!$D31=0,\" \",Liste!$D31)","v":" "},{"$f":"IF(Liste!$D32=0,\" \",Liste!$D32)","v":" "},{"$f":"IF(Liste!$D33=0,\" \",Liste!$D33)","v":" "},{"$f":"IF(Liste!$D34=0,\" \",Liste!$D34)","v":" "},{"$f":"IF(Liste!$D35=0,\" \",Liste!$D35)","v":" "},{"$f":"IF(Liste!$D36=0,\" \",Liste!$D36)","v":" "},{"$f":"IF(Liste!$D37=0,\" \",Liste!$D37)","v":" "},{"$f":"IF(Liste!$D38=0,\" \",Liste!$D38)","v":" "},{"$f":"IF(Liste!$D39=0,\" \",Liste!$D39)","v":" "},null,null,{"$error":"#N/A"},{"$error":"#N/A"},{"$error":"#N/A"},{"$error":"#N/A"},{"$error":"#N/A"},{"$error":"#N/A"},{"$error":"#N/A"},{"$error":"#N/A"},{"$error":"#N/A"},{"$error":"#N/A"},{"$error":"#N/A"},{"$error":"#N/A"},{"$error":"#N/A"},{"$error":"#N/A"},{"$error":"#N/A"},{"$error":"#N/A"},{"$error":"#N/A"},{"$error":"#N/A"},{"$error":"#N/A"},{"$error":"#N/A"},{"$error":"#N/A"},{"$error":"#N/A"},{"$error":"#N/A"},{"$error":"#N/A"},{"$error":"#N/A"},{"$error":"#N/A"},{"$error":"#N/A"},{"$error":"#N/A"},{"$error":"#N/A"},{"$error":"#N/A"},{"$error":"#N/A"},{"$error":"#N/A"},{"$error":"#N/A"},{"$error":"#N/A"},{"$error":"#N/A"},{"$error":"#N/A"},{"$error":"#N/A"},{"$error":"#N/A"},{"$error":"#N/A"},{"$error":"#N/A"}]
[null,"ÖĞRENCİDE GÖZLENECEK ÖZELLİKLER","NO",{"$f":"IF(Liste!$C5=0,\" \",Liste!$C5)","v":" "},{"$f":"IF(Liste!$C6=0,\" \",Liste!C6)","v":" "},{"$f":"IF(Liste!$C7=0,\" \",Liste!C7)","v":" "},{"$f":"IF(Liste!$C8=0,\" \",Liste!C8)","v":" "},{"$f":"IF(Liste!$C9=0,\" \",Liste!C9)","v":" "},{"$f":"IF(Liste!$C10=0,\" \",Liste!C10)","v":" "},{"$f":"IF(Liste!$C11=0,\" \",Liste!C11)","v":" "},{"$f":"IF(Liste!$C12=0,\" \",Liste!C12)","v":" "},{"$f":"IF(Liste!$C13=0,\" \",Liste!C13)","v":" "},{"$f":"IF(Liste!$C14=0,\" \",Liste!C14)","v":" "},{"$f":"IF(Liste!$C15=0,\" \",Liste!C15)","v":" "},{"$f":"IF(Liste!$C16=0,\" \",Liste!C16)","v":" "},{"$f":"IF(Liste!$C17=0,\" \",Liste!C17)","v":" "},{"$f":"IF(Liste!$C18=0,\" \",Liste!C18)","v":" "},{"$f":"IF(Liste!$C19=0,\" \",Liste!C19)","v":" "},{"$f":"IF(Liste!$C20=0,\" \",Liste!C20)","v":" "},{"$f":"IF(Liste!$C21=0,\" \",Liste!C21)","v":" "},{"$f":"IF(Liste!$C22=0,\" \",Liste!C22)","v":" "},{"$f":"IF(Liste!$C23=0,\" \",Liste!C23)","v":" "},{"$f":"IF(Liste!$C24=0,\" \",Liste!C24)","v":" "},{"$f":"IF(Liste!$C25=0,\" \",Liste!C25)","v":" "},{"$f":"IF(Liste!$C26=0,\" \",Liste!C26)","v":" "},{"$f":"IF(Liste!$C27=0,\" \",Liste!C27)","v":" "},{"$f":"IF(Liste!$C28=0,\" \",Liste!C28)","v":" "},{"$f":"IF(Liste!$C29=0,\" \",Liste!C29)","v":" "},{"$f":"IF(Liste!$C30=0,\" \",Liste!C30)","v":" "},{"$f":"IF(Liste!$C31=0,\" \",Liste!C31)","v":" "},{"$f":"IF(Liste!$C32=0,\" \",Liste!C32)","v":" "},{"$f":"IF(Liste!$C33=0,\" \",Liste!C33)","v":" "},{"$f":"IF(Liste!$C34=0,\" \",Liste!C34)","v":" "},{"$f":"IF(Liste!$C35=0,\" \",Liste!C35)","v":" "},{"$f":"IF(Liste!$C36=0,\" \",Liste!C36)","v":" "},{"$f":"IF(Liste!$C37=0,\" \",Liste!C37)","v":" "},{"$f":"IF(Liste!$C38=0,\" \",Liste!C38)","v":" "},{"$f":"IF(Liste!$C39=0,\" \",Liste!C39)","v":" "}]
[null,"Ödevin nasıl yapılacağını planlamıştır",10]
[null,"Ödevi hazırlarken çeşitli kaynaklardan yararlanmıştır",10]
[null,"Performans ödevinde çalışılmak üzere seçilen konunun raporlaştırılmasında ulaşılan kaynaklardaki bilgilerden yeterince yararlanmıştır",10]
[null,"Performans ödevi çeşitli görsel materyallerle desteklenmiştir",15]
[null,"Performans çalışmasında yer alan görsel materyaller,  konuya ilişkin özet bilgiler ile desteklenmiştir.",15]
[null,"Ödevde kullanılan kaynaklar uygun biçimde rapora yansıtılmıştır",15]
[null,"Rapor anlaşılır biçimde yazılmıştır. Oluşturulan cümleler Türkçe yazım kurallarına uygundur",5]
[null,"Ortaya çıkan performans ödevi, konunun amacına uygundur.",20]
[null,"DEĞERLENDİRMEGENEL TOPLAMI",{"$f":"SUM(C11:C18)","v":100},{"$f":"SUM(D11:D18)","v":0},{"$f":"SUM(E11:E18)","v":0},0,0,0,0,0,0,0,0,0,0,0,0,0,0,0,0,0,0,0,0,0,0,0,0,0,0,0,{"$f":"SUM(AG11:AG18)","v":0},0,0,0,0,0]
[null,"AÇIKLAMA: Bu form; Öğrencilere verilen Performans Görevi Değerlendirmesinde kullanılacaktır. Her iki dönemde her ders için doldurulacak, ders öğretmeni tarafından e-okulda BİRİNCİ PERFORMANS olarak işlenecek, öğretmen ve okul müdürüne imzalatılarak dönem sonlarında idareye teslim edilecektir."]
[]
[null,null,"……./……/20……",null,null,null,null,null,null,null,null,null,null,null,null,null,null,null,null,null,null,null,null,null,null,null,null,null,"……./……/20……"]
[null,null,"DERS ÖĞRETMENİ",null,null,null,null,null,null,null,null,null,null,null,null,null,null,null,null,null,null,null,null,null,null,null,null,null,"OKUL MÜDÜRÜ"]
[null,"ADI VE SOYADI   :",{"$f":"Liste!H8","v":"YUNUS EFİLOĞLU"},null,null,null,null,null,null,null,null,null,null,null,null,null,null,null,null,null,null,null,null,null,null,null,null,null,{"$f":"Liste!H10","v":"YUNUS EFİLOĞLU"}]
[null,"BRANŞI                :",{"$f":"Liste!H9","v":"Yiyecek İçecek Hizmetleri"}]

{"sheet":"1.Dön-1.Söz","index":5,"n_rows":27,"n_cols":80,"rows_kept":27,"cut":false,"hidden":false,"merged":[[24,2,24,10],[24,28,24,36],[25,2,25,10],[25,28,25,36],[26,2,26,10],[26,28,26,36],[5,2,5,13],[5,25,5,28],[5,29,5,34],[21,1,21,37],[23,2,23,10],[23,28,23,36],[7,1,8,1],[7,2,8,2],[1,1,1,37],[3,2,3,13],[3,25,3,28],[3,29,3,34],[4,2,4,13],[4,25,4,28],[4,29,4,34]]}
[]
[null,"SINIF İÇİ GÖZLEMLENEN PERFORMANS DEĞERLENDİRME ÇİZELGESİ"]
[]
[null,"Okul ",{"$f":"\": \"&Liste!H4","v":": OLTU NENEHATUN MESLEKİ  VE TEKNİK ANADOLU LİSESİ"},null,null,null,null,null,null,null,null,null,null,null,null,null,null,null,null,null,null,null,null,null,null,"Sınıf ",null,null,null,{"$f":"\": \"&Liste!H6","v":": 9/A"}]
[null,"Öğretim Yılı ",{"$f":"\": \"&Liste!H5","v":": 2023-2024"},null,null,null,null,null,null,null,null,null,null,null,null,null,null,null,null,null,null,null,null,null,null,"Ders",null,null,null,{"$f":"\": \"&Liste!H7","v":": "}]
[null,"Dönem ",": 1.Dönem",null,null,null,null,null,null,null,null,null,null,null,null,null,null,null,null,null,null,null,null,null,null,"Öğretmen",null,null,null,{"$f":"\": \"&Liste!H8","v":": YUNUS EFİLOĞLU"}]
[]
[null,"DEĞERLENDİRME ÖLÇEĞİ","ADI SOYADI",1,2,3,4,5,6,7,8,9,10,11,12,13,14,15,16,17,18,19,20,21,22,23,24,25,26,27,28,29,30,31,32,33,34,35]
[null,null,null,{"$f":"IF(Liste!$D5=0,\" \",Liste!$D5)","v":" "},{"$f":"IF(Liste!$D6=0,\" \",Liste!$D6)","v":" "},{"$f":"IF(Liste!$D7=0,\" \",Liste!$D7)","v":" "},{"$f":"IF(Liste!$D8=0,\" \",Liste!$D8)","v":" "},{"$f":"IF(Liste!$D9=0,\" \",Liste!$D9)","v":" "},{"$f":"IF(Liste!$D10=0,\" \",Liste!$D10)","v":" "},{"$f":"IF(Liste!$D11=0,\" \",Liste!$D11)","v":" "},{"$f":"IF(Liste!$D12=0,\" \",Liste!$D12)","v":" "},{"$f":"IF(Liste!$D13=0,\" \",Liste!$D13)","v":" "},{"$f":"IF(Liste!$D14=0,\" \",Liste!$D14)","v":" "},{"$f":"IF(Liste!$D15=0,\" \",Liste!$D15)","v":" "},{"$f":"IF(Liste!$D16=0,\" \",Liste!$D16)","v":" "},{"$f":"IF(Liste!$D17=0,\" \",Liste!$D17)","v":" "},{"$f":"IF(Liste!$D18=0,\" \",Liste!$D18)","v":" "},{"$f":"IF(Liste!$D19=0,\" \",Liste!$D19)","v":" "},{"$f":"IF(Liste!$D20=0,\" \",Liste!$D20)","v":" "},{"$f":"IF(Liste!$D21=0,\" \",Liste!$D21)","v":" "},{"$f":"IF(Liste!$D22=0,\" \",Liste!$D22)","v":" "},{"$f":"IF(Liste!$D23=0,\" \",Liste!$D23)","v":" "},{"$f":"IF(Liste!$D24=0,\" \",Liste!$D24)","v":" "},{"$f":"IF(Liste!$D25=0,\" \",Liste!$D25)","v":" "},{"$f":"IF(Liste!$D26=0,\" \",Liste!$D26)","v":" "},{"$f":"IF(Liste!$D27=0,\" \",Liste!$D27)","v":" "},{"$f":"IF(Liste!$D28=0,\" \",Liste!$D28)","v":" "},{"$f":"IF(Liste!$D29=0,\" \",Liste!$D29)","v":" "},{"$f":"IF(Liste!$D30=0,\" \",Liste!$D30)","v":" "},{"$f":"IF(Liste!$D31=0,\" \",Liste!$D31)","v":" "},{"$f":"IF(Liste!$D32=0,\" \",Liste!$D32)","v":" "},{"$f":"IF(Liste!$D33=0,\" \",Liste!$D33)","v":" "},{"$f":"IF(Liste!$D34=0,\" \",Liste!$D34)","v":" "},{"$f":"IF(Liste!$D35=0,\" \",Liste!$D35)","v":" "},{"$f":"IF(Liste!$D36=0,\" \",Liste!$D36)","v":" "},{"$f":"IF(Liste!$D37=0,\" \",Liste!$D37)","v":" "},{"$f":"IF(Liste!$D38=0,\" \",Liste!$D38)","v":" "},{"$f":"IF(Liste!$D39=0,\" \",Liste!$D39)","v":" "},null,null,{"$error":"#N/A"},{"$error":"#N/A"},{"$error":"#N/A"},{"$error":"#N/A"},{"$error":"#N/A"},{"$error":"#N/A"},{"$error":"#N/A"},{"$error":"#N/A"},{"$error":"#N/A"},{"$error":"#N/A"},{"$error":"#N/A"},{"$error":"#N/A"},{"$error":"#N/A"},{"$error":"#N/A"},{"$error":"#N/A"},{"$error":"#N/A"},{"$error":"#N/A"},{"$error":"#N/A"},{"$error":"#N/A"},{"$error":"#N/A"},{"$error":"#N/A"},{"$error":"#N/A"},{"$error":"#N/A"},{"$error":"#N/A"},{"$error":"#N/A"},{"$error":"#N/A"},{"$error":"#N/A"},{"$error":"#N/A"},{"$error":"#N/A"},{"$error":"#N/A"},{"$error":"#N/A"},{"$error":"#N/A"},{"$error":"#N/A"},{"$error":"#N/A"},{"$error":"#N/A"},{"$error":"#N/A"},{"$error":"#N/A"},{"$error":"#N/A"},{"$error":"#N/A"},{"$error":"#N/A"}]
[null,"ÖĞRENCİDE GÖZLENECEK ÖZELLİKLER","NO",{"$f":"IF(Liste!$C5=0,\" \",Liste!$C5)","v":" "},{"$f":"IF(Liste!$C6=0,\" \",Liste!C6)","v":" "},{"$f":"IF(Liste!$C7=0,\" \",Liste!C7)","v":" "},{"$f":"IF(Liste!$C8=0,\" \",Liste!C8)","v":" "},{"$f":"IF(Liste!$C9=0,\" \",Liste!C9)","v":" "},{"$f":"IF(Liste!$C10=0,\" \",Liste!C10)","v":" "},{"$f":"IF(Liste!$C11=0,\" \",Liste!C11)","v":" "},{"$f":"IF(Liste!$C12=0,\" \",Liste!C12)","v":" "},{"$f":"IF(Liste!$C13=0,\" \",Liste!C13)","v":" "},{"$f":"IF(Liste!$C14=0,\" \",Liste!C14)","v":" "},{"$f":"IF(Liste!$C15=0,\" \",Liste!C15)","v":" "},{"$f":"IF(Liste!$C16=0,\" \",Liste!C16)","v":" "},{"$f":"IF(Liste!$C17=0,\" \",Liste!C17)","v":" "},{"$f":"IF(Liste!$C18=0,\" \",Liste!C18)","v":" "},{"$f":"IF(Liste!$C19=0,\" \",Liste!C19)","v":" "},{"$f":"IF(Liste!$C20=0,\" \",Liste!C20)","v":" "},{"$f":"IF(Liste!$C21=0,\" \",Liste!C21)","v":" "},{"$f":"IF(Liste!$C22=0,\" \",Liste!C22)","v":" "},{"$f":"IF(Liste!$C23=0,\" \",Liste!C23)","v":" "},{"$f":"IF(Liste!$C24=0,\" \",Liste!C24)","v":" "},{"$f":"IF(Liste!$C25=0,\" \",Liste!C25)","v":" "},{"$f":"IF(Liste!$C26=0,\" \",Liste!C26)","v":" "},{"$f":"IF(Liste!$C27=0,\" \",Liste!C27)","v":" "},{"$f":"IF(Liste!$C28=0,\" \",Liste!C28)","v":" "},{"$f":"IF(Liste!$C29=0,\" \",Liste!C29)","v":" "},{"$f":"IF(Liste!$C30=0,\" \",Liste!C30)","v":" "},{"$f":"IF(Liste!$C31=0,\" \",Liste!C31)","v":" "},{"$f":"IF(Liste!$C32=0,\" \",Liste!C32)","v":" "},{"$f":"IF(Liste!$C33=0,\" \",Liste!C33)","v":" "},{"$f":"IF(Liste!$C34=0,\" \",Liste!C34)","v":" "},{"$f":"IF(Liste!$C35=0,\" \",Liste!C35)","v":" "},{"$f":"IF(Liste!$C36=0,\" \",Liste!C36)","v":" "},{"$f":"IF(Liste!$C37=0,\" \",Liste!C37)","v":" "},{"$f":"IF(Liste!$C38=0,\" \",Liste!C38)","v":" "},{"$f":"IF(Liste!$C39=0,\" \",Liste!C39)","v":" "}]
[null,"Derse aktif katılımı ",20]
[null,"Verilen ödevleri yapması",10]
[null,"Öğretmenlerine karşı tutumu",10]
[null,"Devam-Devamsılık",20]
[null,"Sınıf Kurallarına uyumu ",10]
[null,"Sınıf arkadaşlarına karşı tutumu ",10]
[null,"Ders araç gereci ile derslere katılım",20]
[]
[]
[]
[null,"DEĞERLENDİRMEGENEL TOPLAMI",{"$f":"SUM(C11:C20)","v":100},{"$f":"SUM(D11:D20)","v":0},{"$f":"SUM(E11:E20)","v":0},0,0,0,0,0,0,0,0,0,0,0,0,0,0,0,0,0,0,0,0,0,0,0,0,0,0,0,{"$f":"SUM(AG11:AG20)","v":0},0,0,0,0,0]
[null,"AÇIKLAMA: Bu form; her iki dönemde her ders için doldurulacak, ders öğretmeni tarafından e-okulda İKİNCİ performans/ödev/sözlü olarak işlenecek, öğretmen ve okul müdürüne imzalatılarak dönem sonlarında idareye teslim edilecektir."]
[]
[null,null,"……./……/20……",null,null,null,null,null,null,null,null,null,null,null,null,null,null,null,null,null,null,null,null,null,null,null,null,null,"……./……/20……"]
[null,null,"DERS ÖĞRETMENİ",null,null,null,null,null,null,null,null,null,null,null,null,null,null,null,null,null,null,null,null,null,null,null,null,null,"OKUL MÜDÜRÜ"]
[null,"ADI VE SOYADI   :",{"$f":"Liste!H8","v":"YUNUS EFİLOĞLU"},null,null,null,null,null,null,null,null,null,null,null,null,null,null,null,null,null,null,null,null,null,null,null,null,null,{"$f":"Liste!H10","v":"YUNUS EFİLOĞLU"}]
[null,"BRANŞI                :",{"$f":"Liste!H9","v":"Yiyecek İçecek Hizmetleri"}]

{"sheet":"2.Dön-1.Sınav","index":6,"n_rows":78,"n_cols":36,"rows_kept":78,"cut":false,"hidden":false,"merged":[[1,2,1,31],[1,33,1,35],[2,2,2,3],[2,4,2,5],[2,6,2,9],[2,10,2,15],[2,17,3,31],[2,33,2,35],[3,2,3,3],[3,4,3,5],[3,6,3,9],[3,10,3,15],[4,2,4,3],[4,4,4,5],[4,6,4,9],[4,10,4,15],[4,17,4,28],[4,29,4,30],[4,33,6,35],[5,2,5,3],[5,4,5,5],[5,6,5,9],[5,10,5,15],[5,17,5,31],[6,17,9,31],[7,2,7,4],[7,7,7,15],[8,3,8,4],[8,7,8,13],[8,14,8,15],[9,3,9,4],[9,7,9,13],[9,14,9,15],[10,3,10,4],[10,7,10,13],[10,14,10,15],[10,17,13,31],[11,3,11,4],[11,7,11,13],[11,14,11,15],[12,3,12,4],[12,7,12,13],[12,14,12,15],[17,3,17,4],[17,7,17,31],[13,3,13,4],[13,7,13,15],[14,3,14,4],[14,7,14,13],[14,14,14,15],[14,28,14,31],[15,3,15,4],[15,7,15,13],[15,14,15,15],[15,28,15,31],[16,3,16,4],[29,3,29,4],[18,3,18,4],[19,3,19,4],[20,3,20,4],[21,3,21,4],[22,3,22,4],[23,3,23,4],[24,3,24,4],[25,3,25,4],[26,3,26,4],[27,3,27,4],[28,3,28,4],[77,27,77,31],[30,3,30,4],[31,3,31,4],[32,3,32,4],[33,2,33,4],[35,2,35,4],[35,5,35,29],[35,30,36,30],[35,31,36,31],[72,2,72,4],[75,27,75,31],[76,27,76,31]]}
[]
[null,null,"SORU ANALİZİ VE SINAV BAŞARI DEĞERLENDİRMESİ",null,null,null,null,null,null,null,null,null,null,null,null,null,null,null,null,null,null,null,null,null,null,null,null,null,null,null,null,null,null,"Orhan Zeki KOCAMAN"]
[null,null,"Okul ",null,{"$f":"Liste!G4&Liste!H4","v":":OLTU NENEHATUN MESLEKİ  VE TEKNİK ANADOLU LİSESİ"},null,"Sınıf ",null,null,null,{"$f":"Liste!G6&\" \"&Liste!H6","v":": 9/A"},null,null,null,null,null,null,"SINAVIN DEĞERLENDİRİLMESİ",null,null,null,null,null,null,null,null,null,null,null,null,null,null,null,"www.ahgal.meb.k12.tr"]
[null,null,"Öğretim Yılı ",null,{"$f":"Liste!G5&Liste!H5","v":":2023-2024"},null,"Sınav No",null,null,null,": 1.Sınav"]
[null,null,"Dönem ",null,": 2.Dönem",null,"Ders",null,null,null,{"$f":"Liste!G8&\" \"&Liste!H7","v":": "},null,null,null,null,null,null,"Yapılan sınavda sınıfın genel başarı yüzdesi",null,null,null,null,null,null,null,null,null,null,null,{"$f":"O16","v":{"$error":"#DIV/0!"}},null,"olmuştur.",null,"Buraya dokunmayınız. Yazıcıda bu kısım çıkmaz.Formüller için gereklidir. Sakın Silmeyin…"]
[null,null,"Öğretmen",null,{"$f":"Liste!G7&Liste!H8","v":":YUNUS EFİLOĞLU"},null,null,null,null,null,null,null,null,null,null,null,null,"Aşağıda belirtilen konularda başarı oranı %50 nin altında kalmıştır."]
[null,null,null,null,null,null,null,null,null,null,null,null,null,null,null,null,null,{"$f":"CONCATENATE(AJ9,AJ10,AJ11,AJ12,AJ13,AJ14,AJ15,AJ16,AJ17,AJ18,AJ19,AJ20,AJ21,AJ23,AJ24,AJ25,AJ26,AJ27,AJ28,AJ29,AJ30,AJ31,AJ32,AJ33)","v":""}]
[null,null,"Soruların ilgili olduğu konular",null,null,"Puan",null,"SINAV ANALİZİ"]
[null,null,1,null,null,null,null,"GEÇMEZ alan öğrenci sayısı",null,null,null,null,null,null,{"$f":"COUNTIF(AF38:AF72,\"GEÇMEZ\")","v":0},null,null,null,null,null,null,null,null,null,null,null,null,null,null,null,null,null,null,{"$f":"IF(D9=0,\"\",D9)","v":""},{"$f":"F73","v":" "},{"$f":"IF(AI9<50,\"    * \"&AH9,\"\")","v":""}]
[null,null,2,null,null,null,null,"GEÇER alan öğrenci sayısı",null,null,null,null,null,null,{"$f":"COUNTIF(AF38:AF72,\"GEÇER\")","v":0},null,null,null,null,null,null,null,null,null,null,null,null,null,null,null,null,null,null,"",{"$f":"G73","v":" "},{"$f":"IF(AI10<50,\"    * \"&AH10,\"\")","v":""}]
[null,null,3,null,null,null,null,"ORTA alan öğrenci sayısı",null,null,null,null,null,null,{"$f":"COUNTIF(AF38:AF72,\"ORTA\")","v":0},null,null,"Başarının düşük olduğu bu konular sınıfta ilan edildi. Sınav soruları  sınıfta çözüldü. Özellikle bu konular üzerinde ayrıntılı olarak açıklama yapıldı. Yapılan hatalar vurgulandı.",null,null,null,null,null,null,null,null,null,null,null,null,null,null,null,"",{"$f":"H73","v":" "},""]
[null,null,4,null,null,null,null,"İYİ alan öğrenci sayısı",null,null,null,null,null,null,{"$f":"COUNTIF(AF38:AF72,\"İYİ\")","v":0},null,null,null,null,null,null,null,null,null,null,null,null,null,null,null,null,null,null,"",{"$f":"I73","v":" "},""]
[null,null,5,null,null,null,null,"PEKİYİ alan öğrenci sayısı",null,null,null,null,null,null,{"$f":"COUNTIF(AF38:AF72,\"PEKİYİ\")","v":0},null,null,null,null,null,null,null,null,null,null,null,null,null,null,null,null,null,null,"",{"$f":"J73","v":" "},""]
[null,null,6,null,null,null,null,null,null,null,null,null,null,null,null,null,null,null,null,null,null,null,null,null,null,null,null,null,null,null,null,null,null,"",{"$f":"K73","v":" "},""]
[null,null,7,null,null,null,null,"Alınan puanların ortalaması",null,null,null,null,null,null,{"$f":"IF(COUNT(AE38:AE72)=0,\" \",SUM(AE38:AE72)/COUNT(AE38:AE72))","v":" "},null,null,null,null,null,null,null,null,null,null,null,null,null,{"$f":"Liste!H8","v":"YUNUS EFİLOĞLU"},null,null,null,null,"",{"$f":"L73","v":" "},""]
[null,null,8,null,null,null,null,"Sınıfın Başarı Yüzdesi",null,null,null,null,null,null,{"$f":"SUM(O10:O13)/SUM(O9:O14)","v":{"$error":"#DIV/0!"}},null,null,null,null,null,null,null,null,null,null,null,null,null,{"$f":"Liste!H9","v":"Yiyecek İçecek Hizmetleri"},null,null,null,null,"",{"$f":"M73","v":" "},""]
[null,null,9,null,null,null,null,null,null,null,null,null,null,null,null,null,null,null,null,null,null,null,null,null,null,null,null,null,null,null,null,null,null,"",{"$f":"N73","v":" "},""]
[null,null,10,null,null,null,null,"GRAFİK ANALİZ",null,null,null,null,null,null,null,null,null,null,null,null,null,null,null,null,null,null,null,null,null,null,null,null,null,"",{"$f":"O73","v":" "},""]
[null,null,11,null,null,null,null,null,null,null,null,null,null,null,null,null,null,null,null,null,null,null,null,null,null,null,null,null,null,null,null,null,null,"",{"$f":"P73","v":" "},""]
[null,null,12,null,null,null,null,null,null,null,null,null,null,null,null,null,null,null,null,null,null,null,null,null,null,null,null,null,null,null,null,null,null,"",{"$f":"Q73","v":" "},""]
[null,null,13,null,null,null,null,null,null,null,null,null,null,null,null,null,null,null,null,null,null,null,null,null,null,null,null,null,null,null,null,null,null,"",{"$f":"R73","v":" "},""]
[null,null,14,null,null,null,null,null,null,null,null,null,null,null,null,null,null,null,null,null,null,null,null,null,null,null,null,null,null,null,null,null,null,"",{"$f":"S73","v":" "},""]
[null,null,15,null,null,null,null,null,null,null,null,null,null,null,null,null,null,null,null,null,null,null,null,null,null,null,null,null,null,null,null,null,null,"",{"$f":"T73","v":" "},""]
[null,null,16,null,null,null,null,null,null,null,null,null,null,null,null,null,null,null,null,null,null,null,null,null,null,null,null,null,null,null,null,null,null,"",{"$f":"U73","v":" "},""]
[null,null,17,null,null,null,null,null,null,null,null,null,null,null,null,null,null,null,null,null,null,null,null,null,null,null,null,null,null,null,null,null,null,"",{"$f":"V73","v":" "},""]
[null,null,18,null,null,null,null,null,null,null,null,null,null,null,null,null,null,null,null,null,null,null,null,null,null,null,null,null,null,null,null,null,null,"",{"$f":"W73","v":" "},""]
[null,null,19,null,null,null,null,null,null,null,null,null,null,null,null,null,null,null,null,null,null,null,null,null,null,null,null,null,null,null,null,null,null,"",{"$f":"X73","v":" "},""]
[null,null,20,null,null,null,null,null,null,null,null,null,null,null,null,null,null,null,null,null,null,null,null,null,null,null,null,null,null,null,null,null,null,"",{"$f":"Y73","v":" "},""]
[null,null,21,null,null,null,null,null,null,null,null,null,null,null,null,null,null,null,null,null,null,null,null,null,null,null,null,null,null,null,null,null,null,"",{"$f":"Z73","v":" "},""]
[null,null,22,null,null,null,null,null,null,null,null,null,null,null,null,null,null,null,null,null,null,null,null,null,null,null,null,null,null,null,null,null,null,"",{"$f":"AA73","v":" "},""]
[null,null,23,null,null,null,null,null,null,null,null,null,null,null,null,null,null,null,null,null,null,null,null,null,null,null,null,null,null,null,null,null,null,"",{"$f":"AB73","v":" "},""]
[null,null,24,null,null,null,null,null,null,null,null,null,null,null,null,null,null,null,null,null,null,null,null,null,null,null,null,null,null,null,null,null,null,"",{"$f":"AC73","v":" "},""]
[null,null,25,null,null,null,null,null,null,null,null,null,null,null,null,null,null,null,null,null,null,null,null,null,null,null,null,null,null,null,null,null,null,"",{"$f":"AD73","v":" "},""]
[null,null,"TOPLAM",null,null,{"$f":"SUM(F9:F33)","v":0}]
[]
[null,null,"ÖĞRENCİNİN",null,null,"SORULAR",null,null,null,null,null,null,null,null,null,null,null,null,null,null,null,null,null,null,null,null,null,null,null,null,"PUAN","SONUÇ"]
[null,null,"SIRA\nNO","OKUL\n NO","ADI VE SOYADI",1,2,3,4,5,6,7,8,9,10,11,12,13,14,15,16,17,18,19,20,21,22,23,24,25]
[null,null,1,{"$f":"IF(Liste!$C5=0,\" \",Liste!C5)","v":" "},{"$f":"IF(Liste!$D5=0,\" \",Liste!$D5)","v":" "},null,null,null,null,null,null,null,null,null,null,null,null,null,null,null,null,null,null,null,null,null,null,null,null,null,{"$f":"IF(COUNTBLANK(F38:AD38)=COLUMNS(F38:AD38),\" \",IF(SUM(F38:AD38)=0,0,SUM(F38:AD38)))","v":" "},{"$f":"IF(AE38=\" \",\" \",IF(AE38>=85,\"PEKİYİ\",IF(AE38>=70,\"İYİ\",IF(AE38>=60,\"ORTA\",IF(AE38>=50,\"GEÇER\",IF(AE38<50,\"GEÇMEZ\"))))))","v":" "}]
[null,null,2,{"$f":"IF(Liste!C6=0,\" \",Liste!C6)","v":" "},{"$f":"IF(Liste!D6=0,\" \",Liste!D6)","v":" "},null,null,null,null,null,null,null,null,null,null,null,null,null,null,null,null,null,null,null,null,null,null,null,null,null," ",{"$f":"IF(AE39=\" \",\" \",IF(AE39>=85,\"PEKİYİ\",IF(AE39>=70,\"İYİ\",IF(AE39>=60,\"ORTA\",IF(AE39>=50,\"GEÇER\",IF(AE39<50,\"GEÇMEZ\",0))))))","v":" "}]
[null,null,3,{"$f":"IF(Liste!C7=0,\" \",Liste!C7)","v":" "},{"$f":"IF(Liste!D7=0,\" \",Liste!D7)","v":" "},null,null,null,null,null,null,null,null,null,null,null,null,null,null,null,null,null,null,null,null,null,null,null,null,null," "," "]
[null,null,4,{"$f":"IF(Liste!C8=0,\" \",Liste!C8)","v":" "},{"$f":"IF(Liste!D8=0,\" \",Liste!D8)","v":" "},null,null,null,null,null,null,null,null,null,null,null,null,null,null,null,null,null,null,null,null,null,null,null,null,null," "," "]
[null,null,5,{"$f":"IF(Liste!C9=0,\" \",Liste!C9)","v":" "},{"$f":"IF(Liste!D9=0,\" \",Liste!D9)","v":" "},null,null,null,null,null,null,null,null,null,null,null,null,null,null,null,null,null,null,null,null,null,null,null,null,null," "," "]
[null,null,6,{"$f":"IF(Liste!C10=0,\" \",Liste!C10)","v":" "},{"$f":"IF(Liste!D10=0,\" \",Liste!D10)","v":" "},null,null,null,null,null,null,null,null,null,null,null,null,null,null,null,null,null,null,null,null,null,null,null,null,null," "," "]
[null,null,7,{"$f":"IF(Liste!C11=0,\" \",Liste!C11)","v":" "},{"$f":"IF(Liste!D11=0,\" \",Liste!D11)","v":" "},null,null,null,null,null,null,null,null,null,null,null,null,null,null,null,null,null,null,null,null,null,null,null,null,null," "," "]
[null,null,8,{"$f":"IF(Liste!C12=0,\" \",Liste!C12)","v":" "},{"$f":"IF(Liste!D12=0,\" \",Liste!D12)","v":" "},null,null,null,null,null,null,null,null,null,null,null,null,null,null,null,null,null,null,null,null,null,null,null,null,null," "," "]
[null,null,9,{"$f":"IF(Liste!C13=0,\" \",Liste!C13)","v":" "},{"$f":"IF(Liste!D13=0,\" \",Liste!D13)","v":" "},null,null,null,null,null,null,null,null,null,null,null,null,null,null,null,null,null,null,null,null,null,null,null,null,null," "," "]
[null,null,10,{"$f":"IF(Liste!C14=0,\" \",Liste!C14)","v":" "},{"$f":"IF(Liste!D14=0,\" \",Liste!D14)","v":" "},null,null,null,null,null,null,null,null,null,null,null,null,null,null,null,null,null,null,null,null,null,null,null,null,null," "," "]
[null,null,11,{"$f":"IF(Liste!C15=0,\" \",Liste!C15)","v":" "},{"$f":"IF(Liste!D15=0,\" \",Liste!D15)","v":" "},null,null,null,null,null,null,null,null,null,null,null,null,null,null,null,null,null,null,null,null,null,null,null,null,null," "," "]
[null,null,12,{"$f":"IF(Liste!C16=0,\" \",Liste!C16)","v":" "},{"$f":"IF(Liste!D16=0,\" \",Liste!D16)","v":" "},null,null,null,null,null,null,null,null,null,null,null,null,null,null,null,null,null,null,null,null,null,null,null,null,null," "," "]
[null,null,13,{"$f":"IF(Liste!C17=0,\" \",Liste!C17)","v":" "},{"$f":"IF(Liste!D17=0,\" \",Liste!D17)","v":" "},null,null,null,null,null,null,null,null,null,null,null,null,null,null,null,null,null,null,null,null,null,null,null,null,null," "," "]
[null,null,14,{"$f":"IF(Liste!C18=0,\" \",Liste!C18)","v":" "},{"$f":"IF(Liste!D18=0,\" \",Liste!D18)","v":" "},null,null,null,null,null,null,null,null,null,null,null,null,null,null,null,null,null,null,null,null,null,null,null,null,null," "," "]
[null,null,15,{"$f":"IF(Liste!C19=0,\" \",Liste!C19)","v":" "},{"$f":"IF(Liste!D19=0,\" \",Liste!D19)","v":" "},null,null,null,null,null,null,null,null,null,null,null,null,null,null,null,null,null,null,null,null,null,null,null,null,null," "," "]
[null,null,16,{"$f":"IF(Liste!C20=0,\" \",Liste!C20)","v":" "},{"$f":"IF(Liste!D20=0,\" \",Liste!D20)","v":" "},null,null,null,null,null,null,null,null,null,null,null,null,null,null,null,null,null,null,null,null,null,null,null,null,null," "," "]
[null,null,17,{"$f":"IF(Liste!C21=0,\" \",Liste!C21)","v":" "},{"$f":"IF(Liste!D21=0,\" \",Liste!D21)","v":" "},null,null,null,null,null,null,null,null,null,null,null,null,null,null,null,null,null,null,null,null,null,null,null,null,null," "," "]
[null,null,18,{"$f":"IF(Liste!C22=0,\" \",Liste!C22)","v":" "},{"$f":"IF(Liste!D22=0,\" \",Liste!D22)","v":" "},null,null,null,null,null,null,null,null,null,null,null,null,null,null,null,null,null,null,null,null,null,null,null,null,null," "," "]
[null,null,19,{"$f":"IF(Liste!C23=0,\" \",Liste!C23)","v":" "},{"$f":"IF(Liste!D23=0,\" \",Liste!D23)","v":" "},null,null,null,null,null,null,null,null,null,null,null,null,null,null,null,null,null,null,null,null,null,null,null,null,null," "," "]
[null,null,20,{"$f":"IF(Liste!C24=0,\" \",Liste!C24)","v":" "},{"$f":"IF(Liste!D24=0,\" \",Liste!D24)","v":" "},null,null,null,null,null,null,null,null,null,null,null,null,null,null,null,null,null,null,null,null,null,null,null,null,null," "," "]
[null,null,21,{"$f":"IF(Liste!C25=0,\" \",Liste!C25)","v":" "},{"$f":"IF(Liste!D25=0,\" \",Liste!D25)","v":" "},null,null,null,null,null,null,null,null,null,null,null,null,null,null,null,null,null,null,null,null,null,null,null,null,null," "," "]
[null,null,22,{"$f":"IF(Liste!C26=0,\" \",Liste!C26)","v":" "},{"$f":"IF(Liste!D26=0,\" \",Liste!D26)","v":" "},null,null,null,null,null,null,null,null,null,null,null,null,null,null,null,null,null,null,null,null,null,null,null,null,null," "," "]
[null,null,23,{"$f":"IF(Liste!C27=0,\" \",Liste!C27)","v":" "},{"$f":"IF(Liste!D27=0,\" \",Liste!D27)","v":" "},null,null,null,null,null,null,null,null,null,null,null,null,null,null,null,null,null,null,null,null,null,null,null,null,null," "," "]
[null,null,24,{"$f":"IF(Liste!C28=0,\" \",Liste!C28)","v":" "},{"$f":"IF(Liste!D28=0,\" \",Liste!D28)","v":" "},null,null,null,null,null,null,null,null,null,null,null,null,null,null,null,null,null,null,null,null,null,null,null,null,null," "," "]
[null,null,25,{"$f":"IF(Liste!C29=0,\" \",Liste!C29)","v":" "},{"$f":"IF(Liste!D29=0,\" \",Liste!D29)","v":" "},null,null,null,null,null,null,null,null,null,null,null,null,null,null,null,null,null,null,null,null,null,null,null,null,null," "," "]
[null,null,26,{"$f":"IF(Liste!C30=0,\" \",Liste!C30)","v":" "},{"$f":"IF(Liste!D30=0,\" \",Liste!D30)","v":" "},null,null,null,null,null,null,null,null,null,null,null,null,null,null,null,null,null,null,null,null,null,null,null,null,null," "," "]
[null,null,27,{"$f":"IF(Liste!C31=0,\" \",Liste!C31)","v":" "},{"$f":"IF(Liste!D31=0,\" \",Liste!D31)","v":" "},null,null,null,null,null,null,null,null,null,null,null,null,null,null,null,null,null,null,null,null,null,null,null,null,null," "," "]
[null,null,28,{"$f":"IF(Liste!C32=0,\" \",Liste!C32)","v":" "},{"$f":"IF(Liste!D32=0,\" \",Liste!D32)","v":" "},null,null,null,null,null,null,null,null,null,null,null,null,null,null,null,null,null,null,null,null,null,null,null,null,null," "," "]
[null,null,29,{"$f":"IF(Liste!C33=0,\" \",Liste!C33)","v":" "},{"$f":"IF(Liste!D33=0,\" \",Liste!D33)","v":" "},null,null,null,null,null,null,null,null,null,null,null,null,null,null,null,null,null,null,null,null,null,null,null,null,null," "," "]
[null,null,30,{"$f":"IF(Liste!C34=0,\" \",Liste!C34)","v":" "},{"$f":"IF(Liste!D34=0,\" \",Liste!D34)","v":" "},null,null,null,null,null,null,null,null,null,null,null,null,null,null,null,null,null,null,null,null,null,null,null,null,null," "," "]
[null,null,31,{"$f":"IF(Liste!C35=0,\" \",Liste!C35)","v":" "},{"$f":"IF(Liste!D35=0,\" \",Liste!D35)","v":" "},null,null,null,null,null,null,null,null,null,null,null,null,null,null,null,null,null,null,null,null,null,null,null,null,null," "," "]
[null,null,32,{"$f":"IF(Liste!C36=0,\" \",Liste!C36)","v":" "},{"$f":"IF(Liste!D36=0,\" \",Liste!D36)","v":" "},null,null,null,null,null,null,null,null,null,null,null,null,null,null,null,null,null,null,null,null,null,null,null,null,null," "," "]
[null,null,33,{"$f":"IF(Liste!C37=0,\" \",Liste!C37)","v":" "},{"$f":"IF(Liste!D37=0,\" \",Liste!D37)","v":" "},null,null,null,null,null,null,null,null,null,null,null,null,null,null,null,null,null,null,null,null,null,null,null,null,null," "," "]
[null,null,34,{"$f":"IF(Liste!C38=0,\" \",Liste!C38)","v":" "},{"$f":"IF(Liste!D38=0,\" \",Liste!D38)","v":" "},null,null,null,null,null,null,null,null,null,null,null,null,null,null,null,null,null,null,null,null,null,null,null,null,null," "," "]
[null,null,35,{"$f":"IF(Liste!C39=0,\" \",Liste!C39)","v":" "},{"$f":"IF(Liste!D39=0,\" \",Liste!D39)","v":" "},null,null,null,null,null,null,null,null,null,null,null,null,null,null,null,null,null,null,null,null,null,null,null,null,null," "," "]
[null,null,"SORULARA GÖRE BAŞARI (%)",null,null,{"$f":"IF(F9=0,\" \",((SUM(F38:F72)/COUNT(F38:F72))*100)/F9)","v":" "},{"$f":"IF(F10=0,\" \",((SUM(G38:G72)/COUNT(G38:G72))*100)/F10)","v":" "},{"$f":"IF(F11=0,\" \",((SUM(H38:H72)/COUNT(H38:H72))*100)/F11)","v":" "},{"$f":"IF(F12=0,\" \",((SUM(I38:I72)/COUNT(I38:I72))*100)/F12)","v":" "},{"$f":"IF(F13=0,\" \",((SUM(J38:J72)/COUNT(J38:J72))*100)/F13)","v":" "},{"$f":"IF(F14=0,\" \",((SUM(K38:K72)/COUNT(K38:K72))*100)/F14)","v":" "},{"$f":"IF(F15=0,\" \",((SUM(L38:L72)/COUNT(L38:L72))*100)/F15)","v":" "},{"$f":"IF(F16=0,\" \",((SUM(M38:M72)/COUNT(M38:M72))*100)/F16)","v":" "},{"$f":"IF(F17=0,\" \",((SUM(N38:N72)/COUNT(N38:N72))*100)/F17)","v":" "},{"$f":"IF(F18=0,\" \",((SUM(O38:O72)/COUNT(O38:O72))*100)/F18)","v":" "},{"$f":"IF(F19=0,\" \",((SUM(P38:P72)/COUNT(P38:P72))*100)/F19)","v":" "},{"$f":"IF(F20=0,\" \",((SUM(Q38:Q72)/COUNT(Q38:Q72))*100)/F20)","v":" "},{"$f":"IF(F21=0,\" \",((SUM(R38:R72)/COUNT(R38:R72))*100)/F21)","v":" "},{"$f":"IF(F22=0,\" \",((SUM(S38:S72)/COUNT(S38:S72))*100)/F22)","v":" "},{"$f":"IF(F23=0,\" \",((SUM(T38:T72)/COUNT(T38:T72))*100)/F23)","v":" "},{"$f":"IF(F24=0,\" \",((SUM(U38:U72)/COUNT(U38:U72))*100)/F24)","v":" "},{"$f":"IF(F25=0,\" \",((SUM(V38:V72)/COUNT(V38:V72))*100)/F25)","v":" "},{"$f":"IF(F26=0,\" \",((SUM(W38:W72)/COUNT(W38:W72))*100)/F26)","v":" "},{"$f":"IF(F27=0,\" \",((SUM(X38:X72)/COUNT(X38:X72))*100)/F27)","v":" "},{"$f":"IF(F28=0,\" \",((SUM(Y38:Y72)/COUNT(Y38:Y72))*100)/F28)","v":" "},{"$f":"IF(F29=0,\" \",((SUM(Z38:Z72)/COUNT(Z38:Z72))*100)/F29)","v":" "},{"$f":"IF(F30=0,\" \",((SUM(AA38:AA72)/COUNT(AA38:AA72))*100)/F30)","v":" "},{"$f":"IF(F31=0,\" \",((SUM(AB38:AB72)/COUNT(AB38:AB72))*100)/F31)","v":" "},{"$f":"IF(F32=0,\" \",((SUM(AC38:AC72)/COUNT(AC38:AC72))*100)/F32)","v":" "},{"$f":"IF(F33=0,\" \",((SUM(AD38:AD72)/COUNT(AD38:AD72))*100)/F33)","v":" "}]
[]
[]
[null,null,null,null,null,null,null,null,null,null,null,null,null,null,null,null,null,null,null,null,null,null,null,null,null,null,null,{"$f":"TODAY()","v":"2024-01-08"}]
[null,null,null,null,null,null,null,null,null,null,null,null,null,null,null,null,null,null,null,null,null,null,null,null,null,null,null,{"$f":"Liste!H10","v":"YUNUS EFİLOĞLU"}]
[null,null,null,null,null,null,null,null,null,null,null,null,null,null,null,null,null,null,null,null,null,null,null,null,null,null,null,"Okul Müdürü"]

{"sheet":"2.Dön-2.Sınav","index":7,"n_rows":78,"n_cols":36,"rows_kept":78,"cut":false,"hidden":false,"merged":[[1,2,1,31],[1,33,1,35],[2,2,2,3],[2,4,2,5],[2,6,2,9],[2,10,2,15],[2,17,3,31],[2,33,2,35],[3,2,3,3],[3,4,3,5],[3,6,3,9],[3,10,3,15],[4,2,4,3],[4,4,4,5],[4,6,4,9],[4,10,4,15],[4,17,4,28],[4,29,4,30],[4,33,6,35],[5,2,5,3],[5,4,5,5],[5,6,5,9],[5,10,5,15],[5,17,5,31],[6,17,9,31],[7,2,7,4],[7,7,7,15],[8,3,8,4],[8,7,8,13],[8,14,8,15],[9,3,9,4],[9,7,9,13],[9,14,9,15],[10,3,10,4],[10,7,10,13],[10,14,10,15],[10,17,13,31],[11,3,11,4],[11,7,11,13],[11,14,11,15],[12,3,12,4],[12,7,12,13],[12,14,12,15],[17,3,17,4],[17,7,17,31],[13,3,13,4],[13,7,13,15],[14,3,14,4],[14,7,14,13],[14,14,14,15],[14,28,14,31],[15,3,15,4],[15,7,15,13],[15,14,15,15],[15,28,15,31],[16,3,16,4],[29,3,29,4],[18,3,18,4],[19,3,19,4],[20,3,20,4],[21,3,21,4],[22,3,22,4],[23,3,23,4],[24,3,24,4],[25,3,25,4],[26,3,26,4],[27,3,27,4],[28,3,28,4],[77,27,77,31],[30,3,30,4],[31,3,31,4],[32,3,32,4],[33,2,33,4],[35,2,35,4],[35,5,35,29],[35,30,36,30],[35,31,36,31],[72,2,72,4],[75,27,75,31],[76,27,76,31]]}
[]
[null,null,"SORU ANALİZİ VE SINAV BAŞARI DEĞERLENDİRMESİ",null,null,null,null,null,null,null,null,null,null,null,null,null,null,null,null,null,null,null,null,null,null,null,null,null,null,null,null,null,null,"Orhan Zeki KOCAMAN"]
[null,null,"Okul ",null,{"$f":"Liste!G4&Liste!H4","v":":OLTU NENEHATUN MESLEKİ  VE TEKNİK ANADOLU LİSESİ"},null,"Sınıf ",null,null,null,{"$f":"Liste!G6&\" \"&Liste!H6","v":": 9/A"},null,null,null,null,null,null,"SINAVIN DEĞERLENDİRİLMESİ",null,null,null,null,null,null,null,null,null,null,null,null,null,null,null,"www.ahgal.meb.k12.tr"]
[null,null,"Öğretim Yılı ",null,{"$f":"Liste!G5&Liste!H5","v":":2023-2024"},null,"Sınav No",null,null,null,"2.Sınav"]
[null,null,"Dönem ",null,": 2.Dönem",null,"Ders",null,null,null,{"$f":"Liste!G8&\" \"&Liste!H7","v":": "},null,null,null,null,null,null,"Yapılan sınavda sınıfın genel başarı yüzdesi",null,null,null,null,null,null,null,null,null,null,null,{"$f":"O16","v":{"$error":"#DIV/0!"}},null,"olmuştur.",null,"Buraya dokunmayınız. Yazıcıda bu kısım çıkmaz.Formüller için gereklidir. Sakın Silmeyin…"]
[null,null,"Öğretmen",null,{"$f":"Liste!G7&Liste!H8","v":":YUNUS EFİLOĞLU"},null,null,null,null,null,null,null,null,null,null,null,null,"Aşağıda belirtilen konularda başarı oranı %50 nin altında kalmıştır."]
[null,null,null,null,null,null,null,null,null,null,null,null,null,null,null,null,null,{"$f":"CONCATENATE(AJ9,AJ10,AJ11,AJ12,AJ13,AJ14,AJ15,AJ16,AJ17,AJ18,AJ19,AJ20,AJ21,AJ23,AJ24,AJ25,AJ26,AJ27,AJ28,AJ29,AJ30,AJ31,AJ32,AJ33)","v":""}]
[null,null,"Soruların ilgili olduğu konular",null,null,"Puan",null,"SINAV ANALİZİ"]
[null,null,1,null,null,null,null,"GEÇMEZ alan öğrenci sayısı",null,null,null,null,null,null,{"$f":"COUNTIF(AF38:AF72,\"GEÇMEZ\")","v":0},null,null,null,null,null,null,null,null,null,null,null,null,null,null,null,null,null,null,{"$f":"IF(D9=0,\"\",D9)","v":""},{"$f":"F73","v":" "},{"$f":"IF(AI9<50,\"    * \"&AH9,\"\")","v":""}]
[null,null,2,null,null,null,null,"GEÇER alan öğrenci sayısı",null,null,null,null,null,null,{"$f":"COUNTIF(AF38:AF72,\"GEÇER\")","v":0},null,null,null,null,null,null,null,null,null,null,null,null,null,null,null,null,null,null,"",{"$f":"G73","v":" "},{"$f":"IF(AI10<50,\"    * \"&AH10,\"\")","v":""}]
[null,null,3,null,null,null,null,"ORTA alan öğrenci sayısı",null,null,null,null,null,null,{"$f":"COUNTIF(AF38:AF72,\"ORTA\")","v":0},null,null,"Başarının düşük olduğu bu konular sınıfta ilan edildi. Sınav soruları  sınıfta çözüldü. Özellikle bu konular üzerinde ayrıntılı olarak açıklama yapıldı. Yapılan hatalar vurgulandı.",null,null,null,null,null,null,null,null,null,null,null,null,null,null,null,"",{"$f":"H73","v":" "},""]
[null,null,4,null,null,null,null,"İYİ alan öğrenci sayısı",null,null,null,null,null,null,{"$f":"COUNTIF(AF38:AF72,\"İYİ\")","v":0},null,null,null,null,null,null,null,null,null,null,null,null,null,null,null,null,null,null,"",{"$f":"I73","v":" "},""]
[null,null,5,null,null,null,null,"PEKİYİ alan öğrenci sayısı",null,null,null,null,null,null,{"$f":"COUNTIF(AF38:AF72,\"PEKİYİ\")","v":0},null,null,null,null,null,null,null,null,null,null,null,null,null,null,null,null,null,null,"",{"$f":"J73","v":" "},""]
[null,null,6,null,null,null,null,null,null,null,null,null,null,null,null,null,null,null,null,null,null,null,null,null,null,null,null,null,null,null,null,null,null,"",{"$f":"K73","v":" "},""]
[null,null,7,null,null,null,null,"Alınan puanların ortalaması",null,null,null,null,null,null,{"$f":"IF(COUNT(AE38:AE72)=0,\" \",SUM(AE38:AE72)/COUNT(AE38:AE72))","v":" "},null,null,null,null,null,null,null,null,null,null,null,null,null,{"$f":"Liste!H8","v":"YUNUS EFİLOĞLU"},null,null,null,null,"",{"$f":"L73","v":" "},""]
[null,null,8,null,null,null,null,"Sınıfın Başarı Yüzdesi",null,null,null,null,null,null,{"$f":"SUM(O10:O13)/SUM(O9:O14)","v":{"$error":"#DIV/0!"}},null,null,null,null,null,null,null,null,null,null,null,null,null,{"$f":"Liste!H9","v":"Yiyecek İçecek Hizmetleri"},null,null,null,null,"",{"$f":"M73","v":" "},""]
[null,null,9,null,null,null,null,null,null,null,null,null,null,null,null,null,null,null,null,null,null,null,null,null,null,null,null,null,null,null,null,null,null,"",{"$f":"N73","v":" "},""]
[null,null,10,null,null,null,null,"GRAFİK ANALİZ",null,null,null,null,null,null,null,null,null,null,null,null,null,null,null,null,null,null,null,null,null,null,null,null,null,"",{"$f":"O73","v":" "},""]
[null,null,11,null,null,null,null,null,null,null,null,null,null,null,null,null,null,null,null,null,null,null,null,null,null,null,null,null,null,null,null,null,null,"",{"$f":"P73","v":" "},""]
[null,null,12,null,null,null,null,null,null,null,null,null,null,null,null,null,null,null,null,null,null,null,null,null,null,null,null,null,null,null,null,null,null,"",{"$f":"Q73","v":" "},""]
[null,null,13,null,null,null,null,null,null,null,null,null,null,null,null,null,null,null,null,null,null,null,null,null,null,null,null,null,null,null,null,null,null,"",{"$f":"R73","v":" "},""]
[null,null,14,null,null,null,null,null,null,null,null,null,null,null,null,null,null,null,null,null,null,null,null,null,null,null,null,null,null,null,null,null,null,"",{"$f":"S73","v":" "},""]
[null,null,15,null,null,null,null,null,null,null,null,null,null,null,null,null,null,null,null,null,null,null,null,null,null,null,null,null,null,null,null,null,null,"",{"$f":"T73","v":" "},""]
[null,null,16,null,null,null,null,null,null,null,null,null,null,null,null,null,null,null,null,null,null,null,null,null,null,null,null,null,null,null,null,null,null,"",{"$f":"U73","v":" "},""]
[null,null,17,null,null,null,null,null,null,null,null,null,null,null,null,null,null,null,null,null,null,null,null,null,null,null,null,null,null,null,null,null,null,"",{"$f":"V73","v":" "},""]
[null,null,18,null,null,null,null,null,null,null,null,null,null,null,null,null,null,null,null,null,null,null,null,null,null,null,null,null,null,null,null,null,null,"",{"$f":"W73","v":" "},""]
[null,null,19,null,null,null,null,null,null,null,null,null,null,null,null,null,null,null,null,null,null,null,null,null,null,null,null,null,null,null,null,null,null,"",{"$f":"X73","v":" "},""]
[null,null,20,null,null,null,null,null,null,null,null,null,null,null,null,null,null,null,null,null,null,null,null,null,null,null,null,null,null,null,null,null,null,"",{"$f":"Y73","v":" "},""]
[null,null,21,null,null,null,null,null,null,null,null,null,null,null,null,null,null,null,null,null,null,null,null,null,null,null,null,null,null,null,null,null,null,"",{"$f":"Z73","v":" "},""]
[null,null,22,null,null,null,null,null,null,null,null,null,null,null,null,null,null,null,null,null,null,null,null,null,null,null,null,null,null,null,null,null,null,"",{"$f":"AA73","v":" "},""]
[null,null,23,null,null,null,null,null,null,null,null,null,null,null,null,null,null,null,null,null,null,null,null,null,null,null,null,null,null,null,null,null,null,"",{"$f":"AB73","v":" "},""]
[null,null,24,null,null,null,null,null,null,null,null,null,null,null,null,null,null,null,null,null,null,null,null,null,null,null,null,null,null,null,null,null,null,"",{"$f":"AC73","v":" "},""]
[null,null,25,null,null,null,null,null,null,null,null,null,null,null,null,null,null,null,null,null,null,null,null,null,null,null,null,null,null,null,null,null,null,"",{"$f":"AD73","v":" "},""]
[null,null,"TOPLAM",null,null,{"$f":"SUM(F9:F33)","v":0}]
[]
[null,null,"ÖĞRENCİNİN",null,null,"SORULAR",null,null,null,null,null,null,null,null,null,null,null,null,null,null,null,null,null,null,null,null,null,null,null,null,"PUAN","SONUÇ"]
[null,null,"SIRA\nNO","OKUL\n NO","ADI VE SOYADI",1,2,3,4,5,6,7,8,9,10,11,12,13,14,15,16,17,18,19,20,21,22,23,24,25]
[null,null,1,{"$f":"IF(Liste!$C5=0,\" \",Liste!C5)","v":" "},{"$f":"IF(Liste!$D5=0,\" \",Liste!$D5)","v":" "},null,null,null,null,null,null,null,null,null,null,null,null,null,null,null,null,null,null,null,null,null,null,null,null,null,{"$f":"IF(COUNTBLANK(F38:AD38)=COLUMNS(F38:AD38),\" \",IF(SUM(F38:AD38)=0,0,SUM(F38:AD38)))","v":" "},{"$f":"IF(AE38=\" \",\" \",IF(AE38>=85,\"PEKİYİ\",IF(AE38>=70,\"İYİ\",IF(AE38>=60,\"ORTA\",IF(AE38>=50,\"GEÇER\",IF(AE38<50,\"GEÇMEZ\"))))))","v":" "}]
[null,null,2,{"$f":"IF(Liste!C6=0,\" \",Liste!C6)","v":" "},{"$f":"IF(Liste!D6=0,\" \",Liste!D6)","v":" "},null,null,null,null,null,null,null,null,null,null,null,null,null,null,null,null,null,null,null,null,null,null,null,null,null," ",{"$f":"IF(AE39=\" \",\" \",IF(AE39>=85,\"PEKİYİ\",IF(AE39>=70,\"İYİ\",IF(AE39>=60,\"ORTA\",IF(AE39>=50,\"GEÇER\",IF(AE39<50,\"GEÇMEZ\",0))))))","v":" "}]
[null,null,3,{"$f":"IF(Liste!C7=0,\" \",Liste!C7)","v":" "},{"$f":"IF(Liste!D7=0,\" \",Liste!D7)","v":" "},null,null,null,null,null,null,null,null,null,null,null,null,null,null,null,null,null,null,null,null,null,null,null,null,null," "," "]
[null,null,4,{"$f":"IF(Liste!C8=0,\" \",Liste!C8)","v":" "},{"$f":"IF(Liste!D8=0,\" \",Liste!D8)","v":" "},null,null,null,null,null,null,null,null,null,null,null,null,null,null,null,null,null,null,null,null,null,null,null,null,null," "," "]
[null,null,5,{"$f":"IF(Liste!C9=0,\" \",Liste!C9)","v":" "},{"$f":"IF(Liste!D9=0,\" \",Liste!D9)","v":" "},null,null,null,null,null,null,null,null,null,null,null,null,null,null,null,null,null,null,null,null,null,null,null,null,null," "," "]
[null,null,6,{"$f":"IF(Liste!C10=0,\" \",Liste!C10)","v":" "},{"$f":"IF(Liste!D10=0,\" \",Liste!D10)","v":" "},null,null,null,null,null,null,null,null,null,null,null,null,null,null,null,null,null,null,null,null,null,null,null,null,null," "," "]
[null,null,7,{"$f":"IF(Liste!C11=0,\" \",Liste!C11)","v":" "},{"$f":"IF(Liste!D11=0,\" \",Liste!D11)","v":" "},null,null,null,null,null,null,null,null,null,null,null,null,null,null,null,null,null,null,null,null,null,null,null,null,null," "," "]
[null,null,8,{"$f":"IF(Liste!C12=0,\" \",Liste!C12)","v":" "},{"$f":"IF(Liste!D12=0,\" \",Liste!D12)","v":" "},null,null,null,null,null,null,null,null,null,null,null,null,null,null,null,null,null,null,null,null,null,null,null,null,null," "," "]
[null,null,9,{"$f":"IF(Liste!C13=0,\" \",Liste!C13)","v":" "},{"$f":"IF(Liste!D13=0,\" \",Liste!D13)","v":" "},null,null,null,null,null,null,null,null,null,null,null,null,null,null,null,null,null,null,null,null,null,null,null,null,null," "," "]
[null,null,10,{"$f":"IF(Liste!C14=0,\" \",Liste!C14)","v":" "},{"$f":"IF(Liste!D14=0,\" \",Liste!D14)","v":" "},null,null,null,null,null,null,null,null,null,null,null,null,null,null,null,null,null,null,null,null,null,null,null,null,null," "," "]
[null,null,11,{"$f":"IF(Liste!C15=0,\" \",Liste!C15)","v":" "},{"$f":"IF(Liste!D15=0,\" \",Liste!D15)","v":" "},null,null,null,null,null,null,null,null,null,null,null,null,null,null,null,null,null,null,null,null,null,null,null,null,null," "," "]
[null,null,12,{"$f":"IF(Liste!C16=0,\" \",Liste!C16)","v":" "},{"$f":"IF(Liste!D16=0,\" \",Liste!D16)","v":" "},null,null,null,null,null,null,null,null,null,null,null,null,null,null,null,null,null,null,null,null,null,null,null,null,null," "," "]
[null,null,13,{"$f":"IF(Liste!C17=0,\" \",Liste!C17)","v":" "},{"$f":"IF(Liste!D17=0,\" \",Liste!D17)","v":" "},null,null,null,null,null,null,null,null,null,null,null,null,null,null,null,null,null,null,null,null,null,null,null,null,null," "," "]
[null,null,14,{"$f":"IF(Liste!C18=0,\" \",Liste!C18)","v":" "},{"$f":"IF(Liste!D18=0,\" \",Liste!D18)","v":" "},null,null,null,null,null,null,null,null,null,null,null,null,null,null,null,null,null,null,null,null,null,null,null,null,null," "," "]
[null,null,15,{"$f":"IF(Liste!C19=0,\" \",Liste!C19)","v":" "},{"$f":"IF(Liste!D19=0,\" \",Liste!D19)","v":" "},null,null,null,null,null,null,null,null,null,null,null,null,null,null,null,null,null,null,null,null,null,null,null,null,null," "," "]
[null,null,16,{"$f":"IF(Liste!C20=0,\" \",Liste!C20)","v":" "},{"$f":"IF(Liste!D20=0,\" \",Liste!D20)","v":" "},null,null,null,null,null,null,null,null,null,null,null,null,null,null,null,null,null,null,null,null,null,null,null,null,null," "," "]
[null,null,17,{"$f":"IF(Liste!C21=0,\" \",Liste!C21)","v":" "},{"$f":"IF(Liste!D21=0,\" \",Liste!D21)","v":" "},null,null,null,null,null,null,null,null,null,null,null,null,null,null,null,null,null,null,null,null,null,null,null,null,null," "," "]
[null,null,18,{"$f":"IF(Liste!C22=0,\" \",Liste!C22)","v":" "},{"$f":"IF(Liste!D22=0,\" \",Liste!D22)","v":" "},null,null,null,null,null,null,null,null,null,null,null,null,null,null,null,null,null,null,null,null,null,null,null,null,null," "," "]
[null,null,19,{"$f":"IF(Liste!C23=0,\" \",Liste!C23)","v":" "},{"$f":"IF(Liste!D23=0,\" \",Liste!D23)","v":" "},null,null,null,null,null,null,null,null,null,null,null,null,null,null,null,null,null,null,null,null,null,null,null,null,null," "," "]
[null,null,20,{"$f":"IF(Liste!C24=0,\" \",Liste!C24)","v":" "},{"$f":"IF(Liste!D24=0,\" \",Liste!D24)","v":" "},null,null,null,null,null,null,null,null,null,null,null,null,null,null,null,null,null,null,null,null,null,null,null,null,null," "," "]
[null,null,21,{"$f":"IF(Liste!C25=0,\" \",Liste!C25)","v":" "},{"$f":"IF(Liste!D25=0,\" \",Liste!D25)","v":" "},null,null,null,null,null,null,null,null,null,null,null,null,null,null,null,null,null,null,null,null,null,null,null,null,null," "," "]
[null,null,22,{"$f":"IF(Liste!C26=0,\" \",Liste!C26)","v":" "},{"$f":"IF(Liste!D26=0,\" \",Liste!D26)","v":" "},null,null,null,null,null,null,null,null,null,null,null,null,null,null,null,null,null,null,null,null,null,null,null,null,null," "," "]
[null,null,23,{"$f":"IF(Liste!C27=0,\" \",Liste!C27)","v":" "},{"$f":"IF(Liste!D27=0,\" \",Liste!D27)","v":" "},null,null,null,null,null,null,null,null,null,null,null,null,null,null,null,null,null,null,null,null,null,null,null,null,null," "," "]
[null,null,24,{"$f":"IF(Liste!C28=0,\" \",Liste!C28)","v":" "},{"$f":"IF(Liste!D28=0,\" \",Liste!D28)","v":" "},null,null,null,null,null,null,null,null,null,null,null,null,null,null,null,null,null,null,null,null,null,null,null,null,null," "," "]
[null,null,25,{"$f":"IF(Liste!C29=0,\" \",Liste!C29)","v":" "},{"$f":"IF(Liste!D29=0,\" \",Liste!D29)","v":" "},null,null,null,null,null,null,null,null,null,null,null,null,null,null,null,null,null,null,null,null,null,null,null,null,null," "," "]
[null,null,26,{"$f":"IF(Liste!C30=0,\" \",Liste!C30)","v":" "},{"$f":"IF(Liste!D30=0,\" \",Liste!D30)","v":" "},null,null,null,null,null,null,null,null,null,null,null,null,null,null,null,null,null,null,null,null,null,null,null,null,null," "," "]
[null,null,27,{"$f":"IF(Liste!C31=0,\" \",Liste!C31)","v":" "},{"$f":"IF(Liste!D31=0,\" \",Liste!D31)","v":" "},null,null,null,null,null,null,null,null,null,null,null,null,null,null,null,null,null,null,null,null,null,null,null,null,null," "," "]
[null,null,28,{"$f":"IF(Liste!C32=0,\" \",Liste!C32)","v":" "},{"$f":"IF(Liste!D32=0,\" \",Liste!D32)","v":" "},null,null,null,null,null,null,null,null,null,null,null,null,null,null,null,null,null,null,null,null,null,null,null,null,null," "," "]
[null,null,29,{"$f":"IF(Liste!C33=0,\" \",Liste!C33)","v":" "},{"$f":"IF(Liste!D33=0,\" \",Liste!D33)","v":" "},null,null,null,null,null,null,null,null,null,null,null,null,null,null,null,null,null,null,null,null,null,null,null,null,null," "," "]
[null,null,30,{"$f":"IF(Liste!C34=0,\" \",Liste!C34)","v":" "},{"$f":"IF(Liste!D34=0,\" \",Liste!D34)","v":" "},null,null,null,null,null,null,null,null,null,null,null,null,null,null,null,null,null,null,null,null,null,null,null,null,null," "," "]
[null,null,31,{"$f":"IF(Liste!C35=0,\" \",Liste!C35)","v":" "},{"$f":"IF(Liste!D35=0,\" \",Liste!D35)","v":" "},null,null,null,null,null,null,null,null,null,null,null,null,null,null,null,null,null,null,null,null,null,null,null,null,null," "," "]
[null,null,32,{"$f":"IF(Liste!C36=0,\" \",Liste!C36)","v":" "},{"$f":"IF(Liste!D36=0,\" \",Liste!D36)","v":" "},null,null,null,null,null,null,null,null,null,null,null,null,null,null,null,null,null,null,null,null,null,null,null,null,null," "," "]
[null,null,33,{"$f":"IF(Liste!C37=0,\" \",Liste!C37)","v":" "},{"$f":"IF(Liste!D37=0,\" \",Liste!D37)","v":" "},null,null,null,null,null,null,null,null,null,null,null,null,null,null,null,null,null,null,null,null,null,null,null,null,null," "," "]
[null,null,34,{"$f":"IF(Liste!C38=0,\" \",Liste!C38)","v":" "},{"$f":"IF(Liste!D38=0,\" \",Liste!D38)","v":" "},null,null,null,null,null,null,null,null,null,null,null,null,null,null,null,null,null,null,null,null,null,null,null,null,null," "," "]
[null,null,35,{"$f":"IF(Liste!C39=0,\" \",Liste!C39)","v":" "},{"$f":"IF(Liste!D39=0,\" \",Liste!D39)","v":" "},null,null,null,null,null,null,null,null,null,null,null,null,null,null,null,null,null,null,null,null,null,null,null,null,null," "," "]
[null,null,"SORULARA GÖRE BAŞARI (%)",null,null,{"$f":"IF(F9=0,\" \",((SUM(F38:F72)/COUNT(F38:F72))*100)/F9)","v":" "},{"$f":"IF(F10=0,\" \",((SUM(G38:G72)/COUNT(G38:G72))*100)/F10)","v":" "},{"$f":"IF(F11=0,\" \",((SUM(H38:H72)/COUNT(H38:H72))*100)/F11)","v":" "},{"$f":"IF(F12=0,\" \",((SUM(I38:I72)/COUNT(I38:I72))*100)/F12)","v":" "},{"$f":"IF(F13=0,\" \",((SUM(J38:J72)/COUNT(J38:J72))*100)/F13)","v":" "},{"$f":"IF(F14=0,\" \",((SUM(K38:K72)/COUNT(K38:K72))*100)/F14)","v":" "},{"$f":"IF(F15=0,\" \",((SUM(L38:L72)/COUNT(L38:L72))*100)/F15)","v":" "},{"$f":"IF(F16=0,\" \",((SUM(M38:M72)/COUNT(M38:M72))*100)/F16)","v":" "},{"$f":"IF(F17=0,\" \",((SUM(N38:N72)/COUNT(N38:N72))*100)/F17)","v":" "},{"$f":"IF(F18=0,\" \",((SUM(O38:O72)/COUNT(O38:O72))*100)/F18)","v":" "},{"$f":"IF(F19=0,\" \",((SUM(P38:P72)/COUNT(P38:P72))*100)/F19)","v":" "},{"$f":"IF(F20=0,\" \",((SUM(Q38:Q72)/COUNT(Q38:Q72))*100)/F20)","v":" "},{"$f":"IF(F21=0,\" \",((SUM(R38:R72)/COUNT(R38:R72))*100)/F21)","v":" "},{"$f":"IF(F22=0,\" \",((SUM(S38:S72)/COUNT(S38:S72))*100)/F22)","v":" "},{"$f":"IF(F23=0,\" \",((SUM(T38:T72)/COUNT(T38:T72))*100)/F23)","v":" "},{"$f":"IF(F24=0,\" \",((SUM(U38:U72)/COUNT(U38:U72))*100)/F24)","v":" "},{"$f":"IF(F25=0,\" \",((SUM(V38:V72)/COUNT(V38:V72))*100)/F25)","v":" "},{"$f":"IF(F26=0,\" \",((SUM(W38:W72)/COUNT(W38:W72))*100)/F26)","v":" "},{"$f":"IF(F27=0,\" \",((SUM(X38:X72)/COUNT(X38:X72))*100)/F27)","v":" "},{"$f":"IF(F28=0,\" \",((SUM(Y38:Y72)/COUNT(Y38:Y72))*100)/F28)","v":" "},{"$f":"IF(F29=0,\" \",((SUM(Z38:Z72)/COUNT(Z38:Z72))*100)/F29)","v":" "},{"$f":"IF(F30=0,\" \",((SUM(AA38:AA72)/COUNT(AA38:AA72))*100)/F30)","v":" "},{"$f":"IF(F31=0,\" \",((SUM(AB38:AB72)/COUNT(AB38:AB72))*100)/F31)","v":" "},{"$f":"IF(F32=0,\" \",((SUM(AC38:AC72)/COUNT(AC38:AC72))*100)/F32)","v":" "},{"$f":"IF(F33=0,\" \",((SUM(AD38:AD72)/COUNT(AD38:AD72))*100)/F33)","v":" "}]
[]
[]
[null,null,null,null,null,null,null,null,null,null,null,null,null,null,null,null,null,null,null,null,null,null,null,null,null,null,null,{"$f":"TODAY()","v":"2024-01-08"}]
[null,null,null,null,null,null,null,null,null,null,null,null,null,null,null,null,null,null,null,null,null,null,null,null,null,null,null,{"$f":"Liste!H10","v":"YUNUS EFİLOĞLU"}]
[null,null,null,null,null,null,null,null,null,null,null,null,null,null,null,null,null,null,null,null,null,null,null,null,null,null,null,"Okul Müdürü"]

{"sheet":"2.Dön-3.Sınav","index":8,"n_rows":78,"n_cols":36,"rows_kept":78,"cut":false,"hidden":false,"merged":[[1,2,1,31],[1,33,1,35],[2,2,2,3],[2,4,2,5],[2,6,2,9],[2,10,2,15],[2,17,3,31],[2,33,2,35],[3,2,3,3],[3,4,3,5],[3,6,3,9],[3,10,3,15],[4,2,4,3],[4,4,4,5],[4,6,4,9],[4,10,4,15],[4,17,4,28],[4,29,4,30],[4,33,6,35],[5,2,5,3],[5,4,5,5],[5,6,5,9],[5,10,5,15],[5,17,5,31],[6,17,9,31],[7,2,7,4],[7,7,7,15],[8,3,8,4],[8,7,8,13],[8,14,8,15],[9,3,9,4],[9,7,9,13],[9,14,9,15],[10,3,10,4],[10,7,10,13],[10,14,10,15],[10,17,13,31],[11,3,11,4],[11,7,11,13],[11,14,11,15],[12,3,12,4],[12,7,12,13],[12,14,12,15],[17,3,17,4],[17,7,17,31],[13,3,13,4],[13,7,13,15],[14,3,14,4],[14,7,14,13],[14,14,14,15],[14,28,14,31],[15,3,15,4],[15,7,15,13],[15,14,15,15],[15,28,15,31],[16,3,16,4],[29,3,29,4],[18,3,18,4],[19,3,19,4],[20,3,20,4],[21,3,21,4],[22,3,22,4],[23,3,23,4],[24,3,24,4],[25,3,25,4],[26,3,26,4],[27,3,27,4],[28,3,28,4],[77,27,77,31],[30,3,30,4],[31,3,31,4],[32,3,32,4],[33,2,33,4],[35,2,35,4],[35,5,35,29],[35,30,36,30],[35,31,36,31],[72,2,72,4],[75,27,75,31],[76,27,76,31]]}
[]
[null,null,"SORU ANALİZİ VE SINAV BAŞARI DEĞERLENDİRMESİ",null,null,null,null,null,null,null,null,null,null,null,null,null,null,null,null,null,null,null,null,null,null,null,null,null,null,null,null,null,null,"Orhan Zeki KOCAMAN"]
[null,null,"Okul ",null,{"$f":"Liste!G4&Liste!H4","v":":OLTU NENEHATUN MESLEKİ  VE TEKNİK ANADOLU LİSESİ"},null,"Sınıf ",null,null,null,{"$f":"Liste!G6&\" \"&Liste!H6","v":": 9/A"},null,null,null,null,null,null,"SINAVIN DEĞERLENDİRİLMESİ",null,null,null,null,null,null,null,null,null,null,null,null,null,null,null,"www.ahgal.meb.k12.tr"]
[null,null,"Öğretim Yılı ",null,{"$f":"Liste!G5&Liste!H5","v":":2023-2024"},null,"Sınav No",null,null,null,": 3.Sınav"]
[null,null,"Dönem ",null,": 2.Dönem",null,"Ders",null,null,null,{"$f":"Liste!G8&\" \"&Liste!H7","v":": "},null,null,null,null,null,null,"Yapılan sınavda sınıfın genel başarı yüzdesi",null,null,null,null,null,null,null,null,null,null,null,{"$f":"O16","v":{"$error":"#DIV/0!"}},null,"olmuştur.",null,"Buraya dokunmayınız. Yazıcıda bu kısım çıkmaz.Formüller için gereklidir. Sakın Silmeyin…"]
[null,null,"Öğretmen",null,{"$f":"Liste!G7&Liste!H8","v":":YUNUS EFİLOĞLU"},null,null,null,null,null,null,null,null,null,null,null,null,"Aşağıda belirtilen konularda başarı oranı %50 nin altında kalmıştır."]
[null,null,null,null,null,null,null,null,null,null,null,null,null,null,null,null,null,{"$f":"CONCATENATE(AJ9,AJ10,AJ11,AJ12,AJ13,AJ14,AJ15,AJ16,AJ17,AJ18,AJ19,AJ20,AJ21,AJ23,AJ24,AJ25,AJ26,AJ27,AJ28,AJ29,AJ30,AJ31,AJ32,AJ33)","v":""}]
[null,null,"Soruların ilgili olduğu konular",null,null,"Puan",null,"SINAV ANALİZİ"]
[null,null,1,null,null,null,null,"GEÇMEZ alan öğrenci sayısı",null,null,null,null,null,null,{"$f":"COUNTIF(AF38:AF72,\"GEÇMEZ\")","v":0},null,null,null,null,null,null,null,null,null,null,null,null,null,null,null,null,null,null,{"$f":"IF(D9=0,\"\",D9)","v":""},{"$f":"F73","v":" "},{"$f":"IF(AI9<50,\"    * \"&AH9,\"\")","v":""}]
[null,null,2,null,null,null,null,"GEÇER alan öğrenci sayısı",null,null,null,null,null,null,{"$f":"COUNTIF(AF38:AF72,\"GEÇER\")","v":0},null,null,null,null,null,null,null,null,null,null,null,null,null,null,null,null,null,null,"",{"$f":"G73","v":" "},{"$f":"IF(AI10<50,\"    * \"&AH10,\"\")","v":""}]
[null,null,3,null,null,null,null,"ORTA alan öğrenci sayısı",null,null,null,null,null,null,{"$f":"COUNTIF(AF38:AF72,\"ORTA\")","v":0},null,null,"Başarının düşük olduğu bu konular sınıfta ilan edildi. Sınav soruları  sınıfta çözüldü. Özellikle bu konular üzerinde ayrıntılı olarak açıklama yapıldı. Yapılan hatalar vurgulandı.",null,null,null,null,null,null,null,null,null,null,null,null,null,null,null,"",{"$f":"H73","v":" "},""]
[null,null,4,null,null,null,null,"İYİ alan öğrenci sayısı",null,null,null,null,null,null,{"$f":"COUNTIF(AF38:AF72,\"İYİ\")","v":0},null,null,null,null,null,null,null,null,null,null,null,null,null,null,null,null,null,null,"",{"$f":"I73","v":" "},""]
[null,null,5,null,null,null,null,"PEKİYİ alan öğrenci sayısı",null,null,null,null,null,null,{"$f":"COUNTIF(AF38:AF72,\"PEKİYİ\")","v":0},null,null,null,null,null,null,null,null,null,null,null,null,null,null,null,null,null,null,"",{"$f":"J73","v":" "},""]
[null,null,6,null,null,null,null,null,null,null,null,null,null,null,null,null,null,null,null,null,null,null,null,null,null,null,null,null,null,null,null,null,null,"",{"$f":"K73","v":" "},""]
[null,null,7,null,null,null,null,"Alınan puanların ortalaması",null,null,null,null,null,null,{"$f":"IF(COUNT(AE38:AE72)=0,\" \",SUM(AE38:AE72)/COUNT(AE38:AE72))","v":" "},null,null,null,null,null,null,null,null,null,null,null,null,null,{"$f":"Liste!H8","v":"YUNUS EFİLOĞLU"},null,null,null,null,"",{"$f":"L73","v":" "},""]
[null,null,8,null,null,null,null,"Sınıfın Başarı Yüzdesi",null,null,null,null,null,null,{"$f":"SUM(O10:O13)/SUM(O9:O14)","v":{"$error":"#DIV/0!"}},null,null,null,null,null,null,null,null,null,null,null,null,null,{"$f":"Liste!H9","v":"Yiyecek İçecek Hizmetleri"},null,null,null,null,"",{"$f":"M73","v":" "},""]
[null,null,9,null,null,null,null,null,null,null,null,null,null,null,null,null,null,null,null,null,null,null,null,null,null,null,null,null,null,null,null,null,null,"",{"$f":"N73","v":" "},""]
[null,null,10,null,null,null,null,"GRAFİK ANALİZ",null,null,null,null,null,null,null,null,null,null,null,null,null,null,null,null,null,null,null,null,null,null,null,null,null,"",{"$f":"O73","v":" "},""]
[null,null,11,null,null,null,null,null,null,null,null,null,null,null,null,null,null,null,null,null,null,null,null,null,null,null,null,null,null,null,null,null,null,"",{"$f":"P73","v":" "},""]
[null,null,12,null,null,null,null,null,null,null,null,null,null,null,null,null,null,null,null,null,null,null,null,null,null,null,null,null,null,null,null,null,null,"",{"$f":"Q73","v":" "},""]
[null,null,13,null,null,null,null,null,null,null,null,null,null,null,null,null,null,null,null,null,null,null,null,null,null,null,null,null,null,null,null,null,null,"",{"$f":"R73","v":" "},""]
[null,null,14,null,null,null,null,null,null,null,null,null,null,null,null,null,null,null,null,null,null,null,null,null,null,null,null,null,null,null,null,null,null,"",{"$f":"S73","v":" "},""]
[null,null,15,null,null,null,null,null,null,null,null,null,null,null,null,null,null,null,null,null,null,null,null,null,null,null,null,null,null,null,null,null,null,"",{"$f":"T73","v":" "},""]
[null,null,16,null,null,null,null,null,null,null,null,null,null,null,null,null,null,null,null,null,null,null,null,null,null,null,null,null,null,null,null,null,null,"",{"$f":"U73","v":" "},""]
[null,null,17,null,null,null,null,null,null,null,null,null,null,null,null,null,null,null,null,null,null,null,null,null,null,null,null,null,null,null,null,null,null,"",{"$f":"V73","v":" "},""]
[null,null,18,null,null,null,null,null,null,null,null,null,null,null,null,null,null,null,null,null,null,null,null,null,null,null,null,null,null,null,null,null,null,"",{"$f":"W73","v":" "},""]
[null,null,19,null,null,null,null,null,null,null,null,null,null,null,null,null,null,null,null,null,null,null,null,null,null,null,null,null,null,null,null,null,null,"",{"$f":"X73","v":" "},""]
[null,null,20,null,null,null,null,null,null,null,null,null,null,null,null,null,null,null,null,null,null,null,null,null,null,null,null,null,null,null,null,null,null,"",{"$f":"Y73","v":" "},""]
[null,null,21,null,null,null,null,null,null,null,null,null,null,null,null,null,null,null,null,null,null,null,null,null,null,null,null,null,null,null,null,null,null,"",{"$f":"Z73","v":" "},""]
[null,null,22,null,null,null,null,null,null,null,null,null,null,null,null,null,null,null,null,null,null,null,null,null,null,null,null,null,null,null,null,null,null,"",{"$f":"AA73","v":" "},""]
[null,null,23,null,null,null,null,null,null,null,null,null,null,null,null,null,null,null,null,null,null,null,null,null,null,null,null,null,null,null,null,null,null,"",{"$f":"AB73","v":" "},""]
[null,null,24,null,null,null,null,null,null,null,null,null,null,null,null,null,null,null,null,null,null,null,null,null,null,null,null,null,null,null,null,null,null,"",{"$f":"AC73","v":" "},""]
[null,null,25,null,null,null,null,null,null,null,null,null,null,null,null,null,null,null,null,null,null,null,null,null,null,null,null,null,null,null,null,null,null,"",{"$f":"AD73","v":" "},""]
[null,null,"TOPLAM",null,null,{"$f":"SUM(F9:F33)","v":0}]
[]
[null,null,"ÖĞRENCİNİN",null,null,"SORULAR",null,null,null,null,null,null,null,null,null,null,null,null,null,null,null,null,null,null,null,null,null,null,null,null,"PUAN","SONUÇ"]
[null,null,"SIRA\nNO","OKUL\n NO","ADI VE SOYADI",1,2,3,4,5,6,7,8,9,10,11,12,13,14,15,16,17,18,19,20,21,22,23,24,25]
[null,null,1,{"$f":"IF(Liste!$C5=0,\" \",Liste!C5)","v":" "},{"$f":"IF(Liste!$D5=0,\" \",Liste!$D5)","v":" "},null,null,null,null,null,null,null,null,null,null,null,null,null,null,null,null,null,null,null,null,null,null,null,null,null,{"$f":"IF(COUNTBLANK(F38:AD38)=COLUMNS(F38:AD38),\" \",IF(SUM(F38:AD38)=0,0,SUM(F38:AD38)))","v":" "},{"$f":"IF(AE38=\" \",\" \",IF(AE38>=85,\"PEKİYİ\",IF(AE38>=70,\"İYİ\",IF(AE38>=60,\"ORTA\",IF(AE38>=50,\"GEÇER\",IF(AE38<50,\"GEÇMEZ\"))))))","v":" "}]
[null,null,2,{"$f":"IF(Liste!C6=0,\" \",Liste!C6)","v":" "},{"$f":"IF(Liste!D6=0,\" \",Liste!D6)","v":" "},null,null,null,null,null,null,null,null,null,null,null,null,null,null,null,null,null,null,null,null,null,null,null,null,null," ",{"$f":"IF(AE39=\" \",\" \",IF(AE39>=85,\"PEKİYİ\",IF(AE39>=70,\"İYİ\",IF(AE39>=60,\"ORTA\",IF(AE39>=50,\"GEÇER\",IF(AE39<50,\"GEÇMEZ\",0))))))","v":" "}]
[null,null,3,{"$f":"IF(Liste!C7=0,\" \",Liste!C7)","v":" "},{"$f":"IF(Liste!D7=0,\" \",Liste!D7)","v":" "},null,null,null,null,null,null,null,null,null,null,null,null,null,null,null,null,null,null,null,null,null,null,null,null,null," "," "]
[null,null,4,{"$f":"IF(Liste!C8=0,\" \",Liste!C8)","v":" "},{"$f":"IF(Liste!D8=0,\" \",Liste!D8)","v":" "},null,null,null,null,null,null,null,null,null,null,null,null,null,null,null,null,null,null,null,null,null,null,null,null,null," "," "]
[null,null,5,{"$f":"IF(Liste!C9=0,\" \",Liste!C9)","v":" "},{"$f":"IF(Liste!D9=0,\" \",Liste!D9)","v":" "},null,null,null,null,null,null,null,null,null,null,null,null,null,null,null,null,null,null,null,null,null,null,null,null,null," "," "]
[null,null,6,{"$f":"IF(Liste!C10=0,\" \",Liste!C10)","v":" "},{"$f":"IF(Liste!D10=0,\" \",Liste!D10)","v":" "},null,null,null,null,null,null,null,null,null,null,null,null,null,null,null,null,null,null,null,null,null,null,null,null,null," "," "]
[null,null,7,{"$f":"IF(Liste!C11=0,\" \",Liste!C11)","v":" "},{"$f":"IF(Liste!D11=0,\" \",Liste!D11)","v":" "},null,null,null,null,null,null,null,null,null,null,null,null,null,null,null,null,null,null,null,null,null,null,null,null,null," "," "]
[null,null,8,{"$f":"IF(Liste!C12=0,\" \",Liste!C12)","v":" "},{"$f":"IF(Liste!D12=0,\" \",Liste!D12)","v":" "},null,null,null,null,null,null,null,null,null,null,null,null,null,null,null,null,null,null,null,null,null,null,null,null,null," "," "]
[null,null,9,{"$f":"IF(Liste!C13=0,\" \",Liste!C13)","v":" "},{"$f":"IF(Liste!D13=0,\" \",Liste!D13)","v":" "},null,null,null,null,null,null,null,null,null,null,null,null,null,null,null,null,null,null,null,null,null,null,null,null,null," "," "]
[null,null,10,{"$f":"IF(Liste!C14=0,\" \",Liste!C14)","v":" "},{"$f":"IF(Liste!D14=0,\" \",Liste!D14)","v":" "},null,null,null,null,null,null,null,null,null,null,null,null,null,null,null,null,null,null,null,null,null,null,null,null,null," "," "]
[null,null,11,{"$f":"IF(Liste!C15=0,\" \",Liste!C15)","v":" "},{"$f":"IF(Liste!D15=0,\" \",Liste!D15)","v":" "},null,null,null,null,null,null,null,null,null,null,null,null,null,null,null,null,null,null,null,null,null,null,null,null,null," "," "]
[null,null,12,{"$f":"IF(Liste!C16=0,\" \",Liste!C16)","v":" "},{"$f":"IF(Liste!D16=0,\" \",Liste!D16)","v":" "},null,null,null,null,null,null,null,null,null,null,null,null,null,null,null,null,null,null,null,null,null,null,null,null,null," "," "]
[null,null,13,{"$f":"IF(Liste!C17=0,\" \",Liste!C17)","v":" "},{"$f":"IF(Liste!D17=0,\" \",Liste!D17)","v":" "},null,null,null,null,null,null,null,null,null,null,null,null,null,null,null,null,null,null,null,null,null,null,null,null,null," "," "]
[null,null,14,{"$f":"IF(Liste!C18=0,\" \",Liste!C18)","v":" "},{"$f":"IF(Liste!D18=0,\" \",Liste!D18)","v":" "},null,null,null,null,null,null,null,null,null,null,null,null,null,null,null,null,null,null,null,null,null,null,null,null,null," "," "]
[null,null,15,{"$f":"IF(Liste!C19=0,\" \",Liste!C19)","v":" "},{"$f":"IF(Liste!D19=0,\" \",Liste!D19)","v":" "},null,null,null,null,null,null,null,null,null,null,null,null,null,null,null,null,null,null,null,null,null,null,null,null,null," "," "]
[null,null,16,{"$f":"IF(Liste!C20=0,\" \",Liste!C20)","v":" "},{"$f":"IF(Liste!D20=0,\" \",Liste!D20)","v":" "},null,null,null,null,null,null,null,null,null,null,null,null,null,null,null,null,null,null,null,null,null,null,null,null,null," "," "]
[null,null,17,{"$f":"IF(Liste!C21=0,\" \",Liste!C21)","v":" "},{"$f":"IF(Liste!D21=0,\" \",Liste!D21)","v":" "},null,null,null,null,null,null,null,null,null,null,null,null,null,null,null,null,null,null,null,null,null,null,null,null,null," "," "]
[null,null,18,{"$f":"IF(Liste!C22=0,\" \",Liste!C22)","v":" "},{"$f":"IF(Liste!D22=0,\" \",Liste!D22)","v":" "},null,null,null,null,null,null,null,null,null,null,null,null,null,null,null,null,null,null,null,null,null,null,null,null,null," "," "]
[null,null,19,{"$f":"IF(Liste!C23=0,\" \",Liste!C23)","v":" "},{"$f":"IF(Liste!D23=0,\" \",Liste!D23)","v":" "},null,null,null,null,null,null,null,null,null,null,null,null,null,null,null,null,null,null,null,null,null,null,null,null,null," "," "]
[null,null,20,{"$f":"IF(Liste!C24=0,\" \",Liste!C24)","v":" "},{"$f":"IF(Liste!D24=0,\" \",Liste!D24)","v":" "},null,null,null,null,null,null,null,null,null,null,null,null,null,null,null,null,null,null,null,null,null,null,null,null,null," "," "]
[null,null,21,{"$f":"IF(Liste!C25=0,\" \",Liste!C25)","v":" "},{"$f":"IF(Liste!D25=0,\" \",Liste!D25)","v":" "},null,null,null,null,null,null,null,null,null,null,null,null,null,null,null,null,null,null,null,null,null,null,null,null,null," "," "]
[null,null,22,{"$f":"IF(Liste!C26=0,\" \",Liste!C26)","v":" "},{"$f":"IF(Liste!D26=0,\" \",Liste!D26)","v":" "},null,null,null,null,null,null,null,null,null,null,null,null,null,null,null,null,null,null,null,null,null,null,null,null,null," "," "]
[null,null,23,{"$f":"IF(Liste!C27=0,\" \",Liste!C27)","v":" "},{"$f":"IF(Liste!D27=0,\" \",Liste!D27)","v":" "},null,null,null,null,null,null,null,null,null,null,null,null,null,null,null,null,null,null,null,null,null,null,null,null,null," "," "]
[null,null,24,{"$f":"IF(Liste!C28=0,\" \",Liste!C28)","v":" "},{"$f":"IF(Liste!D28=0,\" \",Liste!D28)","v":" "},null,null,null,null,null,null,null,null,null,null,null,null,null,null,null,null,null,null,null,null,null,null,null,null,null," "," "]
[null,null,25,{"$f":"IF(Liste!C29=0,\" \",Liste!C29)","v":" "},{"$f":"IF(Liste!D29=0,\" \",Liste!D29)","v":" "},null,null,null,null,null,null,null,null,null,null,null,null,null,null,null,null,null,null,null,null,null,null,null,null,null," "," "]
[null,null,26,{"$f":"IF(Liste!C30=0,\" \",Liste!C30)","v":" "},{"$f":"IF(Liste!D30=0,\" \",Liste!D30)","v":" "},null,null,null,null,null,null,null,null,null,null,null,null,null,null,null,null,null,null,null,null,null,null,null,null,null," "," "]
[null,null,27,{"$f":"IF(Liste!C31=0,\" \",Liste!C31)","v":" "},{"$f":"IF(Liste!D31=0,\" \",Liste!D31)","v":" "},null,null,null,null,null,null,null,null,null,null,null,null,null,null,null,null,null,null,null,null,null,null,null,null,null," "," "]
[null,null,28,{"$f":"IF(Liste!C32=0,\" \",Liste!C32)","v":" "},{"$f":"IF(Liste!D32=0,\" \",Liste!D32)","v":" "},null,null,null,null,null,null,null,null,null,null,null,null,null,null,null,null,null,null,null,null,null,null,null,null,null," "," "]
[null,null,29,{"$f":"IF(Liste!C33=0,\" \",Liste!C33)","v":" "},{"$f":"IF(Liste!D33=0,\" \",Liste!D33)","v":" "},null,null,null,null,null,null,null,null,null,null,null,null,null,null,null,null,null,null,null,null,null,null,null,null,null," "," "]
[null,null,30,{"$f":"IF(Liste!C34=0,\" \",Liste!C34)","v":" "},{"$f":"IF(Liste!D34=0,\" \",Liste!D34)","v":" "},null,null,null,null,null,null,null,null,null,null,null,null,null,null,null,null,null,null,null,null,null,null,null,null,null," "," "]
[null,null,31,{"$f":"IF(Liste!C35=0,\" \",Liste!C35)","v":" "},{"$f":"IF(Liste!D35=0,\" \",Liste!D35)","v":" "},null,null,null,null,null,null,null,null,null,null,null,null,null,null,null,null,null,null,null,null,null,null,null,null,null," "," "]
[null,null,32,{"$f":"IF(Liste!C36=0,\" \",Liste!C36)","v":" "},{"$f":"IF(Liste!D36=0,\" \",Liste!D36)","v":" "},null,null,null,null,null,null,null,null,null,null,null,null,null,null,null,null,null,null,null,null,null,null,null,null,null," "," "]
[null,null,33,{"$f":"IF(Liste!C37=0,\" \",Liste!C37)","v":" "},{"$f":"IF(Liste!D37=0,\" \",Liste!D37)","v":" "},null,null,null,null,null,null,null,null,null,null,null,null,null,null,null,null,null,null,null,null,null,null,null,null,null," "," "]
[null,null,34,{"$f":"IF(Liste!C38=0,\" \",Liste!C38)","v":" "},{"$f":"IF(Liste!D38=0,\" \",Liste!D38)","v":" "},null,null,null,null,null,null,null,null,null,null,null,null,null,null,null,null,null,null,null,null,null,null,null,null,null," "," "]
[null,null,35,{"$f":"IF(Liste!C39=0,\" \",Liste!C39)","v":" "},{"$f":"IF(Liste!D39=0,\" \",Liste!D39)","v":" "},null,null,null,null,null,null,null,null,null,null,null,null,null,null,null,null,null,null,null,null,null,null,null,null,null," "," "]
[null,null,"SORULARA GÖRE BAŞARI (%)",null,null,{"$f":"IF(F9=0,\" \",((SUM(F38:F72)/COUNT(F38:F72))*100)/F9)","v":" "},{"$f":"IF(F10=0,\" \",((SUM(G38:G72)/COUNT(G38:G72))*100)/F10)","v":" "},{"$f":"IF(F11=0,\" \",((SUM(H38:H72)/COUNT(H38:H72))*100)/F11)","v":" "},{"$f":"IF(F12=0,\" \",((SUM(I38:I72)/COUNT(I38:I72))*100)/F12)","v":" "},{"$f":"IF(F13=0,\" \",((SUM(J38:J72)/COUNT(J38:J72))*100)/F13)","v":" "},{"$f":"IF(F14=0,\" \",((SUM(K38:K72)/COUNT(K38:K72))*100)/F14)","v":" "},{"$f":"IF(F15=0,\" \",((SUM(L38:L72)/COUNT(L38:L72))*100)/F15)","v":" "},{"$f":"IF(F16=0,\" \",((SUM(M38:M72)/COUNT(M38:M72))*100)/F16)","v":" "},{"$f":"IF(F17=0,\" \",((SUM(N38:N72)/COUNT(N38:N72))*100)/F17)","v":" "},{"$f":"IF(F18=0,\" \",((SUM(O38:O72)/COUNT(O38:O72))*100)/F18)","v":" "},{"$f":"IF(F19=0,\" \",((SUM(P38:P72)/COUNT(P38:P72))*100)/F19)","v":" "},{"$f":"IF(F20=0,\" \",((SUM(Q38:Q72)/COUNT(Q38:Q72))*100)/F20)","v":" "},{"$f":"IF(F21=0,\" \",((SUM(R38:R72)/COUNT(R38:R72))*100)/F21)","v":" "},{"$f":"IF(F22=0,\" \",((SUM(S38:S72)/COUNT(S38:S72))*100)/F22)","v":" "},{"$f":"IF(F23=0,\" \",((SUM(T38:T72)/COUNT(T38:T72))*100)/F23)","v":" "},{"$f":"IF(F24=0,\" \",((SUM(U38:U72)/COUNT(U38:U72))*100)/F24)","v":" "},{"$f":"IF(F25=0,\" \",((SUM(V38:V72)/COUNT(V38:V72))*100)/F25)","v":" "},{"$f":"IF(F26=0,\" \",((SUM(W38:W72)/COUNT(W38:W72))*100)/F26)","v":" "},{"$f":"IF(F27=0,\" \",((SUM(X38:X72)/COUNT(X38:X72))*100)/F27)","v":" "},{"$f":"IF(F28=0,\" \",((SUM(Y38:Y72)/COUNT(Y38:Y72))*100)/F28)","v":" "},{"$f":"IF(F29=0,\" \",((SUM(Z38:Z72)/COUNT(Z38:Z72))*100)/F29)","v":" "},{"$f":"IF(F30=0,\" \",((SUM(AA38:AA72)/COUNT(AA38:AA72))*100)/F30)","v":" "},{"$f":"IF(F31=0,\" \",((SUM(AB38:AB72)/COUNT(AB38:AB72))*100)/F31)","v":" "},{"$f":"IF(F32=0,\" \",((SUM(AC38:AC72)/COUNT(AC38:AC72))*100)/F32)","v":" "},{"$f":"IF(F33=0,\" \",((SUM(AD38:AD72)/COUNT(AD38:AD72))*100)/F33)","v":" "}]
[]
[]
[null,null,null,null,null,null,null,null,null,null,null,null,null,null,null,null,null,null,null,null,null,null,null,null,null,null,null,{"$f":"TODAY()","v":"2024-01-08"}]
[null,null,null,null,null,null,null,null,null,null,null,null,null,null,null,null,null,null,null,null,null,null,null,null,null,null,null,{"$f":"Liste!H10","v":"YUNUS EFİLOĞLU"}]
[null,null,null,null,null,null,null,null,null,null,null,null,null,null,null,null,null,null,null,null,null,null,null,null,null,null,null,"Okul Müdürü"]

{"sheet":"2.Dön-1.Per","index":9,"n_rows":25,"n_cols":80,"rows_kept":25,"cut":false,"hidden":false,"merged":[[5,25,5,28],[23,2,23,10],[19,1,19,37],[22,28,22,36],[5,2,5,13],[23,28,23,36],[5,29,5,34],[7,1,8,1],[7,2,8,2],[24,2,24,10],[24,28,24,36],[21,2,21,10],[21,28,21,36],[22,2,22,10],[1,1,1,37],[3,2,3,13],[3,25,3,28],[3,29,3,34],[4,2,4,13],[4,25,4,28],[4,29,4,34]]}
[]
[null,"PERFORMANS DEĞERLENDİRME ÇİZELGESİ"]
[]
[null,"Okul ",{"$f":"\": \"&Liste!H4","v":": OLTU NENEHATUN MESLEKİ  VE TEKNİK ANADOLU LİSESİ"},null,null,null,null,null,null,null,null,null,null,null,null,null,null,null,null,null,null,null,null,null,null,"Sınıf ",null,null,null,{"$f":"\": \"&Liste!H6","v":": 9/A"}]
[null,"Öğretim Yılı ",{"$f":"\": \"&Liste!H5","v":": 2023-2024"},null,null,null,null,null,null,null,null,null,null,null,null,null,null,null,null,null,null,null,null,null,null,"Ders",null,null,null,{"$f":"\": \"&Liste!H7","v":": "}]
[null,"Dönem ",": 2.Dönem",null,null,null,null,null,null,null,null,null,null,null,null,null,null,null,null,null,null,null,null,null,null,"Öğretmen",null,null,null,{"$f":"\": \"&Liste!H8","v":": YUNUS EFİLOĞLU"}]
[]
[null,"DEĞERLENDİRME ÖLÇEĞİ","ADI SOYADI",1,2,3,4,5,6,7,8,9,10,11,12,13,14,15,16,17,18,19,20,21,22,23,24,25,26,27,28,29,30,31,32,33,34,35]
[null,null,null,{"$f":"IF(Liste!$D5=0,\" \",Liste!$D5)","v":" "},{"$f":"IF(Liste!$D6=0,\" \",Liste!$D6)","v":" "},{"$f":"IF(Liste!$D7=0,\" \",Liste!$D7)","v":" "},{"$f":"IF(Liste!$D8=0,\" \",Liste!$D8)","v":" "},{"$f":"IF(Liste!$D9=0,\" \",Liste!$D9)","v":" "},{"$f":"IF(Liste!$D10=0,\" \",Liste!$D10)","v":" "},{"$f":"IF(Liste!$D11=0,\" \",Liste!$D11)","v":" "},{"$f":"IF(Liste!$D12=0,\" \",Liste!$D12)","v":" "},{"$f":"IF(Liste!$D13=0,\" \",Liste!$D13)","v":" "},{"$f":"IF(Liste!$D14=0,\" \",Liste!$D14)","v":" "},{"$f":"IF(Liste!$D15=0,\" \",Liste!$D15)","v":" "},{"$f":"IF(Liste!$D16=0,\" \",Liste!$D16)","v":" "},{"$f":"IF(Liste!$D17=0,\" \",Liste!$D17)","v":" "},{"$f":"IF(Liste!$D18=0,\" \",Liste!$D18)","v":" "},{"$f":"IF(Liste!$D19=0,\" \",Liste!$D19)","v":" "},{"$f":"IF(Liste!$D20=0,\" \",Liste!$D20)","v":" "},{"$f":"IF(Liste!$D21=0,\" \",Liste!$D21)","v":" "},{"$f":"IF(Liste!$D22=0,\" \",Liste!$D22)","v":" "},{"$f":"IF(Liste!$D23=0,\" \",Liste!$D23)","v":" "},{"$f":"IF(Liste!$D24=0,\" \",Liste!$D24)","v":" "},{"$f":"IF(Liste!$D25=0,\" \",Liste!$D25)","v":" "},{"$f":"IF(Liste!$D26=0,\" \",Liste!$D26)","v":" "},{"$f":"IF(Liste!$D27=0,\" \",Liste!$D27)","v":" "},{"$f":"IF(Liste!$D28=0,\" \",Liste!$D28)","v":" "},{"$f":"IF(Liste!$D29=0,\" \",Liste!$D29)","v":" "},{"$f":"IF(Liste!$D30=0,\" \",Liste!$D30)","v":" "},{"$f":"IF(Liste!$D31=0,\" \",Liste!$D31)","v":" "},{"$f":"IF(Liste!$D32=0,\" \",Liste!$D32)","v":" "},{"$f":"IF(Liste!$D33=0,\" \",Liste!$D33)","v":" "},{"$f":"IF(Liste!$D34=0,\" \",Liste!$D34)","v":" "},{"$f":"IF(Liste!$D35=0,\" \",Liste!$D35)","v":" "},{"$f":"IF(Liste!$D36=0,\" \",Liste!$D36)","v":" "},{"$f":"IF(Liste!$D37=0,\" \",Liste!$D37)","v":" "},{"$f":"IF(Liste!$D38=0,\" \",Liste!$D38)","v":" "},{"$f":"IF(Liste!$D39=0,\" \",Liste!$D39)","v":" "},null,null,{"$error":"#N/A"},{"$error":"#N/A"},{"$error":"#N/A"},{"$error":"#N/A"},{"$error":"#N/A"},{"$error":"#N/A"},{"$error":"#N/A"},{"$error":"#N/A"},{"$error":"#N/A"},{"$error":"#N/A"},{"$error":"#N/A"},{"$error":"#N/A"},{"$error":"#N/A"},{"$error":"#N/A"},{"$error":"#N/A"},{"$error":"#N/A"},{"$error":"#N/A"},{"$error":"#N/A"},{"$error":"#N/A"},{"$error":"#N/A"},{"$error":"#N/A"},{"$error":"#N/A"},{"$error":"#N/A"},{"$error":"#N/A"},{"$error":"#N/A"},{"$error":"#N/A"},{"$error":"#N/A"},{"$error":"#N/A"},{"$error":"#N/A"},{"$error":"#N/A"},{"$error":"#N/A"},{"$error":"#N/A"},{"$error":"#N/A"},{"$error":"#N/A"},{"$error":"#N/A"},{"$error":"#N/A"},{"$error":"#N/A"},{"$error":"#N/A"},{"$error":"#N/A"},{"$error":"#N/A"}]
[null,"ÖĞRENCİDE GÖZLENECEK ÖZELLİKLER","NO",{"$f":"IF(Liste!$C5=0,\" \",Liste!$C5)","v":" "},{"$f":"IF(Liste!$C6=0,\" \",Liste!C6)","v":" "},{"$f":"IF(Liste!$C7=0,\" \",Liste!C7)","v":" "},{"$f":"IF(Liste!$C8=0,\" \",Liste!C8)","v":" "},{"$f":"IF(Liste!$C9=0,\" \",Liste!C9)","v":" "},{"$f":"IF(Liste!$C10=0,\" \",Liste!C10)","v":" "},{"$f":"IF(Liste!$C11=0,\" \",Liste!C11)","v":" "},{"$f":"IF(Liste!$C12=0,\" \",Liste!C12)","v":" "},{"$f":"IF(Liste!$C13=0,\" \",Liste!C13)","v":" "},{"$f":"IF(Liste!$C14=0,\" \",Liste!C14)","v":" "},{"$f":"IF(Liste!$C15=0,\" \",Liste!C15)","v":" "},{"$f":"IF(Liste!$C16=0,\" \",Liste!C16)","v":" "},{"$f":"IF(Liste!$C17=0,\" \",Liste!C17)","v":" "},{"$f":"IF(Liste!$C18=0,\" \",Liste!C18)","v":" "},{"$f":"IF(Liste!$C19=0,\" \",Liste!C19)","v":" "},{"$f":"IF(Liste!$C20=0,\" \",Liste!C20)","v":" "},{"$f":"IF(Liste!$C21=0,\" \",Liste!C21)","v":" "},{"$f":"IF(Liste!$C22=0,\" \",Liste!C22)","v":" "},{"$f":"IF(Liste!$C23=0,\" \",Liste!C23)","v":" "},{"$f":"IF(Liste!$C24=0,\" \",Liste!C24)","v":" "},{"$f":"IF(Liste!$C25=0,\" \",Liste!C25)","v":" "},{"$f":"IF(Liste!$C26=0,\" \",Liste!C26)","v":" "},{"$f":"IF(Liste!$C27=0,\" \",Liste!C27)","v":" "},{"$f":"IF(Liste!$C28=0,\" \",Liste!C28)","v":" "},{"$f":"IF(Liste!$C29=0,\" \",Liste!C29)","v":" "},{"$f":"IF(Liste!$C30=0,\" \",Liste!C30)","v":" "},{"$f":"IF(Liste!$C31=0,\" \",Liste!C31)","v":" "},{"$f":"IF(Liste!$C32=0,\" \",Liste!C32)","v":" "},{"$f":"IF(Liste!$C33=0,\" \",Liste!C33)","v":" "},{"$f":"IF(Liste!$C34=0,\" \",Liste!C34)","v":" "},{"$f":"IF(Liste!$C35=0,\" \",Liste!C35)","v":" "},{"$f":"IF(Liste!$C36=0,\" \",Liste!C36)","v":" "},{"$f":"IF(Liste!$C37=0,\" \",Liste!C37)","v":" "},{"$f":"IF(Liste!$C38=0,\" \",Liste!C38)","v":" "},{"$f":"IF(Liste!$C39=0,\" \",Liste!C39)","v":" "}]
[null,"Ödevin nasıl yapılacağını planlamıştır",10]
[null,"Ödevi hazırlarken çeşitli kaynaklardan yararlanmıştır",10]
[null,"Performans ödevinde çalışılmak üzere seçilen konunun raporlaştırılmasında ulaşılan kaynaklardaki bilgilerden yeterince yararlanmıştır",10]
[null,"Performans ödevi çeşitli görsel materyallerle desteklenmiştir",15]
[null,"Performans çalışmasında yer alan görsel materyaller,  konuya ilişkin özet bilgiler ile desteklenmiştir.",15]
[null,"Ödevde kullanılan kaynaklar uygun biçimde rapora yansıtılmıştır",15]
[null,"Rapor anlaşılır biçimde yazılmıştır. Oluşturulan cümleler Türkçe yazım kurallarına uygundur",5]
[null,"Ortaya çıkan performans ödevi, konunun amacına uygundur.",20]
[null,"DEĞERLENDİRMEGENEL TOPLAMI",{"$f":"SUM(C11:C18)","v":100},{"$f":"SUM(D11:D18)","v":0},{"$f":"SUM(E11:E18)","v":0},0,0,0,0,0,0,0,0,0,0,0,0,0,0,0,0,0,0,0,0,0,0,0,0,0,0,0,{"$f":"SUM(AG11:AG18)","v":0},0,0,0,0,0]
[null,"AÇIKLAMA: Bu form; Öğrencilere verilen Performans Görevi Değerlendirmesinde kullanılacaktır. Her iki dönemde her ders için doldurulacak, ders öğretmeni tarafından e-okulda BİRİNCİ PERFORMANS olarak işlenecek, öğretmen ve okul müdürüne imzalatılarak dönem sonlarında idareye teslim edilecektir."]
[]
[null,null,"……./……/20……",null,null,null,null,null,null,null,null,null,null,null,null,null,null,null,null,null,null,null,null,null,null,null,null,null,"……./……/20……"]
[null,null,"DERS ÖĞRETMENİ",null,null,null,null,null,null,null,null,null,null,null,null,null,null,null,null,null,null,null,null,null,null,null,null,null,"OKUL MÜDÜRÜ"]
[null,"ADI VE SOYADI   :",{"$f":"Liste!H8","v":"YUNUS EFİLOĞLU"},null,null,null,null,null,null,null,null,null,null,null,null,null,null,null,null,null,null,null,null,null,null,null,null,null,{"$f":"Liste!H10","v":"YUNUS EFİLOĞLU"}]
[null,"BRANŞI                :",{"$f":"Liste!H9","v":"Yiyecek İçecek Hizmetleri"}]

{"sheet":"2.Dön-1.Söz","index":10,"n_rows":27,"n_cols":80,"rows_kept":27,"cut":false,"hidden":false,"merged":[[5,25,5,28],[25,2,25,10],[21,1,21,37],[24,28,24,36],[5,2,5,13],[25,28,25,36],[5,29,5,34],[7,1,8,1],[7,2,8,2],[26,2,26,10],[26,28,26,36],[23,2,23,10],[23,28,23,36],[24,2,24,10],[1,1,1,37],[3,2,3,13],[3,25,3,28],[3,29,3,34],[4,2,4,13],[4,25,4,28],[4,29,4,34]]}
[]
[null,"SINIF İÇİ GÖZLEMLENEN PERFORMANS DEĞERLENDİRME ÇİZELGESİ"]
[]
[null,"Okul ",{"$f":"\": \"&Liste!H4","v":": OLTU NENEHATUN MESLEKİ  VE TEKNİK ANADOLU LİSESİ"},null,null,null,null,null,null,null,null,null,null,null,null,null,null,null,null,null,null,null,null,null,null,"Sınıf ",null,null,null,{"$f":"\": \"&Liste!H6","v":": 9/A"}]
[null,"Öğretim Yılı ",{"$f":"\": \"&Liste!H5","v":": 2023-2024"},null,null,null,null,null,null,null,null,null,null,null,null,null,null,null,null,null,null,null,null,null,null,"Ders",null,null,null,{"$f":"\": \"&Liste!H7","v":": "}]
[null,"Dönem ",": 2.Dönem",null,null,null,null,null,null,null,null,null,null,null,null,null,null,null,null,null,null,null,null,null,null,"Öğretmen",null,null,null,{"$f":"\": \"&Liste!H8","v":": YUNUS EFİLOĞLU"}]
[]
[null,"DEĞERLENDİRME ÖLÇEĞİ","ADI SOYADI",1,2,3,4,5,6,7,8,9,10,11,12,13,14,15,16,17,18,19,20,21,22,23,24,25,26,27,28,29,30,31,32,33,34,35]
[null,null,null,{"$f":"IF(Liste!$D5=0,\" \",Liste!$D5)","v":" "},{"$f":"IF(Liste!$D6=0,\" \",Liste!$D6)","v":" "},{"$f":"IF(Liste!$D7=0,\" \",Liste!$D7)","v":" "},{"$f":"IF(Liste!$D8=0,\" \",Liste!$D8)","v":" "},{"$f":"IF(Liste!$D9=0,\" \",Liste!$D9)","v":" "},{"$f":"IF(Liste!$D10=0,\" \",Liste!$D10)","v":" "},{"$f":"IF(Liste!$D11=0,\" \",Liste!$D11)","v":" "},{"$f":"IF(Liste!$D12=0,\" \",Liste!$D12)","v":" "},{"$f":"IF(Liste!$D13=0,\" \",Liste!$D13)","v":" "},{"$f":"IF(Liste!$D14=0,\" \",Liste!$D14)","v":" "},{"$f":"IF(Liste!$D15=0,\" \",Liste!$D15)","v":" "},{"$f":"IF(Liste!$D16=0,\" \",Liste!$D16)","v":" "},{"$f":"IF(Liste!$D17=0,\" \",Liste!$D17)","v":" "},{"$f":"IF(Liste!$D18=0,\" \",Liste!$D18)","v":" "},{"$f":"IF(Liste!$D19=0,\" \",Liste!$D19)","v":" "},{"$f":"IF(Liste!$D20=0,\" \",Liste!$D20)","v":" "},{"$f":"IF(Liste!$D21=0,\" \",Liste!$D21)","v":" "},{"$f":"IF(Liste!$D22=0,\" \",Liste!$D22)","v":" "},{"$f":"IF(Liste!$D23=0,\" \",Liste!$D23)","v":" "},{"$f":"IF(Liste!$D24=0,\" \",Liste!$D24)","v":" "},{"$f":"IF(Liste!$D25=0,\" \",Liste!$D25)","v":" "},{"$f":"IF(Liste!$D26=0,\" \",Liste!$D26)","v":" "},{"$f":"IF(Liste!$D27=0,\" \",Liste!$D27)","v":" "},{"$f":"IF(Liste!$D28=0,\" \",Liste!$D28)","v":" "},{"$f":"IF(Liste!$D29=0,\" \",Liste!$D29)","v":" "},{"$f":"IF(Liste!$D30=0,\" \",Liste!$D30)","v":" "},{"$f":"IF(Liste!$D31=0,\" \",Liste!$D31)","v":" "},{"$f":"IF(Liste!$D32=0,\" \",Liste!$D32)","v":" "},{"$f":"IF(Liste!$D33=0,\" \",Liste!$D33)","v":" "},{"$f":"IF(Liste!$D34=0,\" \",Liste!$D34)","v":" "},{"$f":"IF(Liste!$D35=0,\" \",Liste!$D35)","v":" "},{"$f":"IF(Liste!$D36=0,\" \",Liste!$D36)","v":" "},{"$f":"IF(Liste!$D37=0,\" \",Liste!$D37)","v":" "},{"$f":"IF(Liste!$D38=0,\" \",Liste!$D38)","v":" "},{"$f":"IF(Liste!$D39=0,\" \",Liste!$D39)","v":" "},null,null,{"$error":"#N/A"},{"$error":"#N/A"},{"$error":"#N/A"},{"$error":"#N/A"},{"$error":"#N/A"},{"$error":"#N/A"},{"$error":"#N/A"},{"$error":"#N/A"},{"$error":"#N/A"},{"$error":"#N/A"},{"$error":"#N/A"},{"$error":"#N/A"},{"$error":"#N/A"},{"$error":"#N/A"},{"$error":"#N/A"},{"$error":"#N/A"},{"$error":"#N/A"},{"$error":"#N/A"},{"$error":"#N/A"},{"$error":"#N/A"},{"$error":"#N/A"},{"$error":"#N/A"},{"$error":"#N/A"},{"$error":"#N/A"},{"$error":"#N/A"},{"$error":"#N/A"},{"$error":"#N/A"},{"$error":"#N/A"},{"$error":"#N/A"},{"$error":"#N/A"},{"$error":"#N/A"},{"$error":"#N/A"},{"$error":"#N/A"},{"$error":"#N/A"},{"$error":"#N/A"},{"$error":"#N/A"},{"$error":"#N/A"},{"$error":"#N/A"},{"$error":"#N/A"},{"$error":"#N/A"}]
[null,"ÖĞRENCİDE GÖZLENECEK ÖZELLİKLER","NO",{"$f":"IF(Liste!$C5=0,\" \",Liste!$C5)","v":" "},{"$f":"IF(Liste!$C6=0,\" \",Liste!C6)","v":" "},{"$f":"IF(Liste!$C7=0,\" \",Liste!C7)","v":" "},{"$f":"IF(Liste!$C8=0,\" \",Liste!C8)","v":" "},{"$f":"IF(Liste!$C9=0,\" \",Liste!C9)","v":" "},{"$f":"IF(Liste!$C10=0,\" \",Liste!C10)","v":" "},{"$f":"IF(Liste!$C11=0,\" \",Liste!C11)","v":" "},{"$f":"IF(Liste!$C12=0,\" \",Liste!C12)","v":" "},{"$f":"IF(Liste!$C13=0,\" \",Liste!C13)","v":" "},{"$f":"IF(Liste!$C14=0,\" \",Liste!C14)","v":" "},{"$f":"IF(Liste!$C15=0,\" \",Liste!C15)","v":" "},{"$f":"IF(Liste!$C16=0,\" \",Liste!C16)","v":" "},{"$f":"IF(Liste!$C17=0,\" \",Liste!C17)","v":" "},{"$f":"IF(Liste!$C18=0,\" \",Liste!C18)","v":" "},{"$f":"IF(Liste!$C19=0,\" \",Liste!C19)","v":" "},{"$f":"IF(Liste!$C20=0,\" \",Liste!C20)","v":" "},{"$f":"IF(Liste!$C21=0,\" \",Liste!C21)","v":" "},{"$f":"IF(Liste!$C22=0,\" \",Liste!C22)","v":" "},{"$f":"IF(Liste!$C23=0,\" \",Liste!C23)","v":" "},{"$f":"IF(Liste!$C24=0,\" \",Liste!C24)","v":" "},{"$f":"IF(Liste!$C25=0,\" \",Liste!C25)","v":" "},{"$f":"IF(Liste!$C26=0,\" \",Liste!C26)","v":" "},{"$f":"IF(Liste!$C27=0,\" \",Liste!C27)","v":" "},{"$f":"IF(Liste!$C28=0,\" \",Liste!C28)","v":" "},{"$f":"IF(Liste!$C29=0,\" \",Liste!C29)","v":" "},{"$f":"IF(Liste!$C30=0,\" \",Liste!C30)","v":" "},{"$f":"IF(Liste!$C31=0,\" \",Liste!C31)","v":" "},{"$f":"IF(Liste!$C32=0,\" \",Liste!C32)","v":" "},{"$f":"IF(Liste!$C33=0,\" \",Liste!C33)","v":" "},{"$f":"IF(Liste!$C34=0,\" \",Liste!C34)","v":" "},{"$f":"IF(Liste!$C35=0,\" \",Liste!C35)","v":" "},{"$f":"IF(Liste!$C36=0,\" \",Liste!C36)","v":" "},{"$f":"IF(Liste!$C37=0,\" \",Liste!C37)","v":" "},{"$f":"IF(Liste!$C38=0,\" \",Liste!C38)","v":" "},{"$f":"IF(Liste!$C39=0,\" \",Liste!C39)","v":" "}]
[null,"Derse iştirak etmesi ",10]
[null,"Derse hazırlıklı gelmesi",10]
[null,"Verilen ödevleri yapması",10]
[null,"Eleştirel düşünme yönü",10]
[null,"Yaratıcı düşünme yönü",10]
[null,"Araştırma yapma yönü",10]
[null,"Sorgulama ve Problem çözme",10]
[null,"Sorulara cevap vermesi",10]
[null,"Defterini temiz kullanması",10]
[null,"Arkadaşları ile ortak çalışması",10]
[null,"DEĞERLENDİRMEGENEL TOPLAMI",{"$f":"SUM(C11:C20)","v":100},{"$f":"SUM(D11:D20)","v":0},{"$f":"SUM(E11:E20)","v":0},0,0,0,0,0,0,0,0,0,0,0,0,0,0,0,0,0,0,0,0,0,0,0,0,0,0,0,{"$f":"SUM(AG11:AG20)","v":0},0,0,0,0,0]
[null,"AÇIKLAMA: Bu form; her iki dönemde her ders için doldurulacak, ders öğretmeni tarafından e-okulda İKİNCİ performans/ödev/sözlü olarak işlenecek, öğretmen ve okul müdürüne imzalatılarak dönem sonlarında idareye teslim edilecektir."]
[]
[null,null,"……./……/20……",null,null,null,null,null,null,null,null,null,null,null,null,null,null,null,null,null,null,null,null,null,null,null,null,null,"……./……/20……"]
[null,null,"DERS ÖĞRETMENİ",null,null,null,null,null,null,null,null,null,null,null,null,null,null,null,null,null,null,null,null,null,null,null,null,null,"OKUL MÜDÜRÜ"]
[null,"ADI VE SOYADI   :",{"$f":"Liste!H8","v":"YUNUS EFİLOĞLU"},null,null,null,null,null,null,null,null,null,null,null,null,null,null,null,null,null,null,null,null,null,null,null,null,null,{"$f":"Liste!H10","v":"YUNUS EFİLOĞLU"}]
[null,"BRANŞI                :",{"$f":"Liste!H9","v":"Yiyecek İçecek Hizmetleri"}]

{"sheet":"ogrenciliste","index":11,"n_rows":100,"n_cols":4,"rows_kept":100,"cut":false,"hidden":true,"merged":[]}
["SINIF","SIRA","OKUL NO","ADI SOYADI"]
["9/A",1,590,"BEYZA NUR AKDEMİR"]
["9/A",2,3002,"SERPİL GÜVEN"]
["9/A",3,3007,"AYŞEGÜL TAŞCİ"]
["9/A",4,3008,"DERYA KIŞLAK"]
["9/A",5,3010,"ZEYNEP AZRA CANSU"]
["9/A",6,3016,"KÜBRANUR KURT"]
["9/A",7,3019,"AHSEN SENA AKYÜZ"]
["9/A",8,3029,"DAMLA MUŞLİ"]
["9/A",9,3033,"ASMİN YILDIRIM"]
["9/A",10,3035,"EDANUR GÜZEL"]
["9/A",11,3036,"RÜMEYSA ETEGÜL"]
["9/A",12,3038,"SİNEM İZGİ"]
["9/A",13,3040,"ZEYNEP ARSLAN"]
["9/B",1,97,"NEHİR ZENGİN"]
["9/B",2,3011,"SENEM SEVEN"]
["9/B",3,3014,"CEYLAN SARİER"]
["9/B",4,3017,"ZEHRA YEŞİLYURT"]
["9/B",5,3020,"ASUMAN ARSLAN"]
["9/B",6,3021,"ELVAN SARİER"]
["9/B",7,3024,"FİLİZ GÜMÜŞSOY"]
["9/B",8,3028,"GAMZE BEKTAŞ"]
["9/B",9,3034,"ELİF NUR ÇELİK"]
["9/B",10,3039,"ALMİNA AYDEMİR"]
["9/B",11,3041,"BERFİN UÇAR"]
["9/E",1,460,"MİRAY YILAR"]
["9/E",2,1023,"MELİSA ÇANKAYA"]
["9/E",3,3004,"BEYZA YILMAZ"]
["9/E",4,3005,"AZRA YILMAZ"]
["9/E",5,3006,"AYSEREN DEMİRCİ"]
["9/E",6,3009,"HİRANUR KAYA"]
["9/E",7,3012,"BÜŞRA SAĞIR"]
["9/E",8,3013,"PINAR KILIÇ"]
["9/E",9,3015,"DERYA DAĞDELEN"]
["9/E",10,3023,"TÜRKAN BUKET ASLAN"]
["9/E",11,3026,"ZEYNEP SUDE BAŞAR"]
["9/E",12,3027,"GÜLZARE AKTÜRK"]
["9/E",13,3031,"TUANA ONAT"]
["9/E",14,3032,"SÜMEYYE KILIÇ"]
["10/B",1,1,"ELANUR İZCİ"]
["10/B",2,13,"SELVİNUR ASLAN"]
["10/B",3,305,"SUDENUR ZENGİN"]
["10/B",4,309,"MEDİNE AYDIN"]
["10/B",5,312,"PERİHAN ÖZCAN"]
["10/B",6,410,"HANDENUR ŞİMŞEK"]
["10/B",7,419,"NAZAR BERFİN KIŞLAK"]
["10/B",8,421,"SEVGİ ÖREN"]
["10/B",9,425,"ECE TOSUN"]
["10/B",10,501,"İLAYDA AKARSU"]
["10/B",11,977,"ZEYNEP ÇELİK"]
["10/E",1,12,"ŞEYDA YARAR"]
["10/E",2,20,"KADER YILDIRIM"]
["10/E",3,413,"MERVE KALKAN"]
["10/E",4,414,"SELİN ÖZGE DEMİR"]
["10/E",5,416,"ELA ÜNLÜ"]
["10/E",6,418,"HAZAL CANSU"]
["10/E",7,424,"ELİF LEYLA ŞİMŞEK"]
["10/E",8,431,"SILA AYDIN"]
["10/E",9,500,"MELİKE SAYAR"]
["11/A",1,235,"YAĞMUR ÇİMEN"]
["11/A",2,302,"AYŞENUR SAYAR"]
["11/A",3,354,"DILEVİN GÜNDÜZ"]
["11/A",4,383,"GAMZE BEYAZLI"]
["11/A",5,385,"HAYATNAZ CENGİZ"]
["11/A",6,386,"KÜBRA ETİ"]
["11/A",7,389,"PINAR YILMAZ"]
["11/A",8,390,"MELİKE TAŞKIN"]
["11/A",9,395,"MİNE MUŞLİ"]
["11/A",10,404,"ZEYNEP YAVUZ"]
["12/A",1,191,"YAREN KAYA"]
["12/A",2,216,"SEMA AĞTAŞ"]
["12/A",3,341,"IRMAK AKTAŞ"]
["12/A",4,344,"ROJİN KAYA"]
["12/A",5,353,"YUDUM İNCE"]
["12/A",6,361,"CEREN ÇETİN"]
["12/A",7,368,"ÖYKÜ TEKİN"]
["12/A",8,371,"YAĞMUR ŞİMŞEK"]
["12/A",9,374,"ÖZGE TURAL"]
["12/A",10,378,"RABİA DURĞUN"]
["12/A",11,399,"RABİA NUR POLAT"]
["12/A",12,525,"AZRANUR PEHLİVAN"]
["12/B",1,192,"RUYA YILMAZ"]
["12/B",2,286,"SEDA GÖKÇE"]
["12/B",3,331,"AYŞEGÜL BAYRAK"]
["12/B",4,346,"SEVDA SEVEN"]
["12/B",5,373,"BERFİN ZENCİR"]
["12/B",6,406,"SILANUR YILDIRIM"]
["12/E",1,264,"YASEMİN TAŞĞIN"]
["12/E",2,285,"ALEYNA GÖZDE MACİT"]
["12/E",3,315,"HURİMİNA TUNCAY"]
["12/E",4,336,"İLAYDANUR KILIÇ"]
["12/E",5,340,"MELİKE ÇİÇEK"]
["12/E",6,348,"GÜLSÜN BAŞAL"]
["12/E",7,351,"DİLARA YILDIRIM"]
["12/E",8,357,"ASLIHAN ACAR"]
["12/E",9,360,"ZÜMRÜT ÜNLÜ"]
["12/E",10,365,"İLKNUR AKSAKAL"]
["12/E",11,370,"ŞEYMANUR AYDOĞDU"]
["12/E",12,405,"MELEK ATAŞ"]
["12/E",122,123,"fghdfgsdf"]

{"sheet":"ogretmenliste","index":12,"n_rows":36,"n_cols":2,"rows_kept":36,"cut":false,"hidden":true,"merged":[]}
["ADI SOYADAI","Branşı"]
["YUNUS EFİLOĞLU","Yiyecek İçecek Hizmetleri"]
["MURATHAN CENGİZ","Beden Eğitimi"]
["ATİLLA ÖZEL","Türk Dili ve Edebiyatı"]
["COŞKUN ÖZDEMİR","Türk Dili ve Edebiyatı"]
["MURAT POLAT","Tarih"]
["KÜBRA AKGÜL","Coğrafya"]
["MEHMET KAR","Matematik"]
["ÜMİT YILDIZ","Matematik"]
["KADER KARTAL","Din Kültürü ve Ahlak Bil."]
["SERMİN TAŞ","Felsefe"]
["ÖMER TARIK GAGAR","Fizik"]
["ÜLKÜ KIVANÇ","Kimya/Kimya Teknolojisi"]
["ÜLKÜ KIVANÇ","Biyoloji"]
["YEŞİM TAŞKIN","İngilizce"]
["MUSTAFA TOSUN","Yiyecek İçecek Hizmetleri"]
["TUNCAY ÖZTÜRK","Yiyecek İçecek Hizmetleri"]
["MUAZZEZ OLDUM","Yiyecek İçecek Hizmetleri"]
["SELİME KARBAN","Çocuk Gelişimi ve Eğitimi"]
["NİLÜFER ÖZTÜRK ÖZDOĞAN","Çocuk Gelişimi ve Eğitimi"]
["MİNE ÖCAL","Çocuk Gelişimi ve Eğitimi"]
["ÖZLEM SARIHAN","Hasta ve Yaşlı Hizmetleri"]
["SÜMEYRA UZUN","Hasta ve Yaşlı Hizmetleri"]
["NURAY TÜRKOĞLU","Türk Dili ve Edebiyatı"]
["YUNUS EFİLOĞLU","Yiyecek İçecek Hizmetleri"]
["MURATHAN CENGİZ","Beden Eğitimi"]
["ATİLLA ÖZEL","Türk Dili ve Edebiyatı"]
["COŞKUN ÖZDEMİR","Türk Dili ve Edebiyatı"]
["MURAT POLAT","Tarih"]
["KÜBRA AKGÜL","Coğrafya"]
["MEHMET KAR","Matematik"]
["ÜMİT YILDIZ","Matematik"]
["KADER KARTAL","Din Kültürü ve Ahlak Bil."]
["SERMİN TAŞ","Felsefe"]
["ÖMER TARIK GAGAR","Fizik"]
["NURAY TÜRKOĞLU","Türk Dili ve Edebiyatı"]

{"sheet":"dersliste","index":13,"n_rows":40,"n_cols":1,"rows_kept":40,"cut":false,"hidden":true,"merged":[]}
["DERS ADI"]
["Türk Dili ve Edebiyatı"]
["Matematik"]
["Tarih"]
["Coğrafya"]
["Biyoloji"]
["Kimya"]
["Fizik"]
["İngilizce"]
["Din Kültürü ve Ahlak Bilgisi"]
["Felsefe"]
["Beden Eğitimi ve Spor"]
["Seçmeli Proje Tasarımı ve Uygulamaları"]
["Seçmeli Kuran'ı Kerim"]
["Mesleki Gelişim Atölyesi"]
["T.C.İnkilap Tarihi ve Atatürkçülük"]
["Sağlık Bilgisi ve Trafik Kültürü"]
["Anatomi Fizyoloji"]
["Atölye"]
["Anne Çocuk Sağlığı"]
["Çocuk Ruh Sağlığı"]
["Müzik ve Dramatik Etkinlikler Atölyesi"]
["Beslenme İlkeleri ve Hijyen"]
["Temel Yiyecek Üretimi ve Servis Atölyesi"]
["Enfeksiyon Hastalıklarından Korunma"]
["Genel Beslenme"]
["Sağlık İletişimi ve Etik"]
["Aşçılık ve Servis Atölyesi"]
["Mesleki Yabancı Dil"]
["Erken Çocukluk ve Özel Eğitimde Program Atölyesi"]
["Seçmeli Coğrafya"]
["Seçmeli Sanat ve Oyun 1"]
["Seçmeli Temel Matematik"]
["Yetersizlik Türleri ve Kaynaştırma"]
["Seçmeli Çocuk Aktiviteleri"]
["Seçmeli Çocuk Edebiyatı"]
["Seçmeli Engelli Hizmetleri"]
["Seçmeli Sağlık Turizmi Merkezleri"]
["Seçmeli Sosyal Medya"]
["Seçmeli Gastronomi Turizmi"]